Workbook

Sheet Ⅰ-JIS選定シート
J1: Ver_2.1
B2: コンクリートの配合選定シート | H2: データ入力者氏名 | I2: 施工性能評価小委員会
H3: ケース名 | I3: 資料編WG
B5: Ⅰ | C5: レディーミクストコンクリートの種類の選択
C7: ① | D7: 設計基準強度の入力 | J7: 数値入力
F8: 24 | G8: (N/mm2) | J8: リスト選択
J9: 自動表示
C10: ② | D10: スランプの選定 | J10: 計算値 | L10: リスト一覧
D11: ・対象構造物の施工条件
D12: 部材の種類 | E12: 柱 | F12: =IF(E12=L16,L17,"") ->  | L12: スラブ
L13: 柱
D14: 施工条件１ | E14: =IF(E12=L12,スラブ!B4,IF(E12=L13,柱!B4,IF(E12=L14,はり!B4,IF(E12=L15,壁!B4,IF(E12=L16,PC部材!D4,L23))))) -> 有効換算鋼材量 | F14: 650 | G14: =IF(E12=L12,スラブ!B5,IF(E12=L13,柱!B5,IF(E12=L14,はり!B5,IF(E12=L15,壁!B5,IF(E12=L16,PC部材!D5,L23))))) -> (kg/m3) | L14: はり
L15: 壁
D16: 施工条件２ | E16: =IF(E12=L12,スラブ!D4,IF(E12=L13,柱!D4,IF(E12=L14,はり!D4,IF(E12=L15,壁!D4,IF(E12=L16,PC部材!F4,L23))))) -> 締固め作業高さ | F16: 3 | G16: =IF(E12=L12,スラブ!D5,IF(E12=L13,柱!D5,IF(E12=L14,はり!D5,IF(E12=L15,壁!D5,IF(E12=L16,PC部材!F5,L23))))) -> (m) | L16: PC部材
L17: 施工条件１・２の大きい方を採用
D18: 施工条件３ | E18: =IF(E12=L12,スラブ!F4,IF(E12=L13,柱!F4,IF(E12=L14,はり!F4,IF(E12=L15,壁!F4,IF(E12=L16,PC部材!B4,L23))))) -> かぶりあるいは鋼材の最小あき | F18: 48 | G18: =IF(E12=L12,スラブ!F5,IF(E12=L13,柱!F5,IF(E12=L14,はり!F5,IF(E12=L15,壁!F5,IF(E12=L16,PC部材!B5,L23))))) -> (mm) | L18: ①設計基準強度を記入
F19: =IF(E12=L16,L18,"") -> 
D20: 打込みの最小スランプ | H20: A | I20: =IF(E12=L12,スラブ!H16,IF(E12=L13,柱!H24,IF(E12=L14,はり!H27,IF(E12=L15,壁!H22,IF(E12=L16,PC部材!H18,L23))))) -> 9 | J20: (cm)
I21: =IF(I20="***",L21,"") ->  | L21: ※平均鉄筋量が200kg/m3、RC換算400kg/m以上の場合は、個別に検討する
C23: ③ | D23: スランプの補正
D24: 圧送条件 | E24: テーパー管を使用し100A（4B)以下の配管接続の有無 | L24: 無し
F25: 無し | L25: 有り
D27: 圧送距離（水平換算距離）※１ | F27: 135 | G27: (m) | H27: B | I27: =補正値!H40 -> 0 | J27: (cm)
D29: 日平均気温 | F29: 25 | G29: (℃) | H29: C | I29: =補正値!H41 -> 0 | J29: (cm)
D31: 配管条件 | E31: 連続した上方または下方の20m以上圧送の有無
F32: 無し | H32: D | I32: =補正値!H42 -> 0 | J32: (cm)
I33: =IF(I27="***",L33,"") ->  | L33: ※圧送距離が300m以上の場合は、スランプの補正は既往の実験や試験圧送による
C35: ④ | D35: スランプの許容差 | H35: E | I35: 2.5 | J35: (cm)
I36: =IF(I35>18.5,L40,L23) -> 
C38: ⑤ | D38: 荷卸しの目標スランプ | G38: A＋B＋C＋D＋E＝ | H38: F | I38: =IF(I27="***",I20,I20+I27+I29+I32+I35) -> 11.5 | J38: (cm)
I39: =IF(I27="***",L39,IF(I38>18,L40,"")) ->  | L39: 警告！③スランプの補正を含まない
L40: 警告！最小SLが18.5cmOVER SL設定値を確認
C41: ⑥ | D41: JIS規定スランプの選択 | G41: Fの値に近い規格値を選定 | H41: G | I41: =IF(I38="***","***",IF(I38<9.1,8,IF(I38<11.1,10,IF(I38<13.6,12,IF(I38<16.6,15,IF(I38<19.6,18,21)))))) -> 12 | J41: (cm)
I42: =IF(I27="***",L42,"") ->  | L42: 警告！③スランプの補正を含まない
C44: ⑦ | D44: 粗骨材の最大寸法の選択 | F44: 20 | L44: 20
L45: 25
L46: 40
C47: ⑧ | D47: セメントの種類の選択 | F47: BB
L48: N
L49: H
L50: M
D51: 配合選択結果 | L51: LL
L52: BB
C55: ＜参考＞
D56: ※１：水平換算距離の計算 （必要に応じて使用）
D57: 配管径 | F57: ５インチ | I57: 水平換算距離 | L57: ４インチ
D58: 上向き配管長さ | F58: 10 | G58: (m) | I58: =IF(F57="","",IF(F57=L57,3,IF(F57=L58,4,5))*F58+F59+F60+F62*6+F61*3+F63*20) -> 135 | J58: (m) | L58: ５インチ
D59: 下向き配管長さ | F59: 0 | G59: (m) | I59: 結果は③に入力 | L59: ６インチ
D60: 水平配管長さ | F60: 30 | G60: (m)
D61: テーパー管 | F61: 1 | G61: (本)
D62: ベント間（90°） | F62: 7 | G62: (本)
D63: フレキシブルホース（5～8mもの） | F63: 1 | G63: (本)

Sheet Ⅱ-配合確認(Ⅰリンク）
I1: ='Ⅰ-JIS選定シート'!F1 -> 0 | J1: ='Ⅰ-JIS選定シート'!G1 -> 0 | M1: ='Ⅰ-JIS選定シート'!J1 -> Ver_2.1
B2: コンクリートの配合確認シート （1/2） | K2: データ入力者氏名 | L2: ='Ⅰ-JIS選定シート'!I2 -> 施工性能評価小委員会
K3: ケース名 | L3: ='Ⅰ-JIS選定シート'!I3 -> 資料編WG
B4: Ⅱ | C4: 配合の確認
C6: ① | D6: JIS呼び方 （Ⅰにて選択）
D8: コンクリートの 種類による記号 | F8: 呼び強度 | H8: ｽﾗﾝﾌﾟ又はｽﾗﾝﾌﾟﾌﾛｰ (cm) | J8: 粗骨材の最大寸法 (mm) | L8: セメントの種類 による記号
D9: 普通 | F9: ='Ⅰ-JIS選定シート'!F8 -> 24 | H9: ='Ⅰ-JIS選定シート'!I41 -> 12 | J9: ='Ⅰ-JIS選定シート'!F44 -> 20 | L9: ='Ⅰ-JIS選定シート'!F47 -> BB
C11: ② | D11: 配合表
D13: スランプ | E13: Ｗ／Ｃ | F13: ｓ／ａ | G13: 単位量（kg/m3） | M13: 入力値 | O13: 1： スラブ
D14: （cm） | E14: （％） | F14: （％） | G14: Ｗ | H14: Ｃ | I14: Ｓ | J14: Ｇ | M14: リスト選択 | O14: 2： 柱
D15: =H9 -> 12 | E15: =G15/H15*100 -> 50 | F15: 44.4 | G15: 160 | H15: 320 | I15: 800 | J15: 1000 | M15: リンク表示 | O15: 3： はり
M16: 計算値 | O16: 4： 壁
C17: ●材料分離抵抗性，振動締固めの容易さの確認 | O17: 5： PC部材
C19: ③ | D19: 打込みのスランプ | G19: JIS規定スランプ－(圧送ロス＋温度ロス＋配管条件ロス）
G20: G－（B＋C＋D）＝ | I20: ='Ⅰ-JIS選定シート'!I41-('Ⅰ-JIS選定シート'!I27+'Ⅰ-JIS選定シート'!I29+'Ⅰ-JIS選定シート'!I32) -> 12 | J20: (cm)
C22: ④ | D22: 構造条件 | F22: 2： 柱 | P22: 1： スラブ | Q22: 2： 柱 | R22: 3： はり | S22: 4： 壁 | T22: 5： PC部材
P23: h： 締固め作業高さ | Q23: s： 有効換算鋼材量，a：最小あき，h：締固め作業高さ | R23: a： 最小あき，h：締固め作業高さ | S23: s： 鋼材量，a：最小あき，h：締固め作業高さ
C24: ⑤ | D24: 施工条件 | F24: 01： s＜700(kg/m3), 50(mm)≦a, h＜3.0(m) | O24: =HLOOKUP($F$22,$P$22:$T$35,3) -> 01： s＜700(kg/m3), 50(mm)≦a, h＜3.0(m) | P24: 1： h＜0.5(m), 任意に投入可能 | Q24: 01： s＜700(kg/m3), 50(mm)≦a, h＜3.0(m) | R24: 1： 150(mm)≦a, h＜0.5(m) | S24: 01： s＜200(kg/m3), 100(mm)≦a, h＜3.0(m) | T24: 1： PC部材
F25: =IF(F22=O13,P23,IF(F22=O14,Q23,IF(F22=O15,R23,IF(F22=O16,S23,IF(F22=O17,T23,"NG!"))))) -> s： 有効換算鋼材量，a：最小あき，h：締固め作業高さ | O25: =HLOOKUP($F$22,$P$22:$T$35,4) -> 02： s＜700(kg/m3), 50(mm)≦a, 3.0(m)≦h＜5.0(m) | P25: 2： 0.5(m)≦h≦1.5(m), 任意に投入可能 | Q25: 02： s＜700(kg/m3), 50(mm)≦a, 3.0(m)≦h＜5.0(m) | R25: 2： 150(mm)≦a, 0.5(m)≦h＜1.5(m) | S25: 02： s＜200(kg/m3), 100(mm)≦a, 3.0(m)≦h＜5.0(m)
O26: =HLOOKUP($F$22,$P$22:$T$35,5) -> 03： s＜700(kg/m3), 50(mm)≦a, 5.0(m)≦h | P26: 3： h≦3.0(m), 投入間隔2～3(m) | Q26: 03： s＜700(kg/m3), 50(mm)≦a, 5.0(m)≦h | R26: 3： 150(mm)≦a, 1.5(m)≦h | S26: 03： s＜200(kg/m3), a＜100(mm), h＜3.0(m)
O27: =HLOOKUP($F$22,$P$22:$T$35,6) -> 04： s＜700(kg/m3), a＜50(mm), h＜3.0(m) | P27: 4： h≦3.0(m), 投入間隔3～4(m) | Q27: 04： s＜700(kg/m3), a＜50(mm), h＜3.0(m) | R27: 4： 60(mm)≦a＜150(mm), h＜0.5(m) | S27: 04： s＜200(kg/m3), a＜100(mm), 3.0(m)≦h＜5.0(m)
C28: ⑥ | O28: =HLOOKUP($F$22,$P$22:$T$35,7) -> 05： s＜700(kg/m3), a＜50(mm), 3.0(m)≦h＜5.0(m) | Q28: 05： s＜700(kg/m3), a＜50(mm), 3.0(m)≦h＜5.0(m) | R28: 5： 60(mm)≦a＜150(mm), 0.5(m)≦h＜1.5(m) | S28: 05： 200(kg/m3)≦s＜350(kg/m3), 100(mm)≦a, h＜3.0(m)
D29: 下限値 | G29: 上限線 | O29: =HLOOKUP($F$22,$P$22:$T$35,8) -> 06： s＜700(kg/m3), a＜50(mm), 5.0(m)≦h | Q29: 06： s＜700(kg/m3), a＜50(mm), 5.0(m)≦h | R29: 6： 60(mm)≦a＜150(mm), 1.5(m)≦h | S29: 06： 200(kg/m3)≦s＜350(kg/m3), 100(mm)≦a, 3.0(m)≦h＜5.0(m)
D30: X | E30: Y | G30: X | H30: Y | O30: =HLOOKUP($F$22,$P$22:$T$35,9) -> 07： 700(kg/m3)≦s, 50(mm)≦a, h＜3.0(m) | Q30: 07： 700(kg/m3)≦s, 50(mm)≦a, h＜3.0(m) | R30: 7： a＜60(mm), h＜0.5(m) | S30: 07： 200(kg/m3)≦s＜350(kg/m3), a＜100(mm), h＜3.0(m)
D31: ='Ⅱｸﾞﾗﾌﾃﾞｰﾀ（ﾘﾝｸ)'!H23 -> 5 | E31: ='Ⅱｸﾞﾗﾌﾃﾞｰﾀ（ﾘﾝｸ)'!U23 -> 580 | G31: ='Ⅱｸﾞﾗﾌﾃﾞｰﾀ（ﾘﾝｸ)'!BD23 -> 3 | H31: ='Ⅱｸﾞﾗﾌﾃﾞｰﾀ（ﾘﾝｸ)'!BE23 -> 200 | O31: =HLOOKUP($F$22,$P$22:$T$35,10) -> 08： 700(kg/m3)≦s, 50(mm)≦a, 3.0(m)≦h＜5.0(m) | Q31: 08： 700(kg/m3)≦s, 50(mm)≦a, 3.0(m)≦h＜5.0(m) | R31: 8： a＜60(mm), 0.5(m)≦h＜1.5(m) | S31: 08： 200(kg/m3)≦s＜350(kg/m3), a＜100(mm), 3.0(m)≦h＜5.0(m)
D32: ='Ⅱｸﾞﾗﾌﾃﾞｰﾀ（ﾘﾝｸ)'!H24 -> 5 | E32: ='Ⅱｸﾞﾗﾌﾃﾞｰﾀ（ﾘﾝｸ)'!U24 -> 287 | G32: ='Ⅱｸﾞﾗﾌﾃﾞｰﾀ（ﾘﾝｸ)'!BD24 -> 6 | H32: ='Ⅱｸﾞﾗﾌﾃﾞｰﾀ（ﾘﾝｸ)'!BE24 -> 350 | O32: =HLOOKUP($F$22,$P$22:$T$35,11) -> 09： 700(kg/m3)≦s, 50(mm)≦a, 5.0(m)≦h | Q32: 09： 700(kg/m3)≦s, 50(mm)≦a, 5.0(m)≦h | R32: 9： a＜60(mm), 1.5(m)≦h | S32: 09： s＜350(kg/m3), 5.0m≦h （aを問わず）
D33: ='Ⅱｸﾞﾗﾌﾃﾞｰﾀ（ﾘﾝｸ)'!H25 -> 10 | E33: ='Ⅱｸﾞﾗﾌﾃﾞｰﾀ（ﾘﾝｸ)'!U25 -> 260 | G33: ='Ⅱｸﾞﾗﾌﾃﾞｰﾀ（ﾘﾝｸ)'!BD25 -> 8 | H33: ='Ⅱｸﾞﾗﾌﾃﾞｰﾀ（ﾘﾝｸ)'!BE25 -> 400 | O33: =HLOOKUP($F$22,$P$22:$T$35,12) -> 10： 700(kg/m3)≦s, a＜50(mm), h＜3.0(m) | Q33: 10： 700(kg/m3)≦s, a＜50(mm), h＜3.0(m) | S33: 10： 350(kg/m3)≦s （a・hを問わず）
D34: ='Ⅱｸﾞﾗﾌﾃﾞｰﾀ（ﾘﾝｸ)'!H26 -> 14 | E34: ='Ⅱｸﾞﾗﾌﾃﾞｰﾀ（ﾘﾝｸ)'!U26 -> 260 | G34: ='Ⅱｸﾞﾗﾌﾃﾞｰﾀ（ﾘﾝｸ)'!BD26 -> 15 | H34: ='Ⅱｸﾞﾗﾌﾃﾞｰﾀ（ﾘﾝｸ)'!BE26 -> 440 | O34: =HLOOKUP($F$22,$P$22:$T$35,13) -> 11： 700(kg/m3)≦s, a＜50(mm), 3.0(m)≦h＜5.0(m) | Q34: 11： 700(kg/m3)≦s, a＜50(mm), 3.0(m)≦h＜5.0(m)
D35: ='Ⅱｸﾞﾗﾌﾃﾞｰﾀ（ﾘﾝｸ)'!H27 -> 19 | E35: ='Ⅱｸﾞﾗﾌﾃﾞｰﾀ（ﾘﾝｸ)'!U27 -> 300 | G35: ='Ⅱｸﾞﾗﾌﾃﾞｰﾀ（ﾘﾝｸ)'!BD27 -> 20 | H35: ='Ⅱｸﾞﾗﾌﾃﾞｰﾀ（ﾘﾝｸ)'!BE27 -> 480 | O35: =HLOOKUP($F$22,$P$22:$T$35,14) -> 12： 700(kg/m3)≦s, a＜50(mm), 5.0(m)≦h | Q35: 12： 700(kg/m3)≦s, a＜50(mm), 5.0(m)≦h
D36: ='Ⅱｸﾞﾗﾌﾃﾞｰﾀ（ﾘﾝｸ)'!H28 -> 24 | E36: ='Ⅱｸﾞﾗﾌﾃﾞｰﾀ（ﾘﾝｸ)'!U28 -> 580 | G36: ='Ⅱｸﾞﾗﾌﾃﾞｰﾀ（ﾘﾝｸ)'!BD28 -> 27 | H36: ='Ⅱｸﾞﾗﾌﾃﾞｰﾀ（ﾘﾝｸ)'!BE28 -> 600
O38: PC部材では，上限線を満足する場合でも粘性が高く振動締固め性が低下するため，事前のコンクリート性状の確認と施工上の対応策の検討が重要。（解説図2.5.38参照）
C46: ●圧送性確認
C48: ⑦ | D48: 荷卸しのスランプ | G48: JIS規定スランプ | I48: =H9 -> 12 | J48: (cm)
C50: ⑧ | D50: 圧送距離 | F50: ='Ⅰ-JIS選定シート'!F27 -> 135 | G50: (m) | H50: =IF(F50<150,P52,IF(F50<300,Q52,IF(F50<500,R52,S52))) -> a： 150(m)未満
C52: ⑨ | D52: 材料条件 | F52: 4：Gmax=20・25(mm), 砕砂 | P52: a： 150(m)未満 | Q52: b： 150～300(m) | R52: c： 300～500(m) | S52: d： 500(m)以上
O53: =HLOOKUP($H$50,$P$52:$S$56,2) -> 1：Gmax=40(mm), 天然砂 | P53: 1：Gmax=40(mm), 天然砂 | Q53: 1：Gmax=40(mm), 天然砂 | R53: 1：Gmax=40(mm), 天然砂 | S53: 適用外！
D54: 下限線 | G54: 上限線 | O54: =HLOOKUP($H$50,$P$52:$S$56,3) -> 2：Gmax=40(mm), 砕砂 | P54: 2：Gmax=40(mm), 砕砂 | Q54: 2：Gmax=40(mm), 砕砂 | R54: 2：Gmax=40(mm), 砕砂
C55: ⑩ | D55: X | E55: Y | G55: X | H55: Y | O55: =HLOOKUP($H$50,$P$52:$S$56,4) -> 3：Gmax=20・25(mm), 天然砂 | P55: 3：Gmax=20・25(mm), 天然砂 | Q55: 3：Gmax=20・25(mm), 天然砂 | R55: 3：Gmax=20・25(mm), 天然砂
D56: ='Ⅱｸﾞﾗﾌﾃﾞｰﾀ（ﾘﾝｸ)'!AU23 -> 7 | E56: ='Ⅱｸﾞﾗﾌﾃﾞｰﾀ（ﾘﾝｸ)'!BA23 -> 500 | G56: 4 | H56: 375 | O56: =HLOOKUP($H$50,$P$52:$S$56,5) -> 4：Gmax=20・25(mm), 砕砂 | P56: 4：Gmax=20・25(mm), 砕砂 | Q56: 4：Gmax=20・25(mm), 砕砂 | R56: 4：Gmax=20・25(mm), 砕砂
D57: ='Ⅱｸﾞﾗﾌﾃﾞｰﾀ（ﾘﾝｸ)'!AU24 -> 7 | E57: ='Ⅱｸﾞﾗﾌﾃﾞｰﾀ（ﾘﾝｸ)'!BA24 -> 300 | G57: 5 | H57: 380
D58: ='Ⅱｸﾞﾗﾌﾃﾞｰﾀ（ﾘﾝｸ)'!AU25 -> 8 | E58: ='Ⅱｸﾞﾗﾌﾃﾞｰﾀ（ﾘﾝｸ)'!BA25 -> 292 | G58: 6 | H58: 385
D59: ='Ⅱｸﾞﾗﾌﾃﾞｰﾀ（ﾘﾝｸ)'!AU26 -> 12 | E59: ='Ⅱｸﾞﾗﾌﾃﾞｰﾀ（ﾘﾝｸ)'!BA26 -> 285 | G59: 8 | H59: 400
D60: ='Ⅱｸﾞﾗﾌﾃﾞｰﾀ（ﾘﾝｸ)'!AU27 -> 16 | E60: ='Ⅱｸﾞﾗﾌﾃﾞｰﾀ（ﾘﾝｸ)'!BA27 -> 282 | G60: 12 | H60: 430
D61: ='Ⅱｸﾞﾗﾌﾃﾞｰﾀ（ﾘﾝｸ)'!AU28 -> 18 | E61: ='Ⅱｸﾞﾗﾌﾃﾞｰﾀ（ﾘﾝｸ)'!BA28 -> 282 | G61: 15 | H61: 430
D62: ='Ⅱｸﾞﾗﾌﾃﾞｰﾀ（ﾘﾝｸ)'!AU29 -> 18 | E62: ='Ⅱｸﾞﾗﾌﾃﾞｰﾀ（ﾘﾝｸ)'!BA29 -> 282 | G62: 20 | H62: 430
D63: ='Ⅱｸﾞﾗﾌﾃﾞｰﾀ（ﾘﾝｸ)'!AU30 -> 25 | E63: ='Ⅱｸﾞﾗﾌﾃﾞｰﾀ（ﾘﾝｸ)'!BA30 -> 282 | G63: 25 | H63: 430
B75: コンクリートの配合確認シート （2/2） | K75: ケース名 | L75: =L3 -> 資料編WG
C77: ●細骨材率の確認
C79: ⑪ | D79: 荷卸しのスランプ | G79: JIS規定スランプ | I79: =H9 -> 12 | J79: (cm) | M79: 入力値
M80: リスト選択
C81: ⑫ | D81: 配合表の細骨材率 | I81: =F15 -> 44.4 | J81: (％) | M81: リンク表示
M82: 計算値
C83: ⑬ | D83: 配合表の水セメント比 | H83: W/C= | I83: =E15 -> 50 | J83: (％) | O83: W/C= | P83: =I83 -> 50 | Q83: ％（配合値）
O84: Gmax=40(mm)
C85: ⑭ | D85: 材料条件（粗骨材の最大寸法） | H85: Gmax=20・25(mm) | O85: Gmax=20・25(mm)
C88: ⑮
G106: スランプに応じた細骨材率の最小値の目安
C109: ●単位粗骨材量の確認
D111: 単位粗骨材かさ容積（m3/m3）＝ | I111: 単位粗骨材量（kg/m3） | M111: =100 -> 100
H112: 粗骨材の密度（g/cm3）×粗骨材の実績率（％） | M112: 1000
C114: ⑯ | D114: 単位粗骨材量 | H114: =J15 -> 1000 | I114: (kg/m3)
C116: ⑰ | D116: 粗骨材の密度 | H116: 2.55 | I116: (g/cm3)
C118: ⑱ | D118: 粗骨材の実積率 | H118: 57.6 | I118: (％)
C120: ⑲ | D120: 単位粗骨材かさ容積 | H120: =H114/H116/H118/10 -> 0.6808278867 | I120: (m3/m3)
O121: Gmax=40(mm)
C122: ⑳ | D122: 材料条件（粗骨材の最大寸法） | H122: Gmax=20(mm) | J122: （印刷用の表示のみ） | O122: Gmax=25(mm)
O123: Gmax=20(mm)
C125: 21.
G143: スランプに応じた粗骨材かさ容積の最大値の目安

Sheet Ⅱ-配合確認(単独)_
I1: ='Ⅱ-配合確認(Ⅰリンク）'!I1 -> 0 | J1: ='Ⅱ-配合確認(Ⅰリンク）'!J1 -> 0 | M1: ='Ⅱ-配合確認(Ⅰリンク）'!M1 -> Ver_2.1
B2: コンクリートの配合確認シート （1/2） | K2: データ入力者氏名 | L2: 施工性能評価小委員会
K3: ケース名 | L3: 資料編WG
B4: Ⅱ | C4: 配合の確認
C6: ① | D6: JIS呼び方
D8: コンクリートの 種類による記号 | F8: 呼び強度 | H8: ｽﾗﾝﾌﾟ又はｽﾗﾝﾌﾟﾌﾛｰ (cm) | J8: 粗骨材の最大寸法 (mm) | L8: セメントの種類 による記号
D9: 普通 | F9: 30 | H9: 8 | J9: 20 | L9: N
C11: ② | D11: 配合表
D13: スランプ | E13: Ｗ／Ｃ | F13: ｓ／ａ | G13: 単位量（kg/m3） | M13: 入力値 | O13: 1： スラブ
D14: （cm） | E14: （％） | F14: （％） | G14: Ｗ | H14: Ｃ | I14: Ｓ | J14: Ｇ | M14: リスト選択 | O14: 2： 柱
D15: =H9 -> 8 | E15: =G15/H15*100 -> 51.43769968 | F15: 44.7 | G15: 161 | H15: 313 | I15: 810 | J15: 1027 | M15: リンク表示 | O15: 3： はり
M16: 計算値 | O16: 4： 壁
C17: ●材料分離抵抗性，振動締固めの容易さの確認 | O17: 5： PC部材
C19: ③ | D19: 打込みのスランプ | G19: JIS規定スランプ－(圧送ロス＋温度ロス＋配管条件ロス）
I20: 7 | J20: (cm)
C22: ④ | D22: 構造条件 | F22: 1： スラブ | P22: 1： スラブ | Q22: 2： 柱 | R22: 3： はり | S22: 4： 壁 | T22: 5： PC部材
P23: h： 締固め作業高さ | Q23: s： 有効換算鋼材量，a：最小あき，h：締固め作業高さ | R23: a： 最小あき，h：締固め作業高さ | S23: s： 鋼材量，a：最小あき，h：締固め作業高さ
C24: ⑤ | D24: 施工条件 | F24: 1： h＜0.5(m), 任意に投入可能 | O24: =HLOOKUP($F$22,$P$22:$T$35,3) -> 1： h＜0.5(m), 任意に投入可能 | P24: 1： h＜0.5(m), 任意に投入可能 | Q24: 01： s＜700(kg/m3), 50(mm)≦a, h＜3.0(m) | R24: 1： 150(mm)≦a, h＜0.5(m) | S24: 01： s＜200(kg/m3), 100(mm)≦a, h＜3.0(m) | T24: 1： PC部材
F25: =IF(F22=O13,P23,IF(F22=O14,Q23,IF(F22=O15,R23,IF(F22=O16,S23,IF(F22=O17,T23,"NG!"))))) -> h： 締固め作業高さ | O25: =HLOOKUP($F$22,$P$22:$T$35,4) -> 2： 0.5(m)≦h≦1.5(m), 任意に投入可能 | P25: 2： 0.5(m)≦h≦1.5(m), 任意に投入可能 | Q25: 02： s＜700(kg/m3), 50(mm)≦a, 3.0(m)≦h＜5.0(m) | R25: 2： 150(mm)≦a, 0.5(m)≦h＜1.5(m) | S25: 02： s＜200(kg/m3), 100(mm)≦a, 3.0(m)≦h＜5.0(m)
O26: =HLOOKUP($F$22,$P$22:$T$35,5) -> 3： h≦3.0(m), 投入間隔2～3(m) | P26: 3： h≦3.0(m), 投入間隔2～3(m) | Q26: 03： s＜700(kg/m3), 50(mm)≦a, 5.0(m)≦h | R26: 3： 150(mm)≦a, 1.5(m)≦h | S26: 03： s＜200(kg/m3), a＜100(mm), h＜3.0(m)
O27: =HLOOKUP($F$22,$P$22:$T$35,6) -> 4： h≦3.0(m), 投入間隔3～4(m) | P27: 4： h≦3.0(m), 投入間隔3～4(m) | Q27: 04： s＜700(kg/m3), a＜50(mm), h＜3.0(m) | R27: 4： 60(mm)≦a＜150(mm), h＜0.5(m) | S27: 04： s＜200(kg/m3), a＜100(mm), 3.0(m)≦h＜5.0(m)
C28: ⑥ | O28: =HLOOKUP($F$22,$P$22:$T$35,7) -> 0 | Q28: 05： s＜700(kg/m3), a＜50(mm), 3.0(m)≦h＜5.0(m) | R28: 5： 60(mm)≦a＜150(mm), 0.5(m)≦h＜1.5(m) | S28: 05： 200(kg/m3)≦s＜350(kg/m3), 100(mm)≦a, h＜3.0(m)
D29: 下限値 | G29: 上限線 | O29: =HLOOKUP($F$22,$P$22:$T$35,8) -> 0 | Q29: 06： s＜700(kg/m3), a＜50(mm), 5.0(m)≦h | R29: 6： 60(mm)≦a＜150(mm), 1.5(m)≦h | S29: 06： 200(kg/m3)≦s＜350(kg/m3), 100(mm)≦a, 3.0(m)≦h＜5.0(m)
D30: X | E30: Y | G30: X | H30: Y | O30: =HLOOKUP($F$22,$P$22:$T$35,9) -> 0 | Q30: 07： 700(kg/m3)≦s, 50(mm)≦a, h＜3.0(m) | R30: 7： a＜60(mm), h＜0.5(m) | S30: 07： 200(kg/m3)≦s＜350(kg/m3), a＜100(mm), h＜3.0(m)
D31: ='Ⅱｸﾞﾗﾌﾃﾞｰﾀ(単独)_'!H23 -> 5 | E31: ='Ⅱｸﾞﾗﾌﾃﾞｰﾀ(単独)_'!U23 -> 600 | G31: ='Ⅱｸﾞﾗﾌﾃﾞｰﾀ(単独)_'!BD23 -> 3 | H31: ='Ⅱｸﾞﾗﾌﾃﾞｰﾀ(単独)_'!BE23 -> 200 | O31: =HLOOKUP($F$22,$P$22:$T$35,10) -> 0 | Q31: 08： 700(kg/m3)≦s, 50(mm)≦a, 3.0(m)≦h＜5.0(m) | R31: 8： a＜60(mm), 0.5(m)≦h＜1.5(m) | S31: 08： 200(kg/m3)≦s＜350(kg/m3), a＜100(mm), 3.0(m)≦h＜5.0(m)
D32: ='Ⅱｸﾞﾗﾌﾃﾞｰﾀ(単独)_'!H24 -> 5 | E32: ='Ⅱｸﾞﾗﾌﾃﾞｰﾀ(単独)_'!U24 -> 250 | G32: ='Ⅱｸﾞﾗﾌﾃﾞｰﾀ(単独)_'!BD24 -> 6 | H32: ='Ⅱｸﾞﾗﾌﾃﾞｰﾀ(単独)_'!BE24 -> 350 | O32: =HLOOKUP($F$22,$P$22:$T$35,11) -> 0 | Q32: 09： 700(kg/m3)≦s, 50(mm)≦a, 5.0(m)≦h | R32: 9： a＜60(mm), 1.5(m)≦h | S32: 09： s＜350(kg/m3), 5.0m≦h （aを問わず）
D33: ='Ⅱｸﾞﾗﾌﾃﾞｰﾀ(単独)_'!H25 -> 8 | E33: ='Ⅱｸﾞﾗﾌﾃﾞｰﾀ(単独)_'!U25 -> 250 | G33: ='Ⅱｸﾞﾗﾌﾃﾞｰﾀ(単独)_'!BD25 -> 8 | H33: ='Ⅱｸﾞﾗﾌﾃﾞｰﾀ(単独)_'!BE25 -> 400 | O33: =HLOOKUP($F$22,$P$22:$T$35,12) -> 0 | Q33: 10： 700(kg/m3)≦s, a＜50(mm), h＜3.0(m) | S33: 10： 350(kg/m3)≦s （a・hを問わず）
D34: ='Ⅱｸﾞﾗﾌﾃﾞｰﾀ(単独)_'!H26 -> 18 | E34: ='Ⅱｸﾞﾗﾌﾃﾞｰﾀ(単独)_'!U26 -> 280 | G34: ='Ⅱｸﾞﾗﾌﾃﾞｰﾀ(単独)_'!BD26 -> 15 | H34: ='Ⅱｸﾞﾗﾌﾃﾞｰﾀ(単独)_'!BE26 -> 440 | O34: =HLOOKUP($F$22,$P$22:$T$35,13) -> 0 | Q34: 11： 700(kg/m3)≦s, a＜50(mm), 3.0(m)≦h＜5.0(m)
D35: ='Ⅱｸﾞﾗﾌﾃﾞｰﾀ(単独)_'!H27 -> 25 | E35: ='Ⅱｸﾞﾗﾌﾃﾞｰﾀ(単独)_'!U27 -> 600 | G35: ='Ⅱｸﾞﾗﾌﾃﾞｰﾀ(単独)_'!BD27 -> 20 | H35: ='Ⅱｸﾞﾗﾌﾃﾞｰﾀ(単独)_'!BE27 -> 480 | O35: =HLOOKUP($F$22,$P$22:$T$35,14) -> 0 | Q35: 12： 700(kg/m3)≦s, a＜50(mm), 5.0(m)≦h
D36: ='Ⅱｸﾞﾗﾌﾃﾞｰﾀ(単独)_'!H28 -> 25 | E36: ='Ⅱｸﾞﾗﾌﾃﾞｰﾀ(単独)_'!U28 -> 600 | G36: ='Ⅱｸﾞﾗﾌﾃﾞｰﾀ(単独)_'!BD28 -> 27 | H36: ='Ⅱｸﾞﾗﾌﾃﾞｰﾀ(単独)_'!BE28 -> 600
O38: PC部材では，上限線を満足する場合でも粘性が高く振動締固め性が低下するため，事前のコンクリート性状の確認と施工上の対応策の検討が重要。（解説図2.5.38参照）
C46: ●圧送性確認
C48: ⑦ | D48: 荷卸しのスランプ | G48: JIS規定スランプ | I48: =H9 -> 8 | J48: (cm)
C50: ⑧ | D50: 圧送距離 | F50: 100 | G50: (m) | H50: =IF(F50<150,P52,IF(F50<300,Q52,IF(F50<500,R52,S52))) -> a： 150(m)未満
C52: ⑨ | D52: 材料条件 | F52: 4：Gmax=20・25(mm), 砕砂 | P52: a： 150(m)未満 | Q52: b： 150～300(m) | R52: c： 300～500(m) | S52: d： 500(m)以上
O53: =HLOOKUP($H$50,$P$52:$S$56,2) -> 1：Gmax=40(mm), 天然砂 | P53: 1：Gmax=40(mm), 天然砂 | Q53: 1：Gmax=40(mm), 天然砂 | R53: 1：Gmax=40(mm), 天然砂 | S53: 適用外！
D54: 下限線 | G54: 上限線 | O54: =HLOOKUP($H$50,$P$52:$S$56,3) -> 2：Gmax=40(mm), 砕砂 | P54: 2：Gmax=40(mm), 砕砂 | Q54: 2：Gmax=40(mm), 砕砂 | R54: 2：Gmax=40(mm), 砕砂
C55: ⑩ | D55: X | E55: Y | G55: X | H55: Y | O55: =HLOOKUP($H$50,$P$52:$S$56,4) -> 3：Gmax=20・25(mm), 天然砂 | P55: 3：Gmax=20・25(mm), 天然砂 | Q55: 3：Gmax=20・25(mm), 天然砂 | R55: 3：Gmax=20・25(mm), 天然砂
D56: ='Ⅱｸﾞﾗﾌﾃﾞｰﾀ(単独)_'!AU23 -> 7 | E56: ='Ⅱｸﾞﾗﾌﾃﾞｰﾀ(単独)_'!BA23 -> 500 | G56: 4 | H56: 375 | O56: =HLOOKUP($H$50,$P$52:$S$56,5) -> 4：Gmax=20・25(mm), 砕砂 | P56: 4：Gmax=20・25(mm), 砕砂 | Q56: 4：Gmax=20・25(mm), 砕砂 | R56: 4：Gmax=20・25(mm), 砕砂
D57: ='Ⅱｸﾞﾗﾌﾃﾞｰﾀ(単独)_'!AU24 -> 7 | E57: ='Ⅱｸﾞﾗﾌﾃﾞｰﾀ(単独)_'!BA24 -> 300 | G57: 5 | H57: 380
D58: ='Ⅱｸﾞﾗﾌﾃﾞｰﾀ(単独)_'!AU25 -> 8 | E58: ='Ⅱｸﾞﾗﾌﾃﾞｰﾀ(単独)_'!BA25 -> 292 | G58: 6 | H58: 385
D59: ='Ⅱｸﾞﾗﾌﾃﾞｰﾀ(単独)_'!AU26 -> 12 | E59: ='Ⅱｸﾞﾗﾌﾃﾞｰﾀ(単独)_'!BA26 -> 285 | G59: 8 | H59: 400
D60: ='Ⅱｸﾞﾗﾌﾃﾞｰﾀ(単独)_'!AU27 -> 16 | E60: ='Ⅱｸﾞﾗﾌﾃﾞｰﾀ(単独)_'!BA27 -> 282 | G60: 12 | H60: 430
D61: ='Ⅱｸﾞﾗﾌﾃﾞｰﾀ(単独)_'!AU28 -> 18 | E61: ='Ⅱｸﾞﾗﾌﾃﾞｰﾀ(単独)_'!BA28 -> 282 | G61: 15 | H61: 430
D62: ='Ⅱｸﾞﾗﾌﾃﾞｰﾀ(単独)_'!AU29 -> 18 | E62: ='Ⅱｸﾞﾗﾌﾃﾞｰﾀ(単独)_'!BA29 -> 282 | G62: 20 | H62: 430
D63: ='Ⅱｸﾞﾗﾌﾃﾞｰﾀ(単独)_'!AU30 -> 25 | E63: ='Ⅱｸﾞﾗﾌﾃﾞｰﾀ(単独)_'!BA30 -> 282 | G63: 25 | H63: 430
B75: コンクリートの配合確認シート （2/2） | K75: ケース名 | L75: =L3 -> 資料編WG
C77: ●細骨材率の確認
C79: ⑪ | D79: 荷卸しのスランプ | G79: JIS規定スランプ | I79: =H9 -> 8 | J79: (cm) | M79: 入力値
M80: リスト選択
C81: ⑫ | D81: 配合表の細骨材率 | I81: =F15 -> 44.7 | J81: (％) | M81: リンク表示
M82: 計算値
C83: ⑬ | D83: 配合表の水セメント比 | H83: W/C= | I83: =E15 -> 51.43769968 | J83: (％) | O83: W/C= | P83: =I83 -> 51.43769968 | Q83: ％（配合値）
O84: Gmax=40(mm)
C85: ⑭ | D85: 材料条件（粗骨材の最大寸法） | H85: Gmax=20・25(mm) | O85: Gmax=20・25(mm)
C88: ⑮
G106: スランプに応じた細骨材率の最小値の目安
C109: ●単位粗骨材量の確認
D111: 単位粗骨材かさ容積（m3/m3）＝ | I111: 単位粗骨材量（kg/m3） | M111: =100 -> 100
H112: 粗骨材の密度（g/cm3）×粗骨材の実績率（％） | M112: 1000
C114: ⑯ | D114: 単位粗骨材量 | H114: =J15 -> 1027 | I114: (kg/m3)
C116: ⑰ | D116: 粗骨材の密度 | H116: 2.61 | I116: (g/cm3)
C118: ⑱ | D118: 粗骨材の実積率 | H118: 62 | I118: (％)
C120: ⑲ | D120: 単位粗骨材かさ容積 | H120: =H114/H116/H118/10 -> 0.6346557904 | I120: (m3/m3)
O121: Gmax=40(mm)
C122: ⑳ | D122: 材料条件（粗骨材の最大寸法） | H122: Gmax=20(mm) | J122: （印刷用の表示のみ） | O122: Gmax=25(mm)
O123: Gmax=20(mm)
C125: 21.
G143: スランプに応じた粗骨材かさ容積の最大値の目安

Sheet Ⅱｸﾞﾗﾌﾃﾞｰﾀ（ﾘﾝｸ)
B1: 施工性能 | G1: 2 | H1: 3 | I1: 4 | J1: 5 | K1: 6 | L1: 7 | M1: 8 | N1: 9 | O1: 10 | P1: 11 | Q1: 12 | R1: 13 | AQ1: 運搬性能 | BC1: 上限線 | BD1: PC部材のみ変更
F2: 1： スラブ | G2: 1： h＜0.5(m), 任意に投入可能 | H2: 2： 0.5(m)≦h≦1.5(m), 任意に投入可能 | I2: 3： h≦3.0(m), 投入間隔2～3(m) | J2: 4： h≦3.0(m), 投入間隔3～4(m)
B3: 構造条件 | C3: ='Ⅱ-配合確認(Ⅰリンク）'!F22 -> 2： 柱 | F3: 2： 柱 | G3: 01： s＜700(kg/m3), 50(mm)≦a, h＜3.0(m) | H3: 02： s＜700(kg/m3), 50(mm)≦a, 3.0(m)≦h＜5.0(m) | I3: 03： s＜700(kg/m3), 50(mm)≦a, 5.0(m)≦h | J3: 04： s＜700(kg/m3), a＜50(mm), h＜3.0(m) | K3: 05： s＜700(kg/m3), a＜50(mm), 3.0(m)≦h＜5.0(m) | L3: 06： s＜700(kg/m3), a＜50(mm), 5.0(m)≦h | M3: 07： 700(kg/m3)≦s, 50(mm)≦a, h＜3.0(m) | N3: 08： 700(kg/m3)≦s, 50(mm)≦a, 3.0(m)≦h＜5.0(m) | O3: 09： 700(kg/m3)≦s, 50(mm)≦a, 5.0(m)≦h | P3: 10： 700(kg/m3)≦s, a＜50(mm), h＜3.0(m) | Q3: 11： 700(kg/m3)≦s, a＜50(mm), 3.0(m)≦h＜5.0(m) | R3: 12： 700(kg/m3)≦s, a＜50(mm), 5.0(m)≦h | AQ3: 圧送条件 | AR3: ='Ⅱ-配合確認(Ⅰリンク）'!H50 -> a： 150(m)未満 | AU3: a： 150(m)未満 | AV3: 1：Gmax=40(mm), 天然砂 | AW3: 2：Gmax=40(mm), 砕砂 | AX3: 3：Gmax=20・25(mm), 天然砂 | AY3: 4：Gmax=20・25(mm), 砕砂 | BC3: 施工条件 | BD3: ='Ⅱ-配合確認(Ⅰリンク）'!O24 -> 01： s＜700(kg/m3), 50(mm)≦a, h＜3.0(m)
B4: 施工条件 | C4: ='Ⅱ-配合確認(Ⅰリンク）'!F24 -> 01： s＜700(kg/m3), 50(mm)≦a, h＜3.0(m) | F4: 3： はり | G4: 1： 150(mm)≦a, h＜0.5(m) | H4: 2： 150(mm)≦a, 0.5(m)≦h＜1.5(m) | I4: 3： 150(mm)≦a, 1.5(m)≦h | J4: 4： 60(mm)≦a＜150(mm), h＜0.5(m) | K4: 5： 60(mm)≦a＜150(mm), 0.5(m)≦h＜1.5(m) | L4: 6： 60(mm)≦a＜150(mm), 1.5(m)≦h | M4: 7： a＜60(mm), h＜0.5(m) | N4: 8： a＜60(mm), 0.5(m)≦h＜1.5(m) | O4: 9： a＜60(mm), 1.5(m)≦h | AQ4: 材料条件 | AR4: ='Ⅱ-配合確認(Ⅰリンク）'!F52 -> 4：Gmax=20・25(mm), 砕砂 | AU4: b： 150～300(m) | AV4: 1：Gmax=40(mm), 天然砂 | AW4: 2：Gmax=40(mm), 砕砂 | AX4: 3：Gmax=20・25(mm), 天然砂 | AY4: 4：Gmax=20・25(mm), 砕砂
F5: 4： 壁 | G5: 01： s＜200(kg/m3), 100(mm)≦a, h＜3.0(m) | H5: 02： s＜200(kg/m3), 100(mm)≦a, 3.0(m)≦h＜5.0(m) | I5: 03： s＜200(kg/m3), a＜100(mm), h＜3.0(m) | J5: 04： s＜200(kg/m3), a＜100(mm), 3.0(m)≦h＜5.0(m) | K5: 05： 200(kg/m3)≦s＜350(kg/m3), 100(mm)≦a, h＜3.0(m) | L5: 06： 200(kg/m3)≦s＜350(kg/m3), 100(mm)≦a, 3.0(m)≦h＜5.0(m) | M5: 07： 200(kg/m3)≦s＜350(kg/m3), a＜100(mm), h＜3.0(m) | N5: 08： 200(kg/m3)≦s＜350(kg/m3), a＜100(mm), 3.0(m)≦h＜5.0(m) | O5: 09： s＜350(kg/m3), 5.0m≦h （aを問わず） | P5: 10： 350(kg/m3)≦s （a・hを問わず） | AU5: c： 300～500(m) | AV5: 1：Gmax=40(mm), 天然砂 | AW5: 2：Gmax=40(mm), 砕砂 | AX5: 3：Gmax=20・25(mm), 天然砂 | AY5: 4：Gmax=20・25(mm), 砕砂
F6: 5： PC定着部 | G6: 1： PC部材 | AU6: d： 500(m)以上
B8: X軸データ | O8: Y軸データ | AQ8: X軸データ | AW8: Y軸データ | BD8: X軸 | BF8: Y軸
B9: =VLOOKUP($C$3,$F$2:$R$6,G1) -> 01： s＜700(kg/m3), 50(mm)≦a, h＜3.0(m) | C9: =VLOOKUP($C$3,$F$2:$R$6,H1) -> 02： s＜700(kg/m3), 50(mm)≦a, 3.0(m)≦h＜5.0(m) | D9: =VLOOKUP($C$3,$F$2:$R$6,I1) -> 03： s＜700(kg/m3), 50(mm)≦a, 5.0(m)≦h | E9: =VLOOKUP($C$3,$F$2:$R$6,J1) -> 04： s＜700(kg/m3), a＜50(mm), h＜3.0(m) | F9: =VLOOKUP($C$3,$F$2:$R$6,K1) -> 05： s＜700(kg/m3), a＜50(mm), 3.0(m)≦h＜5.0(m) | G9: =VLOOKUP($C$3,$F$2:$R$6,L1) -> 06： s＜700(kg/m3), a＜50(mm), 5.0(m)≦h | H9: 07： 700(kg/m3)≦s, 50(mm)≦a, h＜3.0(m) | I9: 08： 700(kg/m3)≦s, 50(mm)≦a, 3.0(m)≦h＜5.0(m) | J9: =VLOOKUP($C$3,$F$2:$R$6,O1) -> 09： 700(kg/m3)≦s, 50(mm)≦a, 5.0(m)≦h | K9: =VLOOKUP($C$3,$F$2:$R$6,P1) -> 10： 700(kg/m3)≦s, a＜50(mm), h＜3.0(m) | L9: 11： 700(kg/m3)≦s, a＜50(mm), 3.0(m)≦h＜5.0(m) | M9: 12： 700(kg/m3)≦s, a＜50(mm), 5.0(m)≦h | O9: =VLOOKUP($C$3,$F$2:$R$6,G1) -> 01： s＜700(kg/m3), 50(mm)≦a, h＜3.0(m) | P9: =VLOOKUP($C$3,$F$2:$R$6,H1) -> 02： s＜700(kg/m3), 50(mm)≦a, 3.0(m)≦h＜5.0(m) | Q9: =VLOOKUP($C$3,$F$2:$R$6,I1) -> 03： s＜700(kg/m3), 50(mm)≦a, 5.0(m)≦h | R9: 04： s＜700(kg/m3), a＜50(mm), h＜3.0(m) | S9: 05： s＜700(kg/m3), a＜50(mm), 3.0(m)≦h＜5.0(m) | T9: 06： s＜700(kg/m3), a＜50(mm), 5.0(m)≦h | U9: 07： 700(kg/m3)≦s, 50(mm)≦a, h＜3.0(m) | V9: 08： 700(kg/m3)≦s, 50(mm)≦a, 3.0(m)≦h＜5.0(m) | W9: 09： 700(kg/m3)≦s, 50(mm)≦a, 5.0(m)≦h | X9: 10： 700(kg/m3)≦s, a＜50(mm), h＜3.0(m) | Y9: 11： 700(kg/m3)≦s, a＜50(mm), 3.0(m)≦h＜5.0(m) | Z9: 12： 700(kg/m3)≦s, a＜50(mm), 5.0(m)≦h | AQ9: =VLOOKUP($AR$3,$AU$3:$AZ$6,2) -> 1：Gmax=40(mm), 天然砂 | AR9: =VLOOKUP($AR$3,$AU$3:$AZ$6,3) -> 2：Gmax=40(mm), 砕砂 | AS9: =VLOOKUP($AR$3,$AU$3:$AZ$6,4) -> 3：Gmax=20・25(mm), 天然砂 | AT9: =VLOOKUP($AR$3,$AU$3:$AZ$6,5) -> 4：Gmax=20・25(mm), 砕砂 | AW9: =VLOOKUP($AR$3,$AU$3:$AZ$6,2) -> 1：Gmax=40(mm), 天然砂 | AX9: =VLOOKUP($AR$3,$AU$3:$AZ$6,3) -> 2：Gmax=40(mm), 砕砂 | AY9: =VLOOKUP($AR$3,$AU$3:$AZ$6,4) -> 3：Gmax=20・25(mm), 天然砂 | AZ9: =VLOOKUP($AR$3,$AU$3:$AZ$6,5) -> 4：Gmax=20・25(mm), 砕砂 | BD9: スラブ | BE9: PC部材 | BF9: スラブ | BG9: PC部材
B10: =HLOOKUP($C$3,$B$21:$G$142,AB10) -> 5 | C10: =HLOOKUP($C$3,$B$21:$G$142,AC10) -> 7 | D10: =HLOOKUP($C$3,$B$21:$G$142,AD10) -> 12 | E10: =HLOOKUP($C$3,$B$21:$G$142,AE10) -> 7 | F10: =HLOOKUP($C$3,$B$21:$G$142,AF10) -> 9 | G10: =HLOOKUP($C$3,$B$21:$G$142,AG10) -> 15 | H10: =HLOOKUP($C$3,$B$21:$G$142,AH10) -> 7 | I10: =HLOOKUP($C$3,$B$21:$G$142,AI10) -> 9 | J10: =HLOOKUP($C$3,$B$21:$G$142,AJ10) -> 15 | K10: =HLOOKUP($C$3,$B$21:$G$142,AK10) -> 9 | L10: =HLOOKUP($C$3,$B$21:$G$142,AL10) -> 12 | M10: =HLOOKUP($C$3,$B$21:$G$142,AM10) -> 15 | O10: =HLOOKUP($C$3,$O$21:$T$142,AB10) -> 580 | P10: =HLOOKUP($C$3,$O$21:$T$142,AC10) -> 580 | Q10: =HLOOKUP($C$3,$O$21:$T$142,AD10) -> 580 | R10: =HLOOKUP($C$3,$O$21:$T$142,AE10) -> 580 | S10: =HLOOKUP($C$3,$O$21:$T$142,AF10) -> 580 | T10: =HLOOKUP($C$3,$O$21:$T$142,AG10) -> 580 | U10: =HLOOKUP($C$3,$O$21:$T$142,AH10) -> 600 | V10: =HLOOKUP($C$3,$O$21:$T$142,AI10) -> 600 | W10: =HLOOKUP($C$3,$O$21:$T$142,AJ10) -> 600 | X10: =HLOOKUP($C$3,$O$21:$T$142,AK10) -> 600 | Y10: =HLOOKUP($C$3,$O$21:$T$142,AL10) -> 600 | Z10: =HLOOKUP($C$3,$O$21:$T$142,AM10) -> 600 | AB10: 3 | AC10: 13 | AD10: 23 | AE10: 33 | AF10: 43 | AG10: 53 | AH10: 63 | AI10: 73 | AJ10: 83 | AK10: 93 | AL10: 103 | AM10: 113 | AQ10: =HLOOKUP($AR$3,$AQ$21:$AS$62,AB10) -> 8 | AR10: 8 | AS10: 6 | AT10: 7 | AW10: =HLOOKUP($AR$3,$AW$21:$AY$62,AB10) -> 500 | AX10: 500 | AY10: 500 | AZ10: 500 | BD10: ='スラブ(グラフ)'!P7 -> 3 | BE10: ='PC部材(グラフ)'!H6 -> 3 | BF10: ='スラブ(グラフ)'!Q7 -> 200 | BG10: ='PC部材(グラフ)'!I6 -> 370
B11: =HLOOKUP($C$3,$B$21:$G$142,AB11) -> 5 | C11: =HLOOKUP($C$3,$B$21:$G$142,AC11) -> 7 | D11: 12 | E11: 7 | F11: =HLOOKUP($C$3,$B$21:$G$142,AF11) -> 9 | G11: 15 | H11: 7 | I11: 9 | J11: 15 | K11: 9 | L11: 12 | M11: 15 | O11: =HLOOKUP($C$3,$O$21:$T$142,AB11) -> 287 | P11: =HLOOKUP($C$3,$O$21:$T$142,AC11) -> 275 | Q11: =HLOOKUP($C$3,$O$21:$T$142,AD11) -> 260 | R11: 310 | S11: 300 | T11: 290 | U11: 307 | V11: 293 | W11: 280 | X11: 327 | Y11: 307 | Z11: 320 | AB11: 4 | AC11: 14 | AD11: 24 | AE11: 34 | AF11: 44 | AG11: 54 | AH11: 64 | AI11: 74 | AJ11: 84 | AK11: 94 | AL11: 104 | AM11: 114 | AQ11: 8 | AR11: 8 | AS11: 6 | AT11: 7 | AW11: 260 | AX11: 285 | AY11: 295 | AZ11: 300 | BD11: ='スラブ(グラフ)'!P8 -> 6 | BE11: ='PC部材(グラフ)'!H7 -> 3 | BF11: ='スラブ(グラフ)'!Q8 -> 350 | BG11: ='PC部材(グラフ)'!I7 -> 370
B12: 10 | C12: 10 | D12: 14 | E12: 12 | F12: =HLOOKUP($C$3,$B$21:$G$142,AF12) -> 12 | G12: 18 | H12: 11 | I12: 11 | J12: 15 | K12: 13 | L12: 13 | M12: 15 | O12: 260 | P12: 260 | Q12: 260 | R12: 280 | S12: 280 | T12: 320 | U12: 280 | V12: 280 | W12: 280 | X12: 300 | Y12: 300 | Z12: 300 | AB12: 5 | AC12: 15 | AD12: 25 | AE12: 35 | AF12: 45 | AG12: 55 | AH12: 65 | AI12: 75 | AJ12: 85 | AK12: 95 | AL12: 105 | AM12: 115 | AQ12: 12 | AR12: 12 | AS12: 8 | AT12: 8 | AW12: 255 | AX12: 280 | AY12: 275 | AZ12: 292 | BD12: ='スラブ(グラフ)'!P9 -> 8 | BE12: ='PC部材(グラフ)'!H8 -> 8 | BF12: ='スラブ(グラフ)'!Q9 -> 400 | BG12: ='PC部材(グラフ)'!I8 -> 420
B13: 14 | C13: 14 | D13: 14 | E13: 14 | F13: =HLOOKUP($C$3,$B$21:$G$142,AF13) -> 14 | G13: 18 | H13: 15 | I13: 15 | J13: 15 | K13: 15 | L13: 15 | M13: 15 | O13: 260 | P13: 260 | Q13: 260 | R13: 280 | S13: 280 | T13: 320 | U13: 280 | V13: 280 | W13: 280 | X13: 300 | Y13: 300 | Z13: 300 | AB13: 6 | AC13: 16 | AD13: 26 | AE13: 36 | AF13: 46 | AG13: 56 | AH13: 66 | AI13: 76 | AJ13: 86 | AK13: 96 | AL13: 106 | AM13: 116 | AQ13: 16 | AR13: 16 | AS13: 12 | AT13: 12 | AW13: 250 | AX13: 275 | AY13: 270 | AZ13: 285 | BD13: ='スラブ(グラフ)'!P10 -> 15 | BE13: ='PC部材(グラフ)'!H9 -> 15 | BF13: ='スラブ(グラフ)'!Q10 -> 440 | BG13: ='PC部材(グラフ)'!I9 -> 455
B14: 19 | C14: 19 | D14: 19 | E14: 18 | F14: =HLOOKUP($C$3,$B$21:$G$142,AF14) -> 18 | G14: 18 | H14: 20 | I14: 20 | J14: 20 | K14: 19 | L14: 19 | M14: 19 | O14: 300 | P14: 300 | Q14: 300 | R14: 320 | S14: 320 | T14: 320 | U14: 320 | V14: 320 | W14: 320 | X14: 340 | Y14: 340 | Z14: 340 | AB14: 7 | AC14: 17 | AD14: 27 | AE14: 37 | AF14: 47 | AG14: 57 | AH14: 67 | AI14: 77 | AJ14: 87 | AK14: 97 | AL14: 107 | AM14: 117 | AQ14: 18 | AR14: 18 | AS14: 16 | AT14: 16 | AW14: 250 | AX14: 275 | AY14: 265 | AZ14: 282 | BD14: ='スラブ(グラフ)'!P11 -> 20 | BE14: ='PC部材(グラフ)'!H10 -> 20 | BF14: ='スラブ(グラフ)'!Q11 -> 480 | BG14: ='PC部材(グラフ)'!I10 -> 480
B15: 24 | C15: 24 | D15: 24 | E15: 24 | F15: =HLOOKUP($C$3,$B$21:$G$142,AF15) -> 24 | G15: 24 | H15: 25 | I15: 25 | J15: 25 | K15: 25 | L15: 25 | M15: 25 | O15: 580 | P15: 580 | Q15: 580 | R15: 580 | S15: 580 | T15: 580 | U15: 600 | V15: 600 | W15: 600 | X15: 600 | Y15: 600 | Z15: 600 | AB15: 8 | AC15: 18 | AD15: 28 | AE15: 38 | AF15: 48 | AG15: 58 | AH15: 68 | AI15: 78 | AJ15: 88 | AK15: 98 | AL15: 108 | AM15: 118 | AQ15: 20 | AR15: 20 | AS15: 18 | AT15: 18 | AW15: 250 | AX15: 275 | AY15: 265 | AZ15: 282 | BD15: ='スラブ(グラフ)'!P12 -> 27 | BE15: ='PC部材(グラフ)'!H11 -> 27 | BF15: ='スラブ(グラフ)'!Q12 -> 600 | BG15: ='PC部材(グラフ)'!I11 -> 600
B16: 1 | C16: 0 | D16: 0 | E16: 0 | F16: 0 | G16: 0 | H16: 0 | I16: 0 | J16: 0 | K16: 0 | L16: 0 | M16: 0 | O16: 0 | P16: 0 | Q16: 0 | R16: 0 | S16: 0 | T16: 0 | U16: 0 | V16: 0 | W16: 0 | X16: 0 | Y16: 0 | Z16: 0 | AB16: 9 | AC16: 19 | AD16: 29 | AE16: 39 | AF16: 49 | AG16: 59 | AH16: 69 | AI16: 79 | AJ16: 89 | AK16: 99 | AL16: 109 | AM16: 119 | AQ16: 20 | AR16: 20 | AS16: 18 | AT16: 18 | AW16: 250 | AX16: 275 | AY16: 265 | AZ16: 282
B17: 0 | C17: 0 | D17: 0 | E17: 0 | F17: 0 | G17: 0 | H17: 0 | I17: 0 | J17: 0 | K17: 0 | L17: 0 | M17: 0 | O17: 0 | P17: 0 | Q17: 0 | R17: 0 | S17: 0 | T17: 0 | U17: 0 | V17: 0 | W17: 0 | X17: 0 | Y17: 0 | Z17: 0 | AB17: 10 | AC17: 20 | AD17: 30 | AE17: 40 | AF17: 50 | AG17: 60 | AH17: 70 | AI17: 80 | AJ17: 90 | AK17: 100 | AL17: 110 | AM17: 120 | AQ17: 25 | AR17: 25 | AS17: 25 | AT17: 25 | AW17: 250 | AX17: 275 | AY17: 265 | AZ17: 282
B20: X軸データ | O20: Y軸データ | AQ20: X軸データ | AW20: Y軸データ
B21: 1： スラブ | C21: 2： 柱 | D21: 3： はり | E21: 4： 壁 | F21: 5： PC定着部 | O21: 1： スラブ | P21: 2： 柱 | Q21: 3： はり | R21: 4： 壁 | S21: 5： PC定着部 | AQ21: a： 150(m)未満 | AR21: b： 150～300(m) | AS21: c： 300～500(m) | AT21: d： 500(m)以上 | AW21: a： 150(m)未満 | AX21: b： 150～300(m) | AY21: c： 300～500(m) | AZ21: d： 500(m)以上
A23: 1 | B23: ='スラブ(グラフ)'!D7 -> 5 | C23: ='柱(グラフ)'!D8 -> 5 | D23: ='はり(グラフ)'!D7 -> 5 | E23: ='壁(グラフ)'!D8 -> 8 | F23: ='PC部材(グラフ)'!D6 -> 8 | H23: =HLOOKUP($C$4,$B$9:$M$17,AB23) -> 5 | N23: 1 | O23: ='スラブ(グラフ)'!E7 -> 600 | P23: ='柱(グラフ)'!E8 -> 580 | Q23: ='はり(グラフ)'!E7 -> 600 | R23: ='壁(グラフ)'!E8 -> 600 | S23: ='PC部材(グラフ)'!E6 -> 640 | U23: =HLOOKUP($C$4,$O$9:$Z$17,AB23) -> 580 | AB23: 2 | AQ23: ='ポンプ150m未満(グラフ)'!D5 -> 8 | AR23: ='ポンプ150～300m(グラフ)'!D5 -> 12 | AU23: =HLOOKUP($AR$4,$AQ$9:$AT$16,AB23) -> 7 | AW23: ='ポンプ150m未満(グラフ)'!E5 -> 500 | AX23: ='ポンプ150～300m(グラフ)'!E5 -> 500 | BA23: =HLOOKUP($AR$4,$AW$9:$AZ$17,AB23) -> 500 | BD23: =IF($BD$3="1： PC部材",BE10,BD10) -> 3 | BE23: =IF($BD$3="1： PC部材",BG10,BF10) -> 200
B24: ='スラブ(グラフ)'!D8 -> 5 | C24: ='柱(グラフ)'!D9 -> 5 | D24: ='はり(グラフ)'!D8 -> 5 | E24: ='壁(グラフ)'!D9 -> 8 | F24: ='PC部材(グラフ)'!D7 -> 8 | H24: 5 | O24: ='スラブ(グラフ)'!E8 -> 250 | P24: ='柱(グラフ)'!E9 -> 287 | Q24: ='はり(グラフ)'!E8 -> 300 | R24: ='壁(グラフ)'!E9 -> 273 | S24: ='PC部材(グラフ)'!E7 -> 350 | U24: =HLOOKUP($C$4,$O$9:$Z$17,AB24) -> 287 | AB24: 3 | AQ24: ='ポンプ150m未満(グラフ)'!D6 -> 8 | AR24: ='ポンプ150～300m(グラフ)'!D6 -> 12 | AU24: 7 | AW24: ='ポンプ150m未満(グラフ)'!E6 -> 260 | AX24: ='ポンプ150～300m(グラフ)'!E6 -> 295 | BA24: =HLOOKUP($AR$4,$AW$9:$AZ$17,AB24) -> 300 | BD24: =IF($BD$3="1： PC部材",BE11,BD11) -> 6 | BE24: =IF($BD$3="1： PC部材",BG11,BF11) -> 350
B25: ='スラブ(グラフ)'!D9 -> 8 | C25: ='柱(グラフ)'!D10 -> 10 | D25: ='はり(グラフ)'!D9 -> 8 | E25: ='壁(グラフ)'!D10 -> 10 | F25: ='PC部材(グラフ)'!D8 -> 18 | H25: 10 | O25: ='スラブ(グラフ)'!E9 -> 250 | P25: ='柱(グラフ)'!E10 -> 260 | Q25: ='はり(グラフ)'!E9 -> 270 | R25: ='壁(グラフ)'!E10 -> 260 | S25: ='PC部材(グラフ)'!E8 -> 350 | U25: 260 | AB25: 4 | AQ25: ='ポンプ150m未満(グラフ)'!D7 -> 12 | AR25: ='ポンプ150～300m(グラフ)'!D7 -> 16 | AU25: 8 | AW25: ='ポンプ150m未満(グラフ)'!E7 -> 255 | AX25: ='ポンプ150～300m(グラフ)'!E7 -> 285 | BA25: 292 | BD25: 8 | BE25: 400
B26: ='スラブ(グラフ)'!D10 -> 18 | C26: ='柱(グラフ)'!D11 -> 14 | D26: ='はり(グラフ)'!D10 -> 15 | E26: ='壁(グラフ)'!D11 -> 15 | F26: ='PC部材(グラフ)'!D9 -> 20 | H26: 14 | O26: ='スラブ(グラフ)'!E10 -> 280 | P26: ='柱(グラフ)'!E11 -> 260 | Q26: ='はり(グラフ)'!E10 -> 270 | R26: ='壁(グラフ)'!E11 -> 260 | S26: ='PC部材(グラフ)'!E9 -> 400 | U26: 260 | AB26: 5 | AQ26: ='ポンプ150m未満(グラフ)'!D8 -> 16 | AR26: ='ポンプ150～300m(グラフ)'!D8 -> 18 | AU26: 12 | AW26: ='ポンプ150m未満(グラフ)'!E8 -> 250 | AX26: ='ポンプ150～300m(グラフ)'!E8 -> 280 | BA26: 285 | BD26: 15 | BE26: 440
B27: ='スラブ(グラフ)'!D11 -> 25 | C27: ='柱(グラフ)'!D12 -> 19 | D27: ='はり(グラフ)'!D11 -> 18 | E27: ='壁(グラフ)'!D12 -> 19 | F27: ='PC部材(グラフ)'!D10 -> 23 | H27: 19 | O27: ='スラブ(グラフ)'!E11 -> 600 | P27: ='柱(グラフ)'!E12 -> 300 | Q27: ='はり(グラフ)'!E11 -> 280 | R27: ='壁(グラフ)'!E12 -> 280 | S27: ='PC部材(グラフ)'!E10 -> 480 | U27: 300 | AB27: 6 | AQ27: ='ポンプ150m未満(グラフ)'!D9 -> 18 | AR27: ='ポンプ150～300m(グラフ)'!D9 -> 20 | AU27: 16 | AW27: ='ポンプ150m未満(グラフ)'!E9 -> 250 | AX27: ='ポンプ150～300m(グラフ)'!E9 -> 280 | BA27: 282 | BD27: 20 | BE27: 480
B28: ='スラブ(グラフ)'!D12 -> 25 | C28: ='柱(グラフ)'!D13 -> 24 | D28: ='はり(グラフ)'!D12 -> 25 | E28: ='壁(グラフ)'!D13 -> 25 | F28: ='PC部材(グラフ)'!D11 -> 27 | H28: 24 | O28: ='スラブ(グラフ)'!E12 -> 600 | P28: ='柱(グラフ)'!E13 -> 580 | Q28: ='はり(グラフ)'!E12 -> 600 | R28: ='壁(グラフ)'!E13 -> 600 | S28: ='PC部材(グラフ)'!E11 -> 640 | U28: 580 | AB28: 7 | AQ28: ='ポンプ150m未満(グラフ)'!D10 -> 20 | AR28: ='ポンプ150～300m(グラフ)'!D10 -> 20 | AU28: 18 | AW28: ='ポンプ150m未満(グラフ)'!E10 -> 250 | AX28: ='ポンプ150～300m(グラフ)'!E10 -> 280 | BA28: 282 | BD28: 27 | BE28: 600
B29: ='スラブ(グラフ)'!D13 -> 0 | C29: ='柱(グラフ)'!D30 -> 1 | D29: ='はり(グラフ)'!D13 -> 0 | E29: ='壁(グラフ)'!D14 -> 0 | F29: ='PC部材(グラフ)'!D12 -> 0 | H29: 1 | O29: ='スラブ(グラフ)'!E13 -> 0 | P29: ='柱(グラフ)'!E14 -> 0 | Q29: ='はり(グラフ)'!E13 -> 0 | R29: ='壁(グラフ)'!E14 -> 0 | S29: ='PC部材(グラフ)'!E12 -> 0 | U29: 0 | AB29: 8 | AQ29: ='ポンプ150m未満(グラフ)'!D11 -> 20 | AR29: ='ポンプ150～300m(グラフ)'!D11 -> 20 | AU29: 18 | AW29: ='ポンプ150m未満(グラフ)'!E11 -> 250 | AX29: ='ポンプ150～300m(グラフ)'!E11 -> 280 | BA29: 282
B30: ='スラブ(グラフ)'!B16 -> 0 | C30: ='柱(グラフ)'!D31 -> 0 | D30: ='はり(グラフ)'!D14 -> 0 | E30: ='壁(グラフ)'!D15 -> 0 | F30: ='PC部材(グラフ)'!D13 -> 0 | H30: 0 | O30: ='スラブ(グラフ)'!C16 -> 0 | P30: ='柱(グラフ)'!E15 -> 0 | Q30: ='はり(グラフ)'!E14 -> 0 | R30: ='壁(グラフ)'!E15 -> 0 | S30: ='PC部材(グラフ)'!E13 -> 0 | U30: 0 | AB30: 9 | AQ30: ='ポンプ150m未満(グラフ)'!D12 -> 25 | AR30: ='ポンプ150～300m(グラフ)'!D12 -> 25 | AU30: =HLOOKUP($AR$4,$AQ$9:$AT$17,AB30) -> 25 | AW30: ='ポンプ150m未満(グラフ)'!E12 -> 250 | AX30: ='ポンプ150～300m(グラフ)'!E12 -> 280 | BA30: 282
A33: 2 | B33: ='スラブ(グラフ)'!G7 -> 7 | C33: ='柱(グラフ)'!G8 -> 7 | D33: ='はり(グラフ)'!G7 -> 6 | E33: ='壁(グラフ)'!G8 -> 10 | N33: 2 | O33: ='スラブ(グラフ)'!H7 -> 600 | P33: ='柱(グラフ)'!H8 -> 580 | Q33: ='はり(グラフ)'!H7 -> 600 | R33: ='壁(グラフ)'!H8 -> 600 | AQ33: ='ポンプ150m未満(グラフ)'!G5 -> 8 | AR33: ='ポンプ150～300m(グラフ)'!G5 -> 12 | AW33: ='ポンプ150m未満(グラフ)'!H5 -> 500 | AX33: ='ポンプ150～300m(グラフ)'!H5 -> 500
B34: ='スラブ(グラフ)'!G8 -> 7 | C34: ='柱(グラフ)'!G9 -> 7 | D34: ='はり(グラフ)'!G8 -> 6 | E34: ='壁(グラフ)'!G9 -> 10 | O34: ='スラブ(グラフ)'!H8 -> 250 | P34: ='柱(グラフ)'!H9 -> 275 | Q34: ='はり(グラフ)'!H8 -> 290 | R34: ='壁(グラフ)'!H9 -> 260 | AQ34: ='ポンプ150m未満(グラフ)'!G6 -> 8 | AR34: ='ポンプ150～300m(グラフ)'!G6 -> 12 | AW34: ='ポンプ150m未満(グラフ)'!H6 -> 285 | AX34: ='ポンプ150～300m(グラフ)'!H6 -> 325
B35: ='スラブ(グラフ)'!G9 -> 8 | C35: ='柱(グラフ)'!G10 -> 10 | D35: ='はり(グラフ)'!G9 -> 8 | E35: ='壁(グラフ)'!G10 -> 10 | O35: ='スラブ(グラフ)'!H9 -> 250 | P35: ='柱(グラフ)'!H10 -> 260 | Q35: ='はり(グラフ)'!H9 -> 270 | R35: ='壁(グラフ)'!H10 -> 260 | AQ35: ='ポンプ150m未満(グラフ)'!G7 -> 12 | AR35: ='ポンプ150～300m(グラフ)'!G7 -> 16 | AW35: ='ポンプ150m未満(グラフ)'!H7 -> 280 | AX35: ='ポンプ150～300m(グラフ)'!H7 -> 315
B36: ='スラブ(グラフ)'!G10 -> 18 | C36: ='柱(グラフ)'!G11 -> 14 | D36: ='はり(グラフ)'!G10 -> 15 | E36: ='壁(グラフ)'!G11 -> 15 | O36: ='スラブ(グラフ)'!H10 -> 280 | P36: ='柱(グラフ)'!H11 -> 260 | Q36: ='はり(グラフ)'!H10 -> 270 | R36: ='壁(グラフ)'!H11 -> 260 | AQ36: ='ポンプ150m未満(グラフ)'!G8 -> 16 | AR36: ='ポンプ150～300m(グラフ)'!G8 -> 18 | AW36: ='ポンプ150m未満(グラフ)'!H8 -> 275 | AX36: ='ポンプ150～300m(グラフ)'!H8 -> 310
B37: ='スラブ(グラフ)'!G11 -> 25 | C37: ='柱(グラフ)'!G12 -> 19 | D37: ='はり(グラフ)'!G11 -> 18 | E37: ='壁(グラフ)'!G12 -> 19 | O37: ='スラブ(グラフ)'!H11 -> 600 | P37: ='柱(グラフ)'!H12 -> 300 | Q37: ='はり(グラフ)'!H11 -> 280 | R37: ='壁(グラフ)'!H12 -> 280 | AQ37: ='ポンプ150m未満(グラフ)'!G9 -> 18 | AR37: ='ポンプ150～300m(グラフ)'!G9 -> 20 | AW37: ='ポンプ150m未満(グラフ)'!H9 -> 275 | AX37: ='ポンプ150～300m(グラフ)'!H9 -> 310
B38: ='スラブ(グラフ)'!G12 -> 25 | C38: ='柱(グラフ)'!G13 -> 24 | D38: ='はり(グラフ)'!G12 -> 25 | E38: ='壁(グラフ)'!G13 -> 25 | O38: ='スラブ(グラフ)'!H12 -> 600 | P38: ='柱(グラフ)'!H13 -> 580 | Q38: ='はり(グラフ)'!H12 -> 600 | R38: ='壁(グラフ)'!H13 -> 600 | AQ38: ='ポンプ150m未満(グラフ)'!G10 -> 20 | AR38: ='ポンプ150～300m(グラフ)'!G10 -> 20 | AW38: ='ポンプ150m未満(グラフ)'!H10 -> 275 | AX38: ='ポンプ150～300m(グラフ)'!H10 -> 310
B39: ='スラブ(グラフ)'!G13 -> 0 | C39: ='柱(グラフ)'!G30 -> 0 | D39: ='はり(グラフ)'!G13 -> 0 | E39: ='壁(グラフ)'!G14 -> 0 | O39: ='スラブ(グラフ)'!H13 -> 0 | P39: ='柱(グラフ)'!H14 -> 0 | Q39: ='はり(グラフ)'!H13 -> 0 | R39: ='壁(グラフ)'!H14 -> 0 | AQ39: ='ポンプ150m未満(グラフ)'!G11 -> 20 | AR39: ='ポンプ150～300m(グラフ)'!G11 -> 20 | AW39: ='ポンプ150m未満(グラフ)'!H11 -> 275 | AX39: ='ポンプ150～300m(グラフ)'!H11 -> 310
B40: ='スラブ(グラフ)'!E16 -> 0 | C40: ='柱(グラフ)'!G31 -> 0 | D40: ='はり(グラフ)'!G14 -> 0 | E40: ='壁(グラフ)'!G15 -> 0 | O40: ='スラブ(グラフ)'!F16 -> 0 | P40: ='柱(グラフ)'!H15 -> 0 | Q40: ='はり(グラフ)'!H14 -> 0 | R40: ='壁(グラフ)'!H15 -> 0 | AQ40: ='ポンプ150m未満(グラフ)'!G12 -> 25 | AR40: ='ポンプ150～300m(グラフ)'!G12 -> 25 | AW40: ='ポンプ150m未満(グラフ)'!H12 -> 275 | AX40: ='ポンプ150～300m(グラフ)'!H12 -> 310
A43: 3 | B43: ='スラブ(グラフ)'!J7 -> 10 | C43: ='柱(グラフ)'!J8 -> 12 | D43: ='はり(グラフ)'!J7 -> 8 | E43: ='壁(グラフ)'!K8 -> 10 | N43: 3 | O43: ='スラブ(グラフ)'!K7 -> 600 | P43: ='柱(グラフ)'!K8 -> 580 | Q43: ='はり(グラフ)'!K7 -> 600 | R43: ='壁(グラフ)'!L8 -> 600 | AQ43: ='ポンプ150m未満(グラフ)'!P5 -> 6 | AR43: ='ポンプ150～300m(グラフ)'!P5 -> 10 | AS43: ='ポンプ300～500m(グラフ)'!D5 -> 15 | AW43: ='ポンプ150m未満(グラフ)'!Q5 -> 500 | AX43: ='ポンプ150～300m(グラフ)'!Q5 -> 500 | AY43: ='ポンプ300～500m(グラフ)'!E5 -> 500
B44: ='スラブ(グラフ)'!J8 -> 10 | C44: ='柱(グラフ)'!J9 -> 12 | D44: ='はり(グラフ)'!J8 -> 8 | E44: ='壁(グラフ)'!K9 -> 10 | O44: ='スラブ(グラフ)'!K8 -> 253 | P44: ='柱(グラフ)'!K9 -> 260 | Q44: ='はり(グラフ)'!K8 -> 270 | R44: ='壁(グラフ)'!L9 -> 295 | AQ44: ='ポンプ150m未満(グラフ)'!P6 -> 6 | AR44: ='ポンプ150～300m(グラフ)'!P6 -> 10 | AS44: ='ポンプ300～500m(グラフ)'!D6 -> 15 | AW44: ='ポンプ150m未満(グラフ)'!Q6 -> 295 | AX44: ='ポンプ150～300m(グラフ)'!Q6 -> 315 | AY44: ='ポンプ300～500m(グラフ)'!E6 -> 330
B45: ='スラブ(グラフ)'!J9 -> 12 | C45: ='柱(グラフ)'!J10 -> 14 | D45: ='はり(グラフ)'!J9 -> 8 | E45: ='壁(グラフ)'!K10 -> 12 | O45: ='スラブ(グラフ)'!K9 -> 260 | P45: ='柱(グラフ)'!K10 -> 260 | Q45: ='はり(グラフ)'!K9 -> 270 | R45: ='壁(グラフ)'!L10 -> 280 | AQ45: ='ポンプ150m未満(グラフ)'!P7 -> 8 | AR45: ='ポンプ150～300m(グラフ)'!P7 -> 12 | AS45: ='ポンプ300～500m(グラフ)'!D7 -> 18 | AW45: ='ポンプ150m未満(グラフ)'!Q7 -> 275 | AX45: ='ポンプ150～300m(グラフ)'!Q7 -> 310 | AY45: ='ポンプ300～500m(グラフ)'!E7 -> 323
B46: ='スラブ(グラフ)'!J10 -> 18 | C46: ='柱(グラフ)'!J11 -> 14 | D46: ='はり(グラフ)'!J10 -> 15 | E46: ='壁(グラフ)'!K11 -> 15 | O46: ='スラブ(グラフ)'!K10 -> 280 | P46: ='柱(グラフ)'!K11 -> 260 | Q46: ='はり(グラフ)'!K10 -> 270 | R46: ='壁(グラフ)'!L11 -> 280 | AQ46: ='ポンプ150m未満(グラフ)'!P8 -> 12 | AR46: ='ポンプ150～300m(グラフ)'!P8 -> 16 | AS46: ='ポンプ300～500m(グラフ)'!D8 -> 20 | AW46: ='ポンプ150m未満(グラフ)'!Q8 -> 270 | AX46: ='ポンプ150～300m(グラフ)'!Q8 -> 300 | AY46: ='ポンプ300～500m(グラフ)'!E8 -> 317
B47: ='スラブ(グラフ)'!J11 -> 25 | C47: ='柱(グラフ)'!J12 -> 19 | D47: ='はり(グラフ)'!J11 -> 18 | E47: ='壁(グラフ)'!K12 -> 18 | O47: ='スラブ(グラフ)'!K11 -> 600 | P47: ='柱(グラフ)'!K12 -> 300 | Q47: ='はり(グラフ)'!K11 -> 280 | R47: ='壁(グラフ)'!L12 -> 300 | AQ47: ='ポンプ150m未満(グラフ)'!P9 -> 16 | AR47: ='ポンプ150～300m(グラフ)'!P9 -> 18 | AS47: ='ポンプ300～500m(グラフ)'!D9 -> 22 | AW47: ='ポンプ150m未満(グラフ)'!Q9 -> 265 | AX47: ='ポンプ150～300m(グラフ)'!Q9 -> 295 | AY47: ='ポンプ300～500m(グラフ)'!E9 -> 317
B48: ='スラブ(グラフ)'!J12 -> 25 | C48: ='柱(グラフ)'!J13 -> 24 | D48: ='はり(グラフ)'!J12 -> 25 | E48: ='壁(グラフ)'!K13 -> 25 | O48: ='スラブ(グラフ)'!K12 -> 600 | P48: ='柱(グラフ)'!K13 -> 580 | Q48: ='はり(グラフ)'!K12 -> 600 | R48: ='壁(グラフ)'!L13 -> 600 | AQ48: ='ポンプ150m未満(グラフ)'!P10 -> 18 | AR48: ='ポンプ150～300m(グラフ)'!P10 -> 20 | AS48: ='ポンプ300～500m(グラフ)'!D10 -> 25 | AW48: ='ポンプ150m未満(グラフ)'!Q10 -> 265 | AX48: ='ポンプ150～300m(グラフ)'!Q10 -> 295 | AY48: ='ポンプ300～500m(グラフ)'!E10 -> 317
B49: ='スラブ(グラフ)'!J13 -> 0 | C49: ='柱(グラフ)'!J30 -> 0 | D49: ='はり(グラフ)'!J13 -> 0 | E49: ='壁(グラフ)'!K14 -> 0 | O49: ='スラブ(グラフ)'!K13 -> 0 | P49: ='柱(グラフ)'!K14 -> 0 | Q49: ='はり(グラフ)'!K13 -> 0 | R49: ='壁(グラフ)'!L14 -> 0 | AQ49: ='ポンプ150m未満(グラフ)'!P11 -> 18 | AR49: ='ポンプ150～300m(グラフ)'!P11 -> 20 | AS49: ='ポンプ300～500m(グラフ)'!D11 -> 25 | AW49: ='ポンプ150m未満(グラフ)'!Q11 -> 265 | AX49: ='ポンプ150～300m(グラフ)'!Q11 -> 295 | AY49: ='ポンプ300～500m(グラフ)'!E11 -> 317
B50: ='スラブ(グラフ)'!H16 -> 0 | C50: ='柱(グラフ)'!J31 -> 0 | D50: ='はり(グラフ)'!J14 -> 0 | E50: ='壁(グラフ)'!K15 -> 0 | O50: ='スラブ(グラフ)'!I16 -> 0 | P50: ='柱(グラフ)'!K15 -> 0 | Q50: ='はり(グラフ)'!K14 -> 0 | R50: ='壁(グラフ)'!L15 -> 0 | AQ50: ='ポンプ150m未満(グラフ)'!P12 -> 25 | AR50: ='ポンプ150～300m(グラフ)'!P12 -> 25 | AS50: ='ポンプ300～500m(グラフ)'!D12 -> 25 | AW50: ='ポンプ150m未満(グラフ)'!Q12 -> 265 | AX50: ='ポンプ150～300m(グラフ)'!Q12 -> 295 | AY50: ='ポンプ300～500m(グラフ)'!E12 -> 317
A53: 4 | B53: ='スラブ(グラフ)'!M7 -> 12 | C53: ='柱(グラフ)'!D20 -> 7 | D53: ='はり(グラフ)'!P7 -> 8 | E53: ='壁(グラフ)'!N8 -> 12 | N53: 4 | O53: ='スラブ(グラフ)'!N7 -> 600 | P53: ='柱(グラフ)'!E20 -> 580 | Q53: ='はり(グラフ)'!Q7 -> 600 | R53: ='壁(グラフ)'!O8 -> 600 | AQ53: ='ポンプ150m未満(グラフ)'!S5 -> 7 | AR53: ='ポンプ150～300m(グラフ)'!S5 -> 10 | AS53: ='ポンプ300～500m(グラフ)'!G5 -> 15 | AW53: ='ポンプ150m未満(グラフ)'!T5 -> 500 | AX53: ='ポンプ150～300m(グラフ)'!T5 -> 500 | AY53: ='ポンプ300～500m(グラフ)'!H5 -> 500
B54: ='スラブ(グラフ)'!M8 -> 12 | C54: ='柱(グラフ)'!D21 -> 7 | D54: ='はり(グラフ)'!P8 -> 8 | E54: ='壁(グラフ)'!N9 -> 12 | O54: ='スラブ(グラフ)'!N8 -> 260 | P54: ='柱(グラフ)'!E21 -> 310 | Q54: ='はり(グラフ)'!Q8 -> 300 | R54: ='壁(グラフ)'!O9 -> 300 | AQ54: ='ポンプ150m未満(グラフ)'!S6 -> 7 | AR54: ='ポンプ150～300m(グラフ)'!S6 -> 10 | AS54: ='ポンプ300～500m(グラフ)'!G6 -> 15 | AW54: ='ポンプ150m未満(グラフ)'!T6 -> 300 | AX54: ='ポンプ150～300m(グラフ)'!T6 -> 330 | AY54: ='ポンプ300～500m(グラフ)'!H6 -> 345
B55: ='スラブ(グラフ)'!M9 -> 15 | C55: ='柱(グラフ)'!D22 -> 12 | D55: ='はり(グラフ)'!P9 -> 10 | E55: ='壁(グラフ)'!N10 -> 12 | O55: ='スラブ(グラフ)'!N9 -> 270 | P55: ='柱(グラフ)'!E22 -> 280 | Q55: ='はり(グラフ)'!Q9 -> 280 | R55: ='壁(グラフ)'!O10 -> 280 | AQ55: ='ポンプ150m未満(グラフ)'!S7 -> 8 | AR55: ='ポンプ150～300m(グラフ)'!S7 -> 12 | AS55: ='ポンプ300～500m(グラフ)'!G7 -> 18 | AW55: ='ポンプ150m未満(グラフ)'!T7 -> 292 | AX55: ='ポンプ150～300m(グラフ)'!T7 -> 325 | AY55: ='ポンプ300～500m(グラフ)'!H7 -> 338
B56: ='スラブ(グラフ)'!M10 -> 18 | C56: ='柱(グラフ)'!D23 -> 14 | D56: ='はり(グラフ)'!P10 -> 15 | E56: ='壁(グラフ)'!N11 -> 15 | O56: ='スラブ(グラフ)'!N10 -> 280 | P56: ='柱(グラフ)'!E23 -> 280 | Q56: ='はり(グラフ)'!Q10 -> 280 | R56: ='壁(グラフ)'!O11 -> 280 | AQ56: ='ポンプ150m未満(グラフ)'!S8 -> 12 | AR56: ='ポンプ150～300m(グラフ)'!S8 -> 16 | AS56: ='ポンプ300～500m(グラフ)'!G8 -> 20 | AW56: ='ポンプ150m未満(グラフ)'!T8 -> 285 | AX56: ='ポンプ150～300m(グラフ)'!T8 -> 315 | AY56: ='ポンプ300～500m(グラフ)'!H8 -> 332
B57: ='スラブ(グラフ)'!M11 -> 25 | C57: ='柱(グラフ)'!D24 -> 18 | D57: ='はり(グラフ)'!P11 -> 18 | E57: ='壁(グラフ)'!N12 -> 18 | O57: ='スラブ(グラフ)'!N11 -> 600 | P57: ='柱(グラフ)'!E24 -> 320 | Q57: ='はり(グラフ)'!Q11 -> 300 | R57: ='壁(グラフ)'!O12 -> 300 | AQ57: ='ポンプ150m未満(グラフ)'!S9 -> 16 | AR57: ='ポンプ150～300m(グラフ)'!S9 -> 18 | AS57: ='ポンプ300～500m(グラフ)'!G9 -> 22 | AW57: ='ポンプ150m未満(グラフ)'!T9 -> 282 | AX57: ='ポンプ150～300m(グラフ)'!T9 -> 310 | AY57: ='ポンプ300～500m(グラフ)'!H9 -> 332
B58: ='スラブ(グラフ)'!M12 -> 25 | C58: ='柱(グラフ)'!D25 -> 24 | D58: ='はり(グラフ)'!P12 -> 25 | E58: ='壁(グラフ)'!N13 -> 25 | O58: ='スラブ(グラフ)'!N12 -> 600 | P58: ='柱(グラフ)'!E25 -> 580 | Q58: ='はり(グラフ)'!Q12 -> 600 | R58: ='壁(グラフ)'!O13 -> 600 | AQ58: ='ポンプ150m未満(グラフ)'!S10 -> 18 | AR58: ='ポンプ150～300m(グラフ)'!S10 -> 20 | AS58: ='ポンプ300～500m(グラフ)'!G10 -> 25 | AW58: ='ポンプ150m未満(グラフ)'!T10 -> 282 | AX58: ='ポンプ150～300m(グラフ)'!T10 -> 310 | AY58: ='ポンプ300～500m(グラフ)'!H10 -> 332
B59: ='スラブ(グラフ)'!M13 -> 0 | C59: ='柱(グラフ)'!D26 -> 0 | D59: ='はり(グラフ)'!P13 -> 0 | E59: ='壁(グラフ)'!N14 -> 0 | O59: ='スラブ(グラフ)'!N13 -> 0 | P59: ='柱(グラフ)'!E26 -> 0 | Q59: ='はり(グラフ)'!Q13 -> 0 | R59: ='壁(グラフ)'!O14 -> 0 | AQ59: ='ポンプ150m未満(グラフ)'!S11 -> 18 | AR59: ='ポンプ150～300m(グラフ)'!S11 -> 20 | AS59: ='ポンプ300～500m(グラフ)'!G11 -> 25 | AW59: ='ポンプ150m未満(グラフ)'!T11 -> 282 | AX59: ='ポンプ150～300m(グラフ)'!T11 -> 310 | AY59: ='ポンプ300～500m(グラフ)'!H11 -> 332
B60: ='スラブ(グラフ)'!K16 -> 0 | C60: ='柱(グラフ)'!D27 -> 0 | D60: ='はり(グラフ)'!P14 -> 0 | E60: ='壁(グラフ)'!N15 -> 0 | O60: ='スラブ(グラフ)'!L16 -> 0 | P60: ='柱(グラフ)'!E27 -> 0 | Q60: ='はり(グラフ)'!Q14 -> 0 | R60: ='壁(グラフ)'!O15 -> 0 | AQ60: ='ポンプ150m未満(グラフ)'!S12 -> 25 | AR60: ='ポンプ150～300m(グラフ)'!S12 -> 25 | AS60: ='ポンプ300～500m(グラフ)'!G12 -> 25 | AW60: ='ポンプ150m未満(グラフ)'!T12 -> 282 | AX60: ='ポンプ150～300m(グラフ)'!T12 -> 310 | AY60: ='ポンプ300～500m(グラフ)'!H12 -> 332
A63: 5 | C63: ='柱(グラフ)'!G20 -> 9 | D63: ='はり(グラフ)'!S7 -> 10 | E63: ='壁(グラフ)'!R8 -> 10 | N63: 5 | P63: ='柱(グラフ)'!H20 -> 580 | Q63: ='はり(グラフ)'!T7 -> 600 | R63: ='壁(グラフ)'!S8 -> 620
C64: ='柱(グラフ)'!G21 -> 9 | D64: ='はり(グラフ)'!S8 -> 10 | E64: ='壁(グラフ)'!R9 -> 10 | P64: ='柱(グラフ)'!H21 -> 300 | Q64: ='はり(グラフ)'!T8 -> 280 | R64: ='壁(グラフ)'!S9 -> 285
C65: ='柱(グラフ)'!G22 -> 12 | D65: ='はり(グラフ)'!S9 -> 10 | E65: ='壁(グラフ)'!R10 -> 11 | P65: ='柱(グラフ)'!H22 -> 280 | Q65: ='はり(グラフ)'!T9 -> 280 | R65: ='壁(グラフ)'!S10 -> 280
C66: ='柱(グラフ)'!G23 -> 14 | D66: ='はり(グラフ)'!S10 -> 15 | E66: ='壁(グラフ)'!R11 -> 16 | P66: ='柱(グラフ)'!H23 -> 280 | Q66: ='はり(グラフ)'!T10 -> 280 | R66: ='壁(グラフ)'!S11 -> 280
C67: ='柱(グラフ)'!G24 -> 18 | D67: ='はり(グラフ)'!S11 -> 18 | E67: ='壁(グラフ)'!R12 -> 20 | P67: ='柱(グラフ)'!H24 -> 320 | Q67: ='はり(グラフ)'!T11 -> 300 | R67: ='壁(グラフ)'!S12 -> 300
C68: ='柱(グラフ)'!G25 -> 24 | D68: ='はり(グラフ)'!S12 -> 25 | E68: ='壁(グラフ)'!R13 -> 26 | P68: ='柱(グラフ)'!H25 -> 580 | Q68: ='はり(グラフ)'!T12 -> 600 | R68: ='壁(グラフ)'!S13 -> 620
C69: ='柱(グラフ)'!G26 -> 0 | D69: ='はり(グラフ)'!S13 -> 0 | E69: ='壁(グラフ)'!R14 -> 0 | P69: ='柱(グラフ)'!H26 -> 0 | Q69: ='はり(グラフ)'!T13 -> 0 | R69: ='壁(グラフ)'!S14 -> 0
C70: ='柱(グラフ)'!G27 -> 0 | D70: ='はり(グラフ)'!S14 -> 0 | E70: ='壁(グラフ)'!R15 -> 0 | P70: ='柱(グラフ)'!H27 -> 0 | Q70: ='はり(グラフ)'!T14 -> 0 | R70: ='壁(グラフ)'!S15 -> 0
A73: 6 | C73: ='柱(グラフ)'!J20 -> 15 | D73: ='はり(グラフ)'!V7 -> 12 | E73: ='壁(グラフ)'!U8 -> 12 | N73: 6 | P73: ='柱(グラフ)'!K20 -> 580 | Q73: ='はり(グラフ)'!W7 -> 600 | R73: ='壁(グラフ)'!V8 -> 620
C74: ='柱(グラフ)'!J21 -> 15 | D74: ='はり(グラフ)'!V8 -> 12 | E74: ='壁(グラフ)'!U9 -> 12 | P74: ='柱(グラフ)'!K21 -> 290 | Q74: ='はり(グラフ)'!W8 -> 300 | R74: ='壁(グラフ)'!V9 -> 300
C75: ='柱(グラフ)'!J22 -> 18 | D75: ='はり(グラフ)'!V9 -> 12 | E75: ='壁(グラフ)'!U10 -> 12 | P75: ='柱(グラフ)'!K22 -> 320 | Q75: ='はり(グラフ)'!W9 -> 280 | R75: ='壁(グラフ)'!V10 -> 280
C76: ='柱(グラフ)'!J23 -> 18 | D76: ='はり(グラフ)'!V10 -> 15 | E76: ='壁(グラフ)'!U11 -> 16 | P76: ='柱(グラフ)'!K23 -> 320 | Q76: ='はり(グラフ)'!W10 -> 280 | R76: ='壁(グラフ)'!V11 -> 280
C77: ='柱(グラフ)'!J24 -> 18 | D77: ='はり(グラフ)'!V11 -> 18 | E77: ='壁(グラフ)'!U12 -> 20 | P77: ='柱(グラフ)'!K24 -> 320 | Q77: ='はり(グラフ)'!W11 -> 300 | R77: ='壁(グラフ)'!V12 -> 300
C78: ='柱(グラフ)'!J25 -> 24 | D78: ='はり(グラフ)'!V12 -> 25 | E78: ='壁(グラフ)'!U13 -> 26 | P78: ='柱(グラフ)'!K25 -> 580 | Q78: ='はり(グラフ)'!W12 -> 600 | R78: ='壁(グラフ)'!V13 -> 620
C79: ='柱(グラフ)'!J26 -> 0 | D79: ='はり(グラフ)'!V13 -> 0 | E79: ='壁(グラフ)'!U14 -> 0 | P79: ='柱(グラフ)'!K26 -> 0 | Q79: ='はり(グラフ)'!W13 -> 0 | R79: ='壁(グラフ)'!V14 -> 0
C80: ='柱(グラフ)'!J27 -> 0 | D80: ='はり(グラフ)'!V14 -> 0 | E80: ='壁(グラフ)'!U15 -> 0 | P80: ='柱(グラフ)'!K27 -> 0 | Q80: ='はり(グラフ)'!W14 -> 0 | R80: ='壁(グラフ)'!V15 -> 0
A83: 7 | C83: ='柱(グラフ)'!P8 -> 7 | D83: ='はり(グラフ)'!AB7 -> 12 | E83: ='壁(グラフ)'!Y8 -> 12 | N83: 7 | P83: ='柱(グラフ)'!Q8 -> 600 | Q83: ='はり(グラフ)'!AC7 -> 600 | R83: ='壁(グラフ)'!Z8 -> 620
C84: ='柱(グラフ)'!P9 -> 7 | D84: ='はり(グラフ)'!AB8 -> 12 | E84: ='壁(グラフ)'!Y9 -> 12 | P84: ='柱(グラフ)'!Q9 -> 307 | Q84: ='はり(グラフ)'!AC8 -> 310 | R84: ='壁(グラフ)'!Z9 -> 305
C85: ='柱(グラフ)'!P10 -> 11 | D85: ='はり(グラフ)'!AB9 -> 12 | E85: ='壁(グラフ)'!Y10 -> 13 | P85: ='柱(グラフ)'!Q10 -> 280 | Q85: ='はり(グラフ)'!AC9 -> 290 | R85: ='壁(グラフ)'!Z10 -> 300
C86: ='柱(グラフ)'!P11 -> 15 | D86: ='はり(グラフ)'!AB10 -> 15 | E86: ='壁(グラフ)'!Y11 -> 16 | P86: ='柱(グラフ)'!Q11 -> 280 | Q86: ='はり(グラフ)'!AC10 -> 290 | R86: ='壁(グラフ)'!Z11 -> 300
C87: ='柱(グラフ)'!P12 -> 20 | D87: ='はり(グラフ)'!AB11 -> 18 | E87: ='壁(グラフ)'!Y12 -> 19 | P87: ='柱(グラフ)'!Q12 -> 320 | Q87: ='はり(グラフ)'!AC11 -> 320 | R87: ='壁(グラフ)'!Z12 -> 320
C88: ='柱(グラフ)'!P13 -> 25 | D88: ='はり(グラフ)'!AB12 -> 25 | E88: ='壁(グラフ)'!Y13 -> 26 | P88: ='柱(グラフ)'!Q13 -> 600 | Q88: ='はり(グラフ)'!AC12 -> 600 | R88: ='壁(グラフ)'!Z13 -> 620
C89: ='柱(グラフ)'!P14 -> 0 | D89: ='はり(グラフ)'!AB13 -> 0 | E89: ='壁(グラフ)'!Y14 -> 0 | P89: ='柱(グラフ)'!Q14 -> 0 | Q89: ='はり(グラフ)'!AC13 -> 0 | R89: ='壁(グラフ)'!Z14 -> 0
C90: ='柱(グラフ)'!P15 -> 0 | D90: ='はり(グラフ)'!AB14 -> 0 | E90: ='壁(グラフ)'!Y15 -> 0 | P90: ='柱(グラフ)'!Q15 -> 0 | Q90: ='はり(グラフ)'!AC14 -> 0 | R90: ='壁(グラフ)'!Z15 -> 0
A93: 8 | C93: ='柱(グラフ)'!S8 -> 9 | D93: ='はり(グラフ)'!AE7 -> 14 | E93: ='壁(グラフ)'!AB8 -> 12 | N93: 8 | P93: ='柱(グラフ)'!T8 -> 600 | Q93: ='はり(グラフ)'!AF7 -> 600 | R93: ='壁(グラフ)'!AC8 -> 620
C94: ='柱(グラフ)'!S9 -> 9 | D94: ='はり(グラフ)'!AE8 -> 14 | E94: ='壁(グラフ)'!AB9 -> 12 | P94: ='柱(グラフ)'!T9 -> 293 | Q94: ='はり(グラフ)'!AF8 -> 310 | R94: ='壁(グラフ)'!AC9 -> 305
C95: ='柱(グラフ)'!S10 -> 11 | D95: ='はり(グラフ)'!AE9 -> 14 | E95: ='壁(グラフ)'!AB10 -> 13 | P95: ='柱(グラフ)'!T10 -> 280 | Q95: ='はり(グラフ)'!AF9 -> 290 | R95: ='壁(グラフ)'!AC10 -> 300
C96: ='柱(グラフ)'!S11 -> 15 | D96: ='はり(グラフ)'!AE10 -> 15 | E96: ='壁(グラフ)'!AB11 -> 16 | P96: ='柱(グラフ)'!T11 -> 280 | Q96: ='はり(グラフ)'!AF10 -> 290 | R96: ='壁(グラフ)'!AC11 -> 300
C97: ='柱(グラフ)'!S12 -> 20 | D97: ='はり(グラフ)'!AE11 -> 18 | E97: ='壁(グラフ)'!AB12 -> 19 | P97: ='柱(グラフ)'!T12 -> 320 | Q97: ='はり(グラフ)'!AF11 -> 320 | R97: ='壁(グラフ)'!AC12 -> 320
C98: ='柱(グラフ)'!S13 -> 25 | D98: ='はり(グラフ)'!AE12 -> 25 | E98: ='壁(グラフ)'!AB13 -> 26 | P98: ='柱(グラフ)'!T13 -> 600 | Q98: ='はり(グラフ)'!AF12 -> 600 | R98: ='壁(グラフ)'!AC13 -> 620
C99: ='柱(グラフ)'!S14 -> 0 | D99: ='はり(グラフ)'!AE13 -> 0 | E99: ='壁(グラフ)'!AB14 -> 0 | P99: ='柱(グラフ)'!T14 -> 0 | Q99: ='はり(グラフ)'!AF13 -> 0 | R99: ='壁(グラフ)'!AC14 -> 0
C100: ='柱(グラフ)'!S15 -> 0 | D100: ='はり(グラフ)'!AE14 -> 0 | E100: ='壁(グラフ)'!AB15 -> 0 | P100: ='柱(グラフ)'!T15 -> 0 | Q100: ='はり(グラフ)'!AF14 -> 0 | R100: ='壁(グラフ)'!AC15 -> 0
A103: 9 | C103: ='柱(グラフ)'!V8 -> 15 | D103: ='はり(グラフ)'!AH7 -> 16 | E103: ='壁(グラフ)'!AF8 -> 15 | N103: 9 | P103: ='柱(グラフ)'!W8 -> 600 | Q103: ='はり(グラフ)'!AI7 -> 600 | R103: ='壁(グラフ)'!AG8 -> 600
C104: ='柱(グラフ)'!V9 -> 15 | D104: ='はり(グラフ)'!AH8 -> 16 | E104: ='壁(グラフ)'!AF9 -> 15 | P104: ='柱(グラフ)'!W9 -> 280 | Q104: ='はり(グラフ)'!AI8 -> 300 | R104: ='壁(グラフ)'!AG9 -> 300
C105: ='柱(グラフ)'!V10 -> 15 | D105: ='はり(グラフ)'!AH9 -> 16 | E105: ='壁(グラフ)'!AF10 -> 15 | P105: ='柱(グラフ)'!W10 -> 280 | Q105: ='はり(グラフ)'!AI9 -> 300 | R105: ='壁(グラフ)'!AG10 -> 280
C106: ='柱(グラフ)'!V11 -> 15 | D106: ='はり(グラフ)'!AH10 -> 16 | E106: ='壁(グラフ)'!AF11 -> 15 | P106: ='柱(グラフ)'!W11 -> 280 | Q106: ='はり(グラフ)'!AI10 -> 300 | R106: ='壁(グラフ)'!AG11 -> 280
C107: ='柱(グラフ)'!V12 -> 20 | D107: ='はり(グラフ)'!AH11 -> 18 | E107: ='壁(グラフ)'!AF12 -> 18 | P107: ='柱(グラフ)'!W12 -> 320 | Q107: ='はり(グラフ)'!AI11 -> 320 | R107: ='壁(グラフ)'!AG12 -> 300
C108: ='柱(グラフ)'!V13 -> 25 | D108: ='はり(グラフ)'!AH12 -> 25 | E108: ='壁(グラフ)'!AF13 -> 25 | P108: ='柱(グラフ)'!W13 -> 600 | Q108: ='はり(グラフ)'!AI12 -> 600 | R108: ='壁(グラフ)'!AG13 -> 600
C109: ='柱(グラフ)'!V14 -> 0 | D109: ='はり(グラフ)'!AH13 -> 0 | E109: ='壁(グラフ)'!AF14 -> 0 | P109: ='柱(グラフ)'!W14 -> 0 | Q109: ='はり(グラフ)'!AI13 -> 0 | R109: ='壁(グラフ)'!AG14 -> 0
C110: ='柱(グラフ)'!V15 -> 0 | D110: ='はり(グラフ)'!AH14 -> 0 | E110: ='壁(グラフ)'!AF15 -> 0 | P110: ='柱(グラフ)'!W15 -> 0 | Q110: ='はり(グラフ)'!AI14 -> 0 | R110: ='壁(グラフ)'!AG15 -> 0
A113: 10 | C113: ='柱(グラフ)'!P20 -> 9 | E113: ='壁(グラフ)'!AJ8 -> 15 | N113: 10 | P113: ='柱(グラフ)'!Q20 -> 600 | R113: ='壁(グラフ)'!AK8 -> 620
C114: ='柱(グラフ)'!P21 -> 9 | E114: ='壁(グラフ)'!AJ9 -> 15 | P114: ='柱(グラフ)'!Q21 -> 327 | R114: ='壁(グラフ)'!AK9 -> 320
C115: ='柱(グラフ)'!P22 -> 13 | E115: ='壁(グラフ)'!AJ10 -> 15 | P115: ='柱(グラフ)'!Q22 -> 300 | R115: ='壁(グラフ)'!AK10 -> 300
C116: ='柱(グラフ)'!P23 -> 15 | E116: ='壁(グラフ)'!AJ11 -> 16 | P116: ='柱(グラフ)'!Q23 -> 300 | R116: ='壁(グラフ)'!AK11 -> 300
C117: ='柱(グラフ)'!P24 -> 19 | E117: ='壁(グラフ)'!AJ12 -> 19 | P117: ='柱(グラフ)'!Q24 -> 340 | R117: ='壁(グラフ)'!AK12 -> 320
C118: ='柱(グラフ)'!P25 -> 25 | E118: ='壁(グラフ)'!AJ13 -> 26 | P118: ='柱(グラフ)'!Q25 -> 600 | R118: ='壁(グラフ)'!AK13 -> 620
C119: ='柱(グラフ)'!P26 -> 0 | E119: ='壁(グラフ)'!AJ14 -> 0 | P119: ='柱(グラフ)'!Q26 -> 0 | R119: ='壁(グラフ)'!AK14 -> 0
C120: ='柱(グラフ)'!P27 -> 0 | E120: ='壁(グラフ)'!AJ15 -> 0 | P120: ='柱(グラフ)'!Q27 -> 0 | R120: ='壁(グラフ)'!AK15 -> 0
A123: 11 | C123: ='柱(グラフ)'!S20 -> 12 | N123: 11 | P123: ='柱(グラフ)'!T20 -> 600
C124: ='柱(グラフ)'!S21 -> 12 | P124: ='柱(グラフ)'!T21 -> 307
C125: ='柱(グラフ)'!S22 -> 13 | P125: ='柱(グラフ)'!T22 -> 300
C126: ='柱(グラフ)'!S23 -> 15 | P126: ='柱(グラフ)'!T23 -> 300
C127: ='柱(グラフ)'!S24 -> 19 | P127: ='柱(グラフ)'!T24 -> 340
C128: ='柱(グラフ)'!S25 -> 25 | P128: ='柱(グラフ)'!T25 -> 600
C129: ='柱(グラフ)'!S26 -> 0 | P129: ='柱(グラフ)'!T26 -> 0
C130: ='柱(グラフ)'!S27 -> 0 | P130: ='柱(グラフ)'!T27 -> 0
A133: 12 | C133: ='柱(グラフ)'!V20 -> 15 | N133: 12 | P133: ='柱(グラフ)'!W20 -> 600
C134: ='柱(グラフ)'!V21 -> 15 | P134: ='柱(グラフ)'!W21 -> 320
C135: ='柱(グラフ)'!V22 -> 15 | P135: ='柱(グラフ)'!W22 -> 300
C136: ='柱(グラフ)'!V23 -> 15 | P136: ='柱(グラフ)'!W23 -> 300
C137: ='柱(グラフ)'!V24 -> 19 | P137: ='柱(グラフ)'!W24 -> 340
C138: ='柱(グラフ)'!V25 -> 25 | P138: ='柱(グラフ)'!W25 -> 600
C139: ='柱(グラフ)'!V26 -> 0 | P139: ='柱(グラフ)'!W26 -> 0
C140: ='柱(グラフ)'!V27 -> 0 | P140: ='柱(グラフ)'!W27 -> 0
A143: 13 | N143: 13

Sheet Ⅱｸﾞﾗﾌﾃﾞｰﾀ(単独)_
B1: 施工性能 | G1: 2 | H1: 3 | I1: 4 | J1: 5 | K1: 6 | L1: 7 | M1: 8 | N1: 9 | O1: 10 | P1: 11 | Q1: 12 | R1: 13 | AQ1: 運搬性能 | BC1: 上限線
F2: 1： スラブ | G2: 1： h＜0.5(m), 任意に投入可能 | H2: 2： 0.5(m)≦h≦1.5(m), 任意に投入可能 | I2: 3： h≦3.0(m), 投入間隔2～3(m) | J2: 4： h≦3.0(m), 投入間隔3～4(m)
B3: 構造条件 | C3: ='Ⅱ-配合確認(単独)_'!F22 -> 1： スラブ | F3: 2： 柱 | G3: 01： s＜700(kg/m3), 50(mm)≦a, h＜3.0(m) | H3: 02： s＜700(kg/m3), 50(mm)≦a, 3.0(m)≦h＜5.0(m) | I3: 03： s＜700(kg/m3), 50(mm)≦a, 5.0(m)≦h | J3: 04： s＜700(kg/m3), a＜50(mm), h＜3.0(m) | K3: 05： s＜700(kg/m3), a＜50(mm), 3.0(m)≦h＜5.0(m) | L3: 06： s＜700(kg/m3), a＜50(mm), 5.0(m)≦h | M3: 07： 700(kg/m3)≦s, 50(mm)≦a, h＜3.0(m) | N3: 08： 700(kg/m3)≦s, 50(mm)≦a, 3.0(m)≦h＜5.0(m) | O3: 09： 700(kg/m3)≦s, 50(mm)≦a, 5.0(m)≦h | P3: 10： 700(kg/m3)≦s, a＜50(mm), h＜3.0(m) | Q3: 11： 700(kg/m3)≦s, a＜50(mm), 3.0(m)≦h＜5.0(m) | R3: 12： 700(kg/m3)≦s, a＜50(mm), 5.0(m)≦h | AQ3: 圧送条件 | AR3: ='Ⅱ-配合確認(単独)_'!H50 -> a： 150(m)未満 | AU3: a： 150(m)未満 | AV3: 1：Gmax=40(mm), 天然砂 | AW3: 2：Gmax=40(mm), 砕砂 | AX3: 3：Gmax=20・25(mm), 天然砂 | AY3: 4：Gmax=20・25(mm), 砕砂 | BC3: 施工条件 | BD3: ='Ⅱ-配合確認(単独)_'!O24 -> 1： h＜0.5(m), 任意に投入可能
B4: 施工条件 | C4: ='Ⅱ-配合確認(単独)_'!F24 -> 1： h＜0.5(m), 任意に投入可能 | F4: 3： はり | G4: 1： 150(mm)≦a, h＜0.5(m) | H4: 2： 150(mm)≦a, 0.5(m)≦h＜1.5(m) | I4: 3： 150(mm)≦a, 1.5(m)≦h | J4: 4： 60(mm)≦a＜150(mm), h＜0.5(m) | K4: 5： 60(mm)≦a＜150(mm), 0.5(m)≦h＜1.5(m) | L4: 6： 60(mm)≦a＜150(mm), 1.5(m)≦h | M4: 7： a＜60(mm), h＜0.5(m) | N4: 8： a＜60(mm), 0.5(m)≦h＜1.5(m) | O4: 9： a＜60(mm), 1.5(m)≦h | AQ4: 材料条件 | AR4: ='Ⅱ-配合確認(単独)_'!F52 -> 4：Gmax=20・25(mm), 砕砂 | AU4: b： 150～300(m) | AV4: 1：Gmax=40(mm), 天然砂 | AW4: 2：Gmax=40(mm), 砕砂 | AX4: 3：Gmax=20・25(mm), 天然砂 | AY4: 4：Gmax=20・25(mm), 砕砂
F5: 4： 壁 | G5: 01： s＜200(kg/m3), 100(mm)≦a, h＜3.0(m) | H5: 02： s＜200(kg/m3), 100(mm)≦a, 3.0(m)≦h＜5.0(m) | I5: 03： s＜200(kg/m3), a＜100(mm), h＜3.0(m) | J5: 04： s＜200(kg/m3), a＜100(mm), 3.0(m)≦h＜5.0(m) | K5: 05： 200(kg/m3)≦s＜350(kg/m3), 100(mm)≦a, h＜3.0(m) | L5: 06： 200(kg/m3)≦s＜350(kg/m3), 100(mm)≦a, 3.0(m)≦h＜5.0(m) | M5: 07： 200(kg/m3)≦s＜350(kg/m3), a＜100(mm), h＜3.0(m) | N5: 08： 200(kg/m3)≦s＜350(kg/m3), a＜100(mm), 3.0(m)≦h＜5.0(m) | O5: 09： s＜350(kg/m3), 5.0m≦h （aを問わず） | P5: 10： 350(kg/m3)≦s （a・hを問わず） | AU5: c： 300～500(m) | AV5: 1：Gmax=40(mm), 天然砂 | AW5: 2：Gmax=40(mm), 砕砂 | AX5: 3：Gmax=20・25(mm), 天然砂 | AY5: 4：Gmax=20・25(mm), 砕砂
F6: 5： PC定着部 | G6: 1： PC部材 | AU6: d： 500(m)以上
B8: X軸データ | O8: Y軸データ | AQ8: X軸データ | AW8: Y軸データ | BD8: X軸 | BF8: Y軸
B9: =VLOOKUP($C$3,$F$2:$R$6,G1) -> 1： h＜0.5(m), 任意に投入可能 | C9: =VLOOKUP($C$3,$F$2:$R$6,H1) -> 2： 0.5(m)≦h≦1.5(m), 任意に投入可能 | D9: 3： h≦3.0(m), 投入間隔2～3(m) | E9: 4： h≦3.0(m), 投入間隔3～4(m) | F9: 0 | G9: 0 | H9: 0 | I9: 0 | J9: 0 | K9: 0 | L9: 0 | M9: 0 | O9: =VLOOKUP($C$3,$F$2:$R$6,G1) -> 1： h＜0.5(m), 任意に投入可能 | P9: 2： 0.5(m)≦h≦1.5(m), 任意に投入可能 | Q9: 3： h≦3.0(m), 投入間隔2～3(m) | R9: 4： h≦3.0(m), 投入間隔3～4(m) | S9: 0 | T9: 0 | U9: =VLOOKUP($C$3,$F$2:$R$6,M1) -> 0 | V9: 0 | W9: 0 | X9: 0 | Y9: 0 | Z9: 0 | AQ9: =VLOOKUP($AR$3,$AU$3:$AZ$6,2) -> 1：Gmax=40(mm), 天然砂 | AR9: =VLOOKUP($AR$3,$AU$3:$AZ$6,3) -> 2：Gmax=40(mm), 砕砂 | AS9: =VLOOKUP($AR$3,$AU$3:$AZ$6,4) -> 3：Gmax=20・25(mm), 天然砂 | AT9: =VLOOKUP($AR$3,$AU$3:$AZ$6,5) -> 4：Gmax=20・25(mm), 砕砂 | AW9: =VLOOKUP($AR$3,$AU$3:$AZ$6,2) -> 1：Gmax=40(mm), 天然砂 | AX9: =VLOOKUP($AR$3,$AU$3:$AZ$6,3) -> 2：Gmax=40(mm), 砕砂 | AY9: =VLOOKUP($AR$3,$AU$3:$AZ$6,4) -> 3：Gmax=20・25(mm), 天然砂 | AZ9: =VLOOKUP($AR$3,$AU$3:$AZ$6,5) -> 4：Gmax=20・25(mm), 砕砂 | BD9: スラブ | BE9: PC部材 | BF9: スラブ | BG9: PC部材
B10: =HLOOKUP($C$3,$B$21:$G$142,AB10) -> 5 | C10: 7 | D10: 10 | E10: 12 | F10: 0 | G10: 0 | H10: 0 | I10: 0 | J10: 0 | K10: 0 | L10: 0 | M10: 0 | O10: =HLOOKUP($C$3,$O$21:$T$142,AB10) -> 600 | P10: 600 | Q10: 600 | R10: 600 | S10: 0 | T10: 0 | U10: 0 | V10: 0 | W10: 0 | X10: 0 | Y10: 0 | Z10: 0 | AB10: 3 | AC10: 13 | AD10: 23 | AE10: 33 | AF10: 43 | AG10: 53 | AH10: 63 | AI10: 73 | AJ10: 83 | AK10: 93 | AL10: 103 | AM10: 113 | AQ10: =HLOOKUP($AR$3,$AQ$21:$AS$62,AB10) -> 8 | AR10: 8 | AS10: 6 | AT10: 7 | AW10: =HLOOKUP($AR$3,$AW$21:$AY$62,AB10) -> 500 | AX10: 500 | AY10: 500 | AZ10: 500 | BD10: ='スラブ(グラフ)'!P7 -> 3 | BE10: ='PC部材(グラフ)'!H6 -> 3 | BF10: ='スラブ(グラフ)'!Q7 -> 200 | BG10: ='PC部材(グラフ)'!I6 -> 370
B11: 5 | C11: 7 | D11: =HLOOKUP($C$3,$B$21:$G$142,AD11) -> 10 | E11: 12 | F11: 0 | G11: 0 | H11: 0 | I11: 0 | J11: 0 | K11: 0 | L11: 0 | M11: 0 | O11: 250 | P11: 250 | Q11: 253 | R11: 260 | S11: 0 | T11: 0 | U11: 0 | V11: 0 | W11: 0 | X11: 0 | Y11: 0 | Z11: 0 | AB11: 4 | AC11: 14 | AD11: 24 | AE11: 34 | AF11: 44 | AG11: 54 | AH11: 64 | AI11: 74 | AJ11: 84 | AK11: 94 | AL11: 104 | AM11: 114 | AQ11: 8 | AR11: 8 | AS11: 6 | AT11: 7 | AW11: 260 | AX11: 285 | AY11: 295 | AZ11: 300 | BD11: ='スラブ(グラフ)'!P8 -> 6 | BE11: ='PC部材(グラフ)'!H7 -> 3 | BF11: ='スラブ(グラフ)'!Q8 -> 350 | BG11: ='PC部材(グラフ)'!I7 -> 370
B12: 8 | C12: 8 | D12: 12 | E12: 15 | F12: 0 | G12: 0 | H12: 0 | I12: 0 | J12: 0 | K12: 0 | L12: 0 | M12: 0 | O12: 250 | P12: 250 | Q12: 260 | R12: 270 | S12: 0 | T12: 0 | U12: 0 | V12: 0 | W12: 0 | X12: 0 | Y12: 0 | Z12: 0 | AB12: 5 | AC12: 15 | AD12: 25 | AE12: 35 | AF12: 45 | AG12: 55 | AH12: 65 | AI12: 75 | AJ12: 85 | AK12: 95 | AL12: 105 | AM12: 115 | AQ12: 12 | AR12: 12 | AS12: 8 | AT12: 8 | AW12: 255 | AX12: 280 | AY12: 275 | AZ12: 292 | BD12: ='スラブ(グラフ)'!P9 -> 8 | BE12: ='PC部材(グラフ)'!H8 -> 8 | BF12: ='スラブ(グラフ)'!Q9 -> 400 | BG12: ='PC部材(グラフ)'!I8 -> 420
B13: 18 | C13: 18 | D13: 18 | E13: 18 | F13: 0 | G13: 0 | H13: 0 | I13: 0 | J13: 0 | K13: 0 | L13: 0 | M13: 0 | O13: 280 | P13: 280 | Q13: 280 | R13: 280 | S13: 0 | T13: 0 | U13: 0 | V13: 0 | W13: 0 | X13: 0 | Y13: 0 | Z13: 0 | AB13: 6 | AC13: 16 | AD13: 26 | AE13: 36 | AF13: 46 | AG13: 56 | AH13: 66 | AI13: 76 | AJ13: 86 | AK13: 96 | AL13: 106 | AM13: 116 | AQ13: 16 | AR13: 16 | AS13: 12 | AT13: 12 | AW13: 250 | AX13: 275 | AY13: 270 | AZ13: 285 | BD13: ='スラブ(グラフ)'!P10 -> 15 | BE13: ='PC部材(グラフ)'!H9 -> 15 | BF13: ='スラブ(グラフ)'!Q10 -> 440 | BG13: ='PC部材(グラフ)'!I9 -> 455
B14: 25 | C14: 25 | D14: 25 | E14: 25 | F14: 0 | G14: 0 | H14: 0 | I14: 0 | J14: 0 | K14: 0 | L14: 0 | M14: 0 | O14: 600 | P14: 600 | Q14: 600 | R14: 600 | S14: 0 | T14: 0 | U14: 0 | V14: 0 | W14: 0 | X14: 0 | Y14: 0 | Z14: 0 | AB14: 7 | AC14: 17 | AD14: 27 | AE14: 37 | AF14: 47 | AG14: 57 | AH14: 67 | AI14: 77 | AJ14: 87 | AK14: 97 | AL14: 107 | AM14: 117 | AQ14: 18 | AR14: 18 | AS14: 16 | AT14: 16 | AW14: 250 | AX14: 275 | AY14: 265 | AZ14: 282 | BD14: ='スラブ(グラフ)'!P11 -> 20 | BE14: ='PC部材(グラフ)'!H10 -> 20 | BF14: ='スラブ(グラフ)'!Q11 -> 480 | BG14: ='PC部材(グラフ)'!I10 -> 480
B15: 25 | C15: 25 | D15: 25 | E15: 25 | F15: 0 | G15: 0 | H15: 0 | I15: 0 | J15: 0 | K15: 0 | L15: 0 | M15: 0 | O15: 600 | P15: 600 | Q15: 600 | R15: 600 | S15: 0 | T15: 0 | U15: 0 | V15: 0 | W15: 0 | X15: 0 | Y15: 0 | Z15: 0 | AB15: 8 | AC15: 18 | AD15: 28 | AE15: 38 | AF15: 48 | AG15: 58 | AH15: 68 | AI15: 78 | AJ15: 88 | AK15: 98 | AL15: 108 | AM15: 118 | AQ15: 20 | AR15: 20 | AS15: 18 | AT15: 18 | AW15: 250 | AX15: 275 | AY15: 265 | AZ15: 282 | BD15: ='スラブ(グラフ)'!P12 -> 27 | BE15: ='PC部材(グラフ)'!H11 -> 27 | BF15: ='スラブ(グラフ)'!Q12 -> 600 | BG15: ='PC部材(グラフ)'!I11 -> 600
B16: 0 | C16: 0 | D16: 0 | E16: 0 | F16: 0 | G16: 0 | H16: 0 | I16: 0 | J16: 0 | K16: 0 | L16: 0 | M16: 0 | O16: 0 | P16: 0 | Q16: 0 | R16: 0 | S16: 0 | T16: 0 | U16: 0 | V16: 0 | W16: 0 | X16: 0 | Y16: 0 | Z16: 0 | AB16: 9 | AC16: 19 | AD16: 29 | AE16: 39 | AF16: 49 | AG16: 59 | AH16: 69 | AI16: 79 | AJ16: 89 | AK16: 99 | AL16: 109 | AM16: 119 | AQ16: 20 | AR16: 20 | AS16: 18 | AT16: 18 | AW16: 250 | AX16: 275 | AY16: 265 | AZ16: 282
B17: 0 | C17: 0 | D17: 0 | E17: 0 | F17: 0 | G17: 0 | H17: 0 | I17: 0 | J17: 0 | K17: 0 | L17: 0 | M17: 0 | O17: 0 | P17: 0 | Q17: 0 | R17: 0 | S17: 0 | T17: 0 | U17: 0 | V17: 0 | W17: 0 | X17: 0 | Y17: 0 | Z17: 0 | AB17: 10 | AC17: 20 | AD17: 30 | AE17: 40 | AF17: 50 | AG17: 60 | AH17: 70 | AI17: 80 | AJ17: 90 | AK17: 100 | AL17: 110 | AM17: 120 | AQ17: 25 | AR17: 25 | AS17: 25 | AT17: 25 | AW17: 250 | AX17: 275 | AY17: 265 | AZ17: 282
B20: X軸データ | O20: Y軸データ | AQ20: X軸データ | AW20: Y軸データ
B21: 1： スラブ | C21: 2： 柱 | D21: 3： はり | E21: 4： 壁 | F21: 5： PC定着部 | O21: 1： スラブ | P21: 2： 柱 | Q21: 3： はり | R21: 4： 壁 | S21: 5： PC定着部 | AQ21: a： 150(m)未満 | AR21: b： 150～300(m) | AS21: c： 300～500(m) | AT21: d： 500(m)以上 | AW21: a： 150(m)未満 | AX21: b： 150～300(m) | AY21: c： 300～500(m) | AZ21: d： 500(m)以上
A23: 1 | B23: ='スラブ(グラフ)'!D7 -> 5 | C23: ='柱(グラフ)'!D8 -> 5 | D23: ='はり(グラフ)'!D7 -> 5 | E23: ='壁(グラフ)'!D8 -> 8 | F23: ='PC部材(グラフ)'!D6 -> 8 | H23: =HLOOKUP($C$4,$B$9:$M$17,AB23) -> 5 | N23: 1 | O23: ='スラブ(グラフ)'!E7 -> 600 | P23: ='柱(グラフ)'!E8 -> 580 | Q23: ='はり(グラフ)'!E7 -> 600 | R23: ='壁(グラフ)'!E8 -> 600 | S23: ='PC部材(グラフ)'!E6 -> 640 | U23: =HLOOKUP($C$4,$O$9:$Z$17,AB23) -> 600 | AB23: 2 | AQ23: ='ポンプ150m未満(グラフ)'!D5 -> 8 | AR23: ='ポンプ150～300m(グラフ)'!D5 -> 12 | AU23: =HLOOKUP($AR$4,$AQ$9:$AT$16,AB23) -> 7 | AW23: ='ポンプ150m未満(グラフ)'!E5 -> 500 | AX23: ='ポンプ150～300m(グラフ)'!E5 -> 500 | BA23: =HLOOKUP($AR$4,$AW$9:$AZ$17,AB23) -> 500 | BD23: =IF($BD$3="1： PC部材",BE10,BD10) -> 3 | BE23: =IF($BD$3="1： PC部材",BG10,BF10) -> 200
B24: ='スラブ(グラフ)'!D8 -> 5 | C24: ='柱(グラフ)'!D9 -> 5 | D24: ='はり(グラフ)'!D8 -> 5 | E24: ='壁(グラフ)'!D9 -> 8 | F24: ='PC部材(グラフ)'!D7 -> 8 | H24: 5 | O24: ='スラブ(グラフ)'!E8 -> 250 | P24: ='柱(グラフ)'!E9 -> 287 | Q24: ='はり(グラフ)'!E8 -> 300 | R24: ='壁(グラフ)'!E9 -> 273 | S24: ='PC部材(グラフ)'!E7 -> 350 | U24: 250 | AB24: 3 | AQ24: ='ポンプ150m未満(グラフ)'!D6 -> 8 | AR24: ='ポンプ150～300m(グラフ)'!D6 -> 12 | AU24: 7 | AW24: ='ポンプ150m未満(グラフ)'!E6 -> 260 | AX24: ='ポンプ150～300m(グラフ)'!E6 -> 295 | BA24: 300 | BD24: =IF($BD$3="1： PC部材",BE11,BD11) -> 6 | BE24: =IF($BD$3="1： PC部材",BG11,BF11) -> 350
B25: ='スラブ(グラフ)'!D9 -> 8 | C25: ='柱(グラフ)'!D10 -> 10 | D25: ='はり(グラフ)'!D9 -> 8 | E25: ='壁(グラフ)'!D10 -> 10 | F25: ='PC部材(グラフ)'!D8 -> 18 | H25: 8 | O25: ='スラブ(グラフ)'!E9 -> 250 | P25: ='柱(グラフ)'!E10 -> 260 | Q25: ='はり(グラフ)'!E9 -> 270 | R25: ='壁(グラフ)'!E10 -> 260 | S25: ='PC部材(グラフ)'!E8 -> 350 | U25: 250 | AB25: 4 | AQ25: ='ポンプ150m未満(グラフ)'!D7 -> 12 | AR25: ='ポンプ150～300m(グラフ)'!D7 -> 16 | AU25: 8 | AW25: ='ポンプ150m未満(グラフ)'!E7 -> 255 | AX25: ='ポンプ150～300m(グラフ)'!E7 -> 285 | BA25: 292 | BD25: 8 | BE25: 400
B26: ='スラブ(グラフ)'!D10 -> 18 | C26: ='柱(グラフ)'!D11 -> 14 | D26: ='はり(グラフ)'!D10 -> 15 | E26: ='壁(グラフ)'!D11 -> 15 | F26: ='PC部材(グラフ)'!D9 -> 20 | H26: 18 | O26: ='スラブ(グラフ)'!E10 -> 280 | P26: ='柱(グラフ)'!E11 -> 260 | Q26: ='はり(グラフ)'!E10 -> 270 | R26: ='壁(グラフ)'!E11 -> 260 | S26: ='PC部材(グラフ)'!E9 -> 400 | U26: 280 | AB26: 5 | AQ26: ='ポンプ150m未満(グラフ)'!D8 -> 16 | AR26: ='ポンプ150～300m(グラフ)'!D8 -> 18 | AU26: 12 | AW26: ='ポンプ150m未満(グラフ)'!E8 -> 250 | AX26: ='ポンプ150～300m(グラフ)'!E8 -> 280 | BA26: 285 | BD26: 15 | BE26: 440
B27: ='スラブ(グラフ)'!D11 -> 25 | C27: ='柱(グラフ)'!D12 -> 19 | D27: ='はり(グラフ)'!D11 -> 18 | E27: ='壁(グラフ)'!D12 -> 19 | F27: ='PC部材(グラフ)'!D10 -> 23 | H27: 25 | O27: ='スラブ(グラフ)'!E11 -> 600 | P27: ='柱(グラフ)'!E12 -> 300 | Q27: ='はり(グラフ)'!E11 -> 280 | R27: ='壁(グラフ)'!E12 -> 280 | S27: ='PC部材(グラフ)'!E10 -> 480 | U27: 600 | AB27: 6 | AQ27: ='ポンプ150m未満(グラフ)'!D9 -> 18 | AR27: ='ポンプ150～300m(グラフ)'!D9 -> 20 | AU27: 16 | AW27: ='ポンプ150m未満(グラフ)'!E9 -> 250 | AX27: ='ポンプ150～300m(グラフ)'!E9 -> 280 | BA27: 282 | BD27: 20 | BE27: 480
B28: ='スラブ(グラフ)'!D12 -> 25 | C28: ='柱(グラフ)'!D13 -> 24 | D28: ='はり(グラフ)'!D12 -> 25 | E28: ='壁(グラフ)'!D13 -> 25 | F28: ='PC部材(グラフ)'!D11 -> 27 | H28: 25 | O28: ='スラブ(グラフ)'!E12 -> 600 | P28: ='柱(グラフ)'!E13 -> 580 | Q28: ='はり(グラフ)'!E12 -> 600 | R28: ='壁(グラフ)'!E13 -> 600 | S28: ='PC部材(グラフ)'!E11 -> 640 | U28: 600 | AB28: 7 | AQ28: ='ポンプ150m未満(グラフ)'!D10 -> 20 | AR28: ='ポンプ150～300m(グラフ)'!D10 -> 20 | AU28: 18 | AW28: ='ポンプ150m未満(グラフ)'!E10 -> 250 | AX28: ='ポンプ150～300m(グラフ)'!E10 -> 280 | BA28: 282 | BD28: 27 | BE28: 600
B29: ='スラブ(グラフ)'!D13 -> 0 | C29: ='柱(グラフ)'!D30 -> 1 | D29: ='はり(グラフ)'!D13 -> 0 | E29: ='壁(グラフ)'!D14 -> 0 | F29: ='PC部材(グラフ)'!D12 -> 0 | H29: 0 | O29: ='スラブ(グラフ)'!E13 -> 0 | P29: ='柱(グラフ)'!E14 -> 0 | Q29: ='はり(グラフ)'!E13 -> 0 | R29: ='壁(グラフ)'!E14 -> 0 | S29: ='PC部材(グラフ)'!E12 -> 0 | U29: 0 | AB29: 8 | AQ29: ='ポンプ150m未満(グラフ)'!D11 -> 20 | AR29: ='ポンプ150～300m(グラフ)'!D11 -> 20 | AU29: 18 | AW29: ='ポンプ150m未満(グラフ)'!E11 -> 250 | AX29: ='ポンプ150～300m(グラフ)'!E11 -> 280 | BA29: 282
B30: ='スラブ(グラフ)'!B16 -> 0 | C30: ='柱(グラフ)'!D31 -> 0 | D30: ='はり(グラフ)'!D14 -> 0 | E30: ='壁(グラフ)'!D15 -> 0 | F30: ='PC部材(グラフ)'!D13 -> 0 | H30: 0 | O30: ='スラブ(グラフ)'!C16 -> 0 | P30: ='柱(グラフ)'!E15 -> 0 | Q30: ='はり(グラフ)'!E14 -> 0 | R30: ='壁(グラフ)'!E15 -> 0 | S30: ='PC部材(グラフ)'!E13 -> 0 | U30: 0 | AB30: 9 | AQ30: ='ポンプ150m未満(グラフ)'!D12 -> 25 | AR30: ='ポンプ150～300m(グラフ)'!D12 -> 25 | AU30: =HLOOKUP($AR$4,$AQ$9:$AT$17,AB30) -> 25 | AW30: ='ポンプ150m未満(グラフ)'!E12 -> 250 | AX30: ='ポンプ150～300m(グラフ)'!E12 -> 280 | BA30: 282
A33: 2 | B33: ='スラブ(グラフ)'!G7 -> 7 | C33: ='柱(グラフ)'!G8 -> 7 | D33: ='はり(グラフ)'!G7 -> 6 | E33: ='壁(グラフ)'!G8 -> 10 | N33: 2 | O33: ='スラブ(グラフ)'!H7 -> 600 | P33: ='柱(グラフ)'!H8 -> 580 | Q33: ='はり(グラフ)'!H7 -> 600 | R33: ='壁(グラフ)'!H8 -> 600 | AQ33: ='ポンプ150m未満(グラフ)'!G5 -> 8 | AR33: ='ポンプ150～300m(グラフ)'!G5 -> 12 | AW33: ='ポンプ150m未満(グラフ)'!H5 -> 500 | AX33: ='ポンプ150～300m(グラフ)'!H5 -> 500
B34: ='スラブ(グラフ)'!G8 -> 7 | C34: ='柱(グラフ)'!G9 -> 7 | D34: ='はり(グラフ)'!G8 -> 6 | E34: ='壁(グラフ)'!G9 -> 10 | O34: ='スラブ(グラフ)'!H8 -> 250 | P34: ='柱(グラフ)'!H9 -> 275 | Q34: ='はり(グラフ)'!H8 -> 290 | R34: ='壁(グラフ)'!H9 -> 260 | AQ34: ='ポンプ150m未満(グラフ)'!G6 -> 8 | AR34: ='ポンプ150～300m(グラフ)'!G6 -> 12 | AW34: ='ポンプ150m未満(グラフ)'!H6 -> 285 | AX34: ='ポンプ150～300m(グラフ)'!H6 -> 325
B35: ='スラブ(グラフ)'!G9 -> 8 | C35: ='柱(グラフ)'!G10 -> 10 | D35: ='はり(グラフ)'!G9 -> 8 | E35: ='壁(グラフ)'!G10 -> 10 | O35: ='スラブ(グラフ)'!H9 -> 250 | P35: ='柱(グラフ)'!H10 -> 260 | Q35: ='はり(グラフ)'!H9 -> 270 | R35: ='壁(グラフ)'!H10 -> 260 | AQ35: ='ポンプ150m未満(グラフ)'!G7 -> 12 | AR35: ='ポンプ150～300m(グラフ)'!G7 -> 16 | AW35: ='ポンプ150m未満(グラフ)'!H7 -> 280 | AX35: ='ポンプ150～300m(グラフ)'!H7 -> 315
B36: ='スラブ(グラフ)'!G10 -> 18 | C36: ='柱(グラフ)'!G11 -> 14 | D36: ='はり(グラフ)'!G10 -> 15 | E36: ='壁(グラフ)'!G11 -> 15 | O36: ='スラブ(グラフ)'!H10 -> 280 | P36: ='柱(グラフ)'!H11 -> 260 | Q36: ='はり(グラフ)'!H10 -> 270 | R36: ='壁(グラフ)'!H11 -> 260 | AQ36: ='ポンプ150m未満(グラフ)'!G8 -> 16 | AR36: ='ポンプ150～300m(グラフ)'!G8 -> 18 | AW36: ='ポンプ150m未満(グラフ)'!H8 -> 275 | AX36: ='ポンプ150～300m(グラフ)'!H8 -> 310
B37: ='スラブ(グラフ)'!G11 -> 25 | C37: ='柱(グラフ)'!G12 -> 19 | D37: ='はり(グラフ)'!G11 -> 18 | E37: ='壁(グラフ)'!G12 -> 19 | O37: ='スラブ(グラフ)'!H11 -> 600 | P37: ='柱(グラフ)'!H12 -> 300 | Q37: ='はり(グラフ)'!H11 -> 280 | R37: ='壁(グラフ)'!H12 -> 280 | AQ37: ='ポンプ150m未満(グラフ)'!G9 -> 18 | AR37: ='ポンプ150～300m(グラフ)'!G9 -> 20 | AW37: ='ポンプ150m未満(グラフ)'!H9 -> 275 | AX37: ='ポンプ150～300m(グラフ)'!H9 -> 310
B38: ='スラブ(グラフ)'!G12 -> 25 | C38: ='柱(グラフ)'!G13 -> 24 | D38: ='はり(グラフ)'!G12 -> 25 | E38: ='壁(グラフ)'!G13 -> 25 | O38: ='スラブ(グラフ)'!H12 -> 600 | P38: ='柱(グラフ)'!H13 -> 580 | Q38: ='はり(グラフ)'!H12 -> 600 | R38: ='壁(グラフ)'!H13 -> 600 | AQ38: ='ポンプ150m未満(グラフ)'!G10 -> 20 | AR38: ='ポンプ150～300m(グラフ)'!G10 -> 20 | AW38: ='ポンプ150m未満(グラフ)'!H10 -> 275 | AX38: ='ポンプ150～300m(グラフ)'!H10 -> 310
B39: ='スラブ(グラフ)'!G13 -> 0 | C39: ='柱(グラフ)'!G30 -> 0 | D39: ='はり(グラフ)'!G13 -> 0 | E39: ='壁(グラフ)'!G14 -> 0 | O39: ='スラブ(グラフ)'!H13 -> 0 | P39: ='柱(グラフ)'!H14 -> 0 | Q39: ='はり(グラフ)'!H13 -> 0 | R39: ='壁(グラフ)'!H14 -> 0 | AQ39: ='ポンプ150m未満(グラフ)'!G11 -> 20 | AR39: ='ポンプ150～300m(グラフ)'!G11 -> 20 | AW39: ='ポンプ150m未満(グラフ)'!H11 -> 275 | AX39: ='ポンプ150～300m(グラフ)'!H11 -> 310
B40: ='スラブ(グラフ)'!E16 -> 0 | C40: ='柱(グラフ)'!G31 -> 0 | D40: ='はり(グラフ)'!G14 -> 0 | E40: ='壁(グラフ)'!G15 -> 0 | O40: ='スラブ(グラフ)'!F16 -> 0 | P40: ='柱(グラフ)'!H15 -> 0 | Q40: ='はり(グラフ)'!H14 -> 0 | R40: ='壁(グラフ)'!H15 -> 0 | AQ40: ='ポンプ150m未満(グラフ)'!G12 -> 25 | AR40: ='ポンプ150～300m(グラフ)'!G12 -> 25 | AW40: ='ポンプ150m未満(グラフ)'!H12 -> 275 | AX40: ='ポンプ150～300m(グラフ)'!H12 -> 310
A43: 3 | B43: ='スラブ(グラフ)'!J7 -> 10 | C43: ='柱(グラフ)'!J8 -> 12 | D43: ='はり(グラフ)'!J7 -> 8 | E43: ='壁(グラフ)'!K8 -> 10 | N43: 3 | O43: ='スラブ(グラフ)'!K7 -> 600 | P43: ='柱(グラフ)'!K8 -> 580 | Q43: ='はり(グラフ)'!K7 -> 600 | R43: ='壁(グラフ)'!L8 -> 600 | AQ43: ='ポンプ150m未満(グラフ)'!P5 -> 6 | AR43: ='ポンプ150～300m(グラフ)'!P5 -> 10 | AS43: ='ポンプ300～500m(グラフ)'!D5 -> 15 | AW43: ='ポンプ150m未満(グラフ)'!Q5 -> 500 | AX43: ='ポンプ150～300m(グラフ)'!Q5 -> 500 | AY43: ='ポンプ300～500m(グラフ)'!E5 -> 500
B44: ='スラブ(グラフ)'!J8 -> 10 | C44: ='柱(グラフ)'!J9 -> 12 | D44: ='はり(グラフ)'!J8 -> 8 | E44: ='壁(グラフ)'!K9 -> 10 | O44: ='スラブ(グラフ)'!K8 -> 253 | P44: ='柱(グラフ)'!K9 -> 260 | Q44: ='はり(グラフ)'!K8 -> 270 | R44: ='壁(グラフ)'!L9 -> 295 | AQ44: ='ポンプ150m未満(グラフ)'!P6 -> 6 | AR44: ='ポンプ150～300m(グラフ)'!P6 -> 10 | AS44: ='ポンプ300～500m(グラフ)'!D6 -> 15 | AW44: ='ポンプ150m未満(グラフ)'!Q6 -> 295 | AX44: ='ポンプ150～300m(グラフ)'!Q6 -> 315 | AY44: ='ポンプ300～500m(グラフ)'!E6 -> 330
B45: ='スラブ(グラフ)'!J9 -> 12 | C45: ='柱(グラフ)'!J10 -> 14 | D45: ='はり(グラフ)'!J9 -> 8 | E45: ='壁(グラフ)'!K10 -> 12 | O45: ='スラブ(グラフ)'!K9 -> 260 | P45: ='柱(グラフ)'!K10 -> 260 | Q45: ='はり(グラフ)'!K9 -> 270 | R45: ='壁(グラフ)'!L10 -> 280 | AQ45: ='ポンプ150m未満(グラフ)'!P7 -> 8 | AR45: ='ポンプ150～300m(グラフ)'!P7 -> 12 | AS45: ='ポンプ300～500m(グラフ)'!D7 -> 18 | AW45: ='ポンプ150m未満(グラフ)'!Q7 -> 275 | AX45: ='ポンプ150～300m(グラフ)'!Q7 -> 310 | AY45: ='ポンプ300～500m(グラフ)'!E7 -> 323
B46: ='スラブ(グラフ)'!J10 -> 18 | C46: ='柱(グラフ)'!J11 -> 14 | D46: ='はり(グラフ)'!J10 -> 15 | E46: ='壁(グラフ)'!K11 -> 15 | O46: ='スラブ(グラフ)'!K10 -> 280 | P46: ='柱(グラフ)'!K11 -> 260 | Q46: ='はり(グラフ)'!K10 -> 270 | R46: ='壁(グラフ)'!L11 -> 280 | AQ46: ='ポンプ150m未満(グラフ)'!P8 -> 12 | AR46: ='ポンプ150～300m(グラフ)'!P8 -> 16 | AS46: ='ポンプ300～500m(グラフ)'!D8 -> 20 | AW46: ='ポンプ150m未満(グラフ)'!Q8 -> 270 | AX46: ='ポンプ150～300m(グラフ)'!Q8 -> 300 | AY46: ='ポンプ300～500m(グラフ)'!E8 -> 317
B47: ='スラブ(グラフ)'!J11 -> 25 | C47: ='柱(グラフ)'!J12 -> 19 | D47: ='はり(グラフ)'!J11 -> 18 | E47: ='壁(グラフ)'!K12 -> 18 | O47: ='スラブ(グラフ)'!K11 -> 600 | P47: ='柱(グラフ)'!K12 -> 300 | Q47: ='はり(グラフ)'!K11 -> 280 | R47: ='壁(グラフ)'!L12 -> 300 | AQ47: ='ポンプ150m未満(グラフ)'!P9 -> 16 | AR47: ='ポンプ150～300m(グラフ)'!P9 -> 18 | AS47: ='ポンプ300～500m(グラフ)'!D9 -> 22 | AW47: ='ポンプ150m未満(グラフ)'!Q9 -> 265 | AX47: ='ポンプ150～300m(グラフ)'!Q9 -> 295 | AY47: ='ポンプ300～500m(グラフ)'!E9 -> 317
B48: ='スラブ(グラフ)'!J12 -> 25 | C48: ='柱(グラフ)'!J13 -> 24 | D48: ='はり(グラフ)'!J12 -> 25 | E48: ='壁(グラフ)'!K13 -> 25 | O48: ='スラブ(グラフ)'!K12 -> 600 | P48: ='柱(グラフ)'!K13 -> 580 | Q48: ='はり(グラフ)'!K12 -> 600 | R48: ='壁(グラフ)'!L13 -> 600 | AQ48: ='ポンプ150m未満(グラフ)'!P10 -> 18 | AR48: ='ポンプ150～300m(グラフ)'!P10 -> 20 | AS48: ='ポンプ300～500m(グラフ)'!D10 -> 25 | AW48: ='ポンプ150m未満(グラフ)'!Q10 -> 265 | AX48: ='ポンプ150～300m(グラフ)'!Q10 -> 295 | AY48: ='ポンプ300～500m(グラフ)'!E10 -> 317
B49: ='スラブ(グラフ)'!J13 -> 0 | C49: ='柱(グラフ)'!J30 -> 0 | D49: ='はり(グラフ)'!J13 -> 0 | E49: ='壁(グラフ)'!K14 -> 0 | O49: ='スラブ(グラフ)'!K13 -> 0 | P49: ='柱(グラフ)'!K14 -> 0 | Q49: ='はり(グラフ)'!K13 -> 0 | R49: ='壁(グラフ)'!L14 -> 0 | AQ49: ='ポンプ150m未満(グラフ)'!P11 -> 18 | AR49: ='ポンプ150～300m(グラフ)'!P11 -> 20 | AS49: ='ポンプ300～500m(グラフ)'!D11 -> 25 | AW49: ='ポンプ150m未満(グラフ)'!Q11 -> 265 | AX49: ='ポンプ150～300m(グラフ)'!Q11 -> 295 | AY49: ='ポンプ300～500m(グラフ)'!E11 -> 317
B50: ='スラブ(グラフ)'!H16 -> 0 | C50: ='柱(グラフ)'!J31 -> 0 | D50: ='はり(グラフ)'!J14 -> 0 | E50: ='壁(グラフ)'!K15 -> 0 | O50: ='スラブ(グラフ)'!I16 -> 0 | P50: ='柱(グラフ)'!K15 -> 0 | Q50: ='はり(グラフ)'!K14 -> 0 | R50: ='壁(グラフ)'!L15 -> 0 | AQ50: ='ポンプ150m未満(グラフ)'!P12 -> 25 | AR50: ='ポンプ150～300m(グラフ)'!P12 -> 25 | AS50: ='ポンプ300～500m(グラフ)'!D12 -> 25 | AW50: ='ポンプ150m未満(グラフ)'!Q12 -> 265 | AX50: ='ポンプ150～300m(グラフ)'!Q12 -> 295 | AY50: ='ポンプ300～500m(グラフ)'!E12 -> 317
A53: 4 | B53: ='スラブ(グラフ)'!M7 -> 12 | C53: ='柱(グラフ)'!D20 -> 7 | D53: ='はり(グラフ)'!P7 -> 8 | E53: ='壁(グラフ)'!N8 -> 12 | N53: 4 | O53: ='スラブ(グラフ)'!N7 -> 600 | P53: ='柱(グラフ)'!E20 -> 580 | Q53: ='はり(グラフ)'!Q7 -> 600 | R53: ='壁(グラフ)'!O8 -> 600 | AQ53: ='ポンプ150m未満(グラフ)'!S5 -> 7 | AR53: ='ポンプ150～300m(グラフ)'!S5 -> 10 | AS53: ='ポンプ300～500m(グラフ)'!G5 -> 15 | AW53: ='ポンプ150m未満(グラフ)'!T5 -> 500 | AX53: ='ポンプ150～300m(グラフ)'!T5 -> 500 | AY53: ='ポンプ300～500m(グラフ)'!H5 -> 500
B54: ='スラブ(グラフ)'!M8 -> 12 | C54: ='柱(グラフ)'!D21 -> 7 | D54: ='はり(グラフ)'!P8 -> 8 | E54: ='壁(グラフ)'!N9 -> 12 | O54: ='スラブ(グラフ)'!N8 -> 260 | P54: ='柱(グラフ)'!E21 -> 310 | Q54: ='はり(グラフ)'!Q8 -> 300 | R54: ='壁(グラフ)'!O9 -> 300 | AQ54: ='ポンプ150m未満(グラフ)'!S6 -> 7 | AR54: ='ポンプ150～300m(グラフ)'!S6 -> 10 | AS54: ='ポンプ300～500m(グラフ)'!G6 -> 15 | AW54: ='ポンプ150m未満(グラフ)'!T6 -> 300 | AX54: ='ポンプ150～300m(グラフ)'!T6 -> 330 | AY54: ='ポンプ300～500m(グラフ)'!H6 -> 345
B55: ='スラブ(グラフ)'!M9 -> 15 | C55: ='柱(グラフ)'!D22 -> 12 | D55: ='はり(グラフ)'!P9 -> 10 | E55: ='壁(グラフ)'!N10 -> 12 | O55: ='スラブ(グラフ)'!N9 -> 270 | P55: ='柱(グラフ)'!E22 -> 280 | Q55: ='はり(グラフ)'!Q9 -> 280 | R55: ='壁(グラフ)'!O10 -> 280 | AQ55: ='ポンプ150m未満(グラフ)'!S7 -> 8 | AR55: ='ポンプ150～300m(グラフ)'!S7 -> 12 | AS55: ='ポンプ300～500m(グラフ)'!G7 -> 18 | AW55: ='ポンプ150m未満(グラフ)'!T7 -> 292 | AX55: ='ポンプ150～300m(グラフ)'!T7 -> 325 | AY55: ='ポンプ300～500m(グラフ)'!H7 -> 338
B56: ='スラブ(グラフ)'!M10 -> 18 | C56: ='柱(グラフ)'!D23 -> 14 | D56: ='はり(グラフ)'!P10 -> 15 | E56: ='壁(グラフ)'!N11 -> 15 | O56: ='スラブ(グラフ)'!N10 -> 280 | P56: ='柱(グラフ)'!E23 -> 280 | Q56: ='はり(グラフ)'!Q10 -> 280 | R56: ='壁(グラフ)'!O11 -> 280 | AQ56: ='ポンプ150m未満(グラフ)'!S8 -> 12 | AR56: ='ポンプ150～300m(グラフ)'!S8 -> 16 | AS56: ='ポンプ300～500m(グラフ)'!G8 -> 20 | AW56: ='ポンプ150m未満(グラフ)'!T8 -> 285 | AX56: ='ポンプ150～300m(グラフ)'!T8 -> 315 | AY56: ='ポンプ300～500m(グラフ)'!H8 -> 332
B57: ='スラブ(グラフ)'!M11 -> 25 | C57: ='柱(グラフ)'!D24 -> 18 | D57: ='はり(グラフ)'!P11 -> 18 | E57: ='壁(グラフ)'!N12 -> 18 | O57: ='スラブ(グラフ)'!N11 -> 600 | P57: ='柱(グラフ)'!E24 -> 320 | Q57: ='はり(グラフ)'!Q11 -> 300 | R57: ='壁(グラフ)'!O12 -> 300 | AQ57: ='ポンプ150m未満(グラフ)'!S9 -> 16 | AR57: ='ポンプ150～300m(グラフ)'!S9 -> 18 | AS57: ='ポンプ300～500m(グラフ)'!G9 -> 22 | AW57: ='ポンプ150m未満(グラフ)'!T9 -> 282 | AX57: ='ポンプ150～300m(グラフ)'!T9 -> 310 | AY57: ='ポンプ300～500m(グラフ)'!H9 -> 332
B58: ='スラブ(グラフ)'!M12 -> 25 | C58: ='柱(グラフ)'!D25 -> 24 | D58: ='はり(グラフ)'!P12 -> 25 | E58: ='壁(グラフ)'!N13 -> 25 | O58: ='スラブ(グラフ)'!N12 -> 600 | P58: ='柱(グラフ)'!E25 -> 580 | Q58: ='はり(グラフ)'!Q12 -> 600 | R58: ='壁(グラフ)'!O13 -> 600 | AQ58: ='ポンプ150m未満(グラフ)'!S10 -> 18 | AR58: ='ポンプ150～300m(グラフ)'!S10 -> 20 | AS58: ='ポンプ300～500m(グラフ)'!G10 -> 25 | AW58: ='ポンプ150m未満(グラフ)'!T10 -> 282 | AX58: ='ポンプ150～300m(グラフ)'!T10 -> 310 | AY58: ='ポンプ300～500m(グラフ)'!H10 -> 332
B59: ='スラブ(グラフ)'!M13 -> 0 | C59: ='柱(グラフ)'!D26 -> 0 | D59: ='はり(グラフ)'!P13 -> 0 | E59: ='壁(グラフ)'!N14 -> 0 | O59: ='スラブ(グラフ)'!N13 -> 0 | P59: ='柱(グラフ)'!E26 -> 0 | Q59: ='はり(グラフ)'!Q13 -> 0 | R59: ='壁(グラフ)'!O14 -> 0 | AQ59: ='ポンプ150m未満(グラフ)'!S11 -> 18 | AR59: ='ポンプ150～300m(グラフ)'!S11 -> 20 | AS59: ='ポンプ300～500m(グラフ)'!G11 -> 25 | AW59: ='ポンプ150m未満(グラフ)'!T11 -> 282 | AX59: ='ポンプ150～300m(グラフ)'!T11 -> 310 | AY59: ='ポンプ300～500m(グラフ)'!H11 -> 332
B60: ='スラブ(グラフ)'!K16 -> 0 | C60: ='柱(グラフ)'!D27 -> 0 | D60: ='はり(グラフ)'!P14 -> 0 | E60: ='壁(グラフ)'!N15 -> 0 | O60: ='スラブ(グラフ)'!L16 -> 0 | P60: ='柱(グラフ)'!E27 -> 0 | Q60: ='はり(グラフ)'!Q14 -> 0 | R60: ='壁(グラフ)'!O15 -> 0 | AQ60: ='ポンプ150m未満(グラフ)'!S12 -> 25 | AR60: ='ポンプ150～300m(グラフ)'!S12 -> 25 | AS60: ='ポンプ300～500m(グラフ)'!G12 -> 25 | AW60: ='ポンプ150m未満(グラフ)'!T12 -> 282 | AX60: ='ポンプ150～300m(グラフ)'!T12 -> 310 | AY60: ='ポンプ300～500m(グラフ)'!H12 -> 332
A63: 5 | C63: ='柱(グラフ)'!G20 -> 9 | D63: ='はり(グラフ)'!S7 -> 10 | E63: ='壁(グラフ)'!R8 -> 10 | N63: 5 | P63: ='柱(グラフ)'!H20 -> 580 | Q63: ='はり(グラフ)'!T7 -> 600 | R63: ='壁(グラフ)'!S8 -> 620
C64: ='柱(グラフ)'!G21 -> 9 | D64: ='はり(グラフ)'!S8 -> 10 | E64: ='壁(グラフ)'!R9 -> 10 | P64: ='柱(グラフ)'!H21 -> 300 | Q64: ='はり(グラフ)'!T8 -> 280 | R64: ='壁(グラフ)'!S9 -> 285
C65: ='柱(グラフ)'!G22 -> 12 | D65: ='はり(グラフ)'!S9 -> 10 | E65: ='壁(グラフ)'!R10 -> 11 | P65: ='柱(グラフ)'!H22 -> 280 | Q65: ='はり(グラフ)'!T9 -> 280 | R65: ='壁(グラフ)'!S10 -> 280
C66: ='柱(グラフ)'!G23 -> 14 | D66: ='はり(グラフ)'!S10 -> 15 | E66: ='壁(グラフ)'!R11 -> 16 | P66: ='柱(グラフ)'!H23 -> 280 | Q66: ='はり(グラフ)'!T10 -> 280 | R66: ='壁(グラフ)'!S11 -> 280
C67: ='柱(グラフ)'!G24 -> 18 | D67: ='はり(グラフ)'!S11 -> 18 | E67: ='壁(グラフ)'!R12 -> 20 | P67: ='柱(グラフ)'!H24 -> 320 | Q67: ='はり(グラフ)'!T11 -> 300 | R67: ='壁(グラフ)'!S12 -> 300
C68: ='柱(グラフ)'!G25 -> 24 | D68: ='はり(グラフ)'!S12 -> 25 | E68: ='壁(グラフ)'!R13 -> 26 | P68: ='柱(グラフ)'!H25 -> 580 | Q68: ='はり(グラフ)'!T12 -> 600 | R68: ='壁(グラフ)'!S13 -> 620
C69: ='柱(グラフ)'!G26 -> 0 | D69: ='はり(グラフ)'!S13 -> 0 | E69: ='壁(グラフ)'!R14 -> 0 | P69: ='柱(グラフ)'!H26 -> 0 | Q69: ='はり(グラフ)'!T13 -> 0 | R69: ='壁(グラフ)'!S14 -> 0
C70: ='柱(グラフ)'!G27 -> 0 | D70: ='はり(グラフ)'!S14 -> 0 | E70: ='壁(グラフ)'!R15 -> 0 | P70: ='柱(グラフ)'!H27 -> 0 | Q70: ='はり(グラフ)'!T14 -> 0 | R70: ='壁(グラフ)'!S15 -> 0
A73: 6 | C73: ='柱(グラフ)'!J20 -> 15 | D73: ='はり(グラフ)'!V7 -> 12 | E73: ='壁(グラフ)'!U8 -> 12 | N73: 6 | P73: ='柱(グラフ)'!K20 -> 580 | Q73: ='はり(グラフ)'!W7 -> 600 | R73: ='壁(グラフ)'!V8 -> 620
C74: ='柱(グラフ)'!J21 -> 15 | D74: ='はり(グラフ)'!V8 -> 12 | E74: ='壁(グラフ)'!U9 -> 12 | P74: ='柱(グラフ)'!K21 -> 290 | Q74: ='はり(グラフ)'!W8 -> 300 | R74: ='壁(グラフ)'!V9 -> 300
C75: ='柱(グラフ)'!J22 -> 18 | D75: ='はり(グラフ)'!V9 -> 12 | E75: ='壁(グラフ)'!U10 -> 12 | P75: ='柱(グラフ)'!K22 -> 320 | Q75: ='はり(グラフ)'!W9 -> 280 | R75: ='壁(グラフ)'!V10 -> 280
C76: ='柱(グラフ)'!J23 -> 18 | D76: ='はり(グラフ)'!V10 -> 15 | E76: ='壁(グラフ)'!U11 -> 16 | P76: ='柱(グラフ)'!K23 -> 320 | Q76: ='はり(グラフ)'!W10 -> 280 | R76: ='壁(グラフ)'!V11 -> 280
C77: ='柱(グラフ)'!J24 -> 18 | D77: ='はり(グラフ)'!V11 -> 18 | E77: ='壁(グラフ)'!U12 -> 20 | P77: ='柱(グラフ)'!K24 -> 320 | Q77: ='はり(グラフ)'!W11 -> 300 | R77: ='壁(グラフ)'!V12 -> 300
C78: ='柱(グラフ)'!J25 -> 24 | D78: ='はり(グラフ)'!V12 -> 25 | E78: ='壁(グラフ)'!U13 -> 26 | P78: ='柱(グラフ)'!K25 -> 580 | Q78: ='はり(グラフ)'!W12 -> 600 | R78: ='壁(グラフ)'!V13 -> 620
C79: ='柱(グラフ)'!J26 -> 0 | D79: ='はり(グラフ)'!V13 -> 0 | E79: ='壁(グラフ)'!U14 -> 0 | P79: ='柱(グラフ)'!K26 -> 0 | Q79: ='はり(グラフ)'!W13 -> 0 | R79: ='壁(グラフ)'!V14 -> 0
C80: ='柱(グラフ)'!J27 -> 0 | D80: ='はり(グラフ)'!V14 -> 0 | E80: ='壁(グラフ)'!U15 -> 0 | P80: ='柱(グラフ)'!K27 -> 0 | Q80: ='はり(グラフ)'!W14 -> 0 | R80: ='壁(グラフ)'!V15 -> 0
A83: 7 | C83: ='柱(グラフ)'!P8 -> 7 | D83: ='はり(グラフ)'!AB7 -> 12 | E83: ='壁(グラフ)'!Y8 -> 12 | N83: 7 | P83: ='柱(グラフ)'!Q8 -> 600 | Q83: ='はり(グラフ)'!AC7 -> 600 | R83: ='壁(グラフ)'!Z8 -> 620
C84: ='柱(グラフ)'!P9 -> 7 | D84: ='はり(グラフ)'!AB8 -> 12 | E84: ='壁(グラフ)'!Y9 -> 12 | P84: ='柱(グラフ)'!Q9 -> 307 | Q84: ='はり(グラフ)'!AC8 -> 310 | R84: ='壁(グラフ)'!Z9 -> 305
C85: ='柱(グラフ)'!P10 -> 11 | D85: ='はり(グラフ)'!AB9 -> 12 | E85: ='壁(グラフ)'!Y10 -> 13 | P85: ='柱(グラフ)'!Q10 -> 280 | Q85: ='はり(グラフ)'!AC9 -> 290 | R85: ='壁(グラフ)'!Z10 -> 300
C86: ='柱(グラフ)'!P11 -> 15 | D86: ='はり(グラフ)'!AB10 -> 15 | E86: ='壁(グラフ)'!Y11 -> 16 | P86: ='柱(グラフ)'!Q11 -> 280 | Q86: ='はり(グラフ)'!AC10 -> 290 | R86: ='壁(グラフ)'!Z11 -> 300
C87: ='柱(グラフ)'!P12 -> 20 | D87: ='はり(グラフ)'!AB11 -> 18 | E87: ='壁(グラフ)'!Y12 -> 19 | P87: ='柱(グラフ)'!Q12 -> 320 | Q87: ='はり(グラフ)'!AC11 -> 320 | R87: ='壁(グラフ)'!Z12 -> 320
C88: ='柱(グラフ)'!P13 -> 25 | D88: ='はり(グラフ)'!AB12 -> 25 | E88: ='壁(グラフ)'!Y13 -> 26 | P88: ='柱(グラフ)'!Q13 -> 600 | Q88: ='はり(グラフ)'!AC12 -> 600 | R88: ='壁(グラフ)'!Z13 -> 620
C89: ='柱(グラフ)'!P14 -> 0 | D89: ='はり(グラフ)'!AB13 -> 0 | E89: ='壁(グラフ)'!Y14 -> 0 | P89: ='柱(グラフ)'!Q14 -> 0 | Q89: ='はり(グラフ)'!AC13 -> 0 | R89: ='壁(グラフ)'!Z14 -> 0
C90: ='柱(グラフ)'!P15 -> 0 | D90: ='はり(グラフ)'!AB14 -> 0 | E90: ='壁(グラフ)'!Y15 -> 0 | P90: ='柱(グラフ)'!Q15 -> 0 | Q90: ='はり(グラフ)'!AC14 -> 0 | R90: ='壁(グラフ)'!Z15 -> 0
A93: 8 | C93: ='柱(グラフ)'!S8 -> 9 | D93: ='はり(グラフ)'!AE7 -> 14 | E93: ='壁(グラフ)'!AB8 -> 12 | N93: 8 | P93: ='柱(グラフ)'!T8 -> 600 | Q93: ='はり(グラフ)'!AF7 -> 600 | R93: ='壁(グラフ)'!AC8 -> 620
C94: ='柱(グラフ)'!S9 -> 9 | D94: ='はり(グラフ)'!AE8 -> 14 | E94: ='壁(グラフ)'!AB9 -> 12 | P94: ='柱(グラフ)'!T9 -> 293 | Q94: ='はり(グラフ)'!AF8 -> 310 | R94: ='壁(グラフ)'!AC9 -> 305
C95: ='柱(グラフ)'!S10 -> 11 | D95: ='はり(グラフ)'!AE9 -> 14 | E95: ='壁(グラフ)'!AB10 -> 13 | P95: ='柱(グラフ)'!T10 -> 280 | Q95: ='はり(グラフ)'!AF9 -> 290 | R95: ='壁(グラフ)'!AC10 -> 300
C96: ='柱(グラフ)'!S11 -> 15 | D96: ='はり(グラフ)'!AE10 -> 15 | E96: ='壁(グラフ)'!AB11 -> 16 | P96: ='柱(グラフ)'!T11 -> 280 | Q96: ='はり(グラフ)'!AF10 -> 290 | R96: ='壁(グラフ)'!AC11 -> 300
C97: ='柱(グラフ)'!S12 -> 20 | D97: ='はり(グラフ)'!AE11 -> 18 | E97: ='壁(グラフ)'!AB12 -> 19 | P97: ='柱(グラフ)'!T12 -> 320 | Q97: ='はり(グラフ)'!AF11 -> 320 | R97: ='壁(グラフ)'!AC12 -> 320
C98: ='柱(グラフ)'!S13 -> 25 | D98: ='はり(グラフ)'!AE12 -> 25 | E98: ='壁(グラフ)'!AB13 -> 26 | P98: ='柱(グラフ)'!T13 -> 600 | Q98: ='はり(グラフ)'!AF12 -> 600 | R98: ='壁(グラフ)'!AC13 -> 620
C99: ='柱(グラフ)'!S14 -> 0 | D99: ='はり(グラフ)'!AE13 -> 0 | E99: ='壁(グラフ)'!AB14 -> 0 | P99: ='柱(グラフ)'!T14 -> 0 | Q99: ='はり(グラフ)'!AF13 -> 0 | R99: ='壁(グラフ)'!AC14 -> 0
C100: ='柱(グラフ)'!S15 -> 0 | D100: ='はり(グラフ)'!AE14 -> 0 | E100: ='壁(グラフ)'!AB15 -> 0 | P100: ='柱(グラフ)'!T15 -> 0 | Q100: ='はり(グラフ)'!AF14 -> 0 | R100: ='壁(グラフ)'!AC15 -> 0
A103: 9 | C103: ='柱(グラフ)'!V8 -> 15 | D103: ='はり(グラフ)'!AH7 -> 16 | E103: ='壁(グラフ)'!AF8 -> 15 | N103: 9 | P103: ='柱(グラフ)'!W8 -> 600 | Q103: ='はり(グラフ)'!AI7 -> 600 | R103: ='壁(グラフ)'!AG8 -> 600
C104: ='柱(グラフ)'!V9 -> 15 | D104: ='はり(グラフ)'!AH8 -> 16 | E104: ='壁(グラフ)'!AF9 -> 15 | P104: ='柱(グラフ)'!W9 -> 280 | Q104: ='はり(グラフ)'!AI8 -> 300 | R104: ='壁(グラフ)'!AG9 -> 300
C105: ='柱(グラフ)'!V10 -> 15 | D105: ='はり(グラフ)'!AH9 -> 16 | E105: ='壁(グラフ)'!AF10 -> 15 | P105: ='柱(グラフ)'!W10 -> 280 | Q105: ='はり(グラフ)'!AI9 -> 300 | R105: ='壁(グラフ)'!AG10 -> 280
C106: ='柱(グラフ)'!V11 -> 15 | D106: ='はり(グラフ)'!AH10 -> 16 | E106: ='壁(グラフ)'!AF11 -> 15 | P106: ='柱(グラフ)'!W11 -> 280 | Q106: ='はり(グラフ)'!AI10 -> 300 | R106: ='壁(グラフ)'!AG11 -> 280
C107: ='柱(グラフ)'!V12 -> 20 | D107: ='はり(グラフ)'!AH11 -> 18 | E107: ='壁(グラフ)'!AF12 -> 18 | P107: ='柱(グラフ)'!W12 -> 320 | Q107: ='はり(グラフ)'!AI11 -> 320 | R107: ='壁(グラフ)'!AG12 -> 300
C108: ='柱(グラフ)'!V13 -> 25 | D108: ='はり(グラフ)'!AH12 -> 25 | E108: ='壁(グラフ)'!AF13 -> 25 | P108: ='柱(グラフ)'!W13 -> 600 | Q108: ='はり(グラフ)'!AI12 -> 600 | R108: ='壁(グラフ)'!AG13 -> 600
C109: ='柱(グラフ)'!V14 -> 0 | D109: ='はり(グラフ)'!AH13 -> 0 | E109: ='壁(グラフ)'!AF14 -> 0 | P109: ='柱(グラフ)'!W14 -> 0 | Q109: ='はり(グラフ)'!AI13 -> 0 | R109: ='壁(グラフ)'!AG14 -> 0
C110: ='柱(グラフ)'!V15 -> 0 | D110: ='はり(グラフ)'!AH14 -> 0 | E110: ='壁(グラフ)'!AF15 -> 0 | P110: ='柱(グラフ)'!W15 -> 0 | Q110: ='はり(グラフ)'!AI14 -> 0 | R110: ='壁(グラフ)'!AG15 -> 0
A113: 10 | C113: ='柱(グラフ)'!P20 -> 9 | E113: ='壁(グラフ)'!AJ8 -> 15 | N113: 10 | P113: ='柱(グラフ)'!Q20 -> 600 | R113: ='壁(グラフ)'!AK8 -> 620
C114: ='柱(グラフ)'!P21 -> 9 | E114: ='壁(グラフ)'!AJ9 -> 15 | P114: ='柱(グラフ)'!Q21 -> 327 | R114: ='壁(グラフ)'!AK9 -> 320
C115: ='柱(グラフ)'!P22 -> 13 | E115: ='壁(グラフ)'!AJ10 -> 15 | P115: ='柱(グラフ)'!Q22 -> 300 | R115: ='壁(グラフ)'!AK10 -> 300
C116: ='柱(グラフ)'!P23 -> 15 | E116: ='壁(グラフ)'!AJ11 -> 16 | P116: ='柱(グラフ)'!Q23 -> 300 | R116: ='壁(グラフ)'!AK11 -> 300
C117: ='柱(グラフ)'!P24 -> 19 | E117: ='壁(グラフ)'!AJ12 -> 19 | P117: ='柱(グラフ)'!Q24 -> 340 | R117: ='壁(グラフ)'!AK12 -> 320
C118: ='柱(グラフ)'!P25 -> 25 | E118: ='壁(グラフ)'!AJ13 -> 26 | P118: ='柱(グラフ)'!Q25 -> 600 | R118: ='壁(グラフ)'!AK13 -> 620
C119: ='柱(グラフ)'!P26 -> 0 | E119: ='壁(グラフ)'!AJ14 -> 0 | P119: ='柱(グラフ)'!Q26 -> 0 | R119: ='壁(グラフ)'!AK14 -> 0
C120: ='柱(グラフ)'!P27 -> 0 | E120: ='壁(グラフ)'!AJ15 -> 0 | P120: ='柱(グラフ)'!Q27 -> 0 | R120: ='壁(グラフ)'!AK15 -> 0
A123: 11 | C123: ='柱(グラフ)'!S20 -> 12 | N123: 11 | P123: ='柱(グラフ)'!T20 -> 600
C124: ='柱(グラフ)'!S21 -> 12 | P124: ='柱(グラフ)'!T21 -> 307
C125: ='柱(グラフ)'!S22 -> 13 | P125: ='柱(グラフ)'!T22 -> 300
C126: ='柱(グラフ)'!S23 -> 15 | P126: ='柱(グラフ)'!T23 -> 300
C127: ='柱(グラフ)'!S24 -> 19 | P127: ='柱(グラフ)'!T24 -> 340
C128: ='柱(グラフ)'!S25 -> 25 | P128: ='柱(グラフ)'!T25 -> 600
C129: ='柱(グラフ)'!S26 -> 0 | P129: ='柱(グラフ)'!T26 -> 0
C130: ='柱(グラフ)'!S27 -> 0 | P130: ='柱(グラフ)'!T27 -> 0
A133: 12 | C133: ='柱(グラフ)'!V20 -> 15 | N133: 12 | P133: ='柱(グラフ)'!W20 -> 600
C134: ='柱(グラフ)'!V21 -> 15 | P134: ='柱(グラフ)'!W21 -> 320
C135: ='柱(グラフ)'!V22 -> 15 | P135: ='柱(グラフ)'!W22 -> 300
C136: ='柱(グラフ)'!V23 -> 15 | P136: ='柱(グラフ)'!W23 -> 300
C137: ='柱(グラフ)'!V24 -> 19 | P137: ='柱(グラフ)'!W24 -> 340
C138: ='柱(グラフ)'!V25 -> 25 | P138: ='柱(グラフ)'!W25 -> 600
C139: ='柱(グラフ)'!V26 -> 0 | P139: ='柱(グラフ)'!W26 -> 0
C140: ='柱(グラフ)'!V27 -> 0 | P140: ='柱(グラフ)'!W27 -> 0
A143: 13 | N143: 13

Sheet スラブ
B2: スラブ部材における打込みの最小スランプの標準値（案）
B3: 施工条件１ | D3: 施工条件２ | F3: 施工条件３ | J3: 選定値
B4: 締固め作業高さ | D4: コンクリートの投入箇所間隔 | H4: 打込みの最小スランプ | J4: 条件３ | K4: 条件２ | L4: 条件１
B5: (m) | D5: (m) | H5: cm
B6: 以上 | C6: 未満 | D6: 以上 | E6: 未満 | F6: 未満 | G6: 以上
B7: 0 | C7: 0.5 | D7: 0 | E7: 2 | H7: 5 | K7: =IF($D$15<E7,H7,IF($D$15<E9,H9,IF($D$15<E10,H10,E11))) -> 12 | L7: =IF(D14<C7,K7,IF(D14<=C8,K8,IF(D14<C9,K9,C11))) -> 締固め作業高さを検討
B8: =C7 -> 0.5 | C8: 1.5 | D8: =D7 -> 0 | E8: =E7 -> 2 | H8: 7 | K8: =IF($D$15<E8,H8,IF($D$15<E9,H9,IF($D$15<E10,H10,E11))) -> 12
B9: =C8 -> 1.5 | C9: 3 | D9: =E8 -> 2 | E9: 3 | H9: 10 | K9: =IF($D$15<E9,H9,IF($D$15<E10,H10,E11)) -> 12
D10: =E9 -> 3 | E10: 4 | H10: 12
C11: 締固め作業高さを検討 | E11: 投入間隔を検討
K12: 照査シートへリンク
D13: 入力値 | K13: 閾値
B14: 施工条件１ | C14: =B4 -> 締固め作業高さ | D14: ='Ⅰ-JIS選定シート'!F14 -> 650 | E14: =B5 -> (m) | K14: 上限値
B15: 施工条件２ | C15: =D4 -> コンクリートの投入箇所間隔 | D15: ='Ⅰ-JIS選定シート'!F16 -> 3 | E15: =D5 -> (m) | K15: 設定スランプ
B16: 施工条件３ | C16: =F4 ->  | D16: ='Ⅰ-JIS選定シート'!F18 -> 48 | E16: =F5 ->  | G16: 選択スランプ | H16: =IF(D14=0,"NG!",IF(D15=0,"NG!",L7)) -> 締固め作業高さを検討 | K16: 選択スランプ

Sheet 柱
B2: 柱部材における打込みの最小スランプの標準値（案）
B3: 施工条件１ | D3: 施工条件２ | F3: 施工条件３ | J3: 選定値
B4: 有効換算鋼材量 | D4: 締固め作業高さ | F4: かぶりあるいは鋼材の最小あき | H4: 打込みの最小スランプ | J4: 条件３ | K4: 条件２ | L4: 条件１
B5: (kg/m3) | D5: (m) | F5: (mm) | H5: cm
B6: 以上 | C6: 未満 | D6: 以上 | E6: 未満 | F6: 未満 | G6: 以上
B7: 0 | C7: 700 | D7: 0 | E7: 3 | G7: 50 | H7: 5 | J7: =IF(D24<G7,H8,H7) -> 7 | K7: =IF(D23<E7,J7,IF(D23<E9,J9,J11)) -> 9 | L7: =IF(D22<C7,K7,K13) -> 9
F8: =G7 -> 50 | G8: 0 | H8: 7
D9: =E7 -> 3 | E9: 5 | G9: =G7 -> 50 | H9: 7 | J9: =IF(D24<G9,H10,H9) -> 9
F10: =G9 -> 50 | G10: 0 | H10: 9
D11: =E9 -> 5 | G11: =G9 -> 50 | H11: 12 | J11: =IF(D24<G11,H12,H11) -> 15
F12: =G11 -> 50 | G12: 0 | H12: 15
B13: =C7 -> 700 | D13: 0 | E13: =E7 -> 3 | G13: =G11 -> 50 | H13: 7 | J13: =IF(D24<G13,H14,H13) -> 9 | K13: =IF(D23<E13,J13,IF(D23<E15,J15,J17)) -> 12
F14: =G13 -> 50 | G14: 0 | H14: 9
D15: =E13 -> 3 | E15: =E9 -> 5 | G15: =G13 -> 50 | H15: 9 | J15: =IF(D24<G15,H16,H15) -> 12
F16: =G15 -> 50 | G16: 0 | H16: 12
D17: =E15 -> 5 | G17: =G15 -> 50 | H17: 15 | J17: =IF(D24<G17,H18,H17) -> 15
F18: =G17 -> 50 | G18: 0 | H18: 15
K20: 照査シートへリンク
D21: 入力値 | K21: 閾値
B22: 施工条件１ | C22: =B4 -> 有効換算鋼材量 | D22: ='Ⅰ-JIS選定シート'!F14 -> 650 | E22: =B5 -> (kg/m3) | K22: 上限値
B23: 施工条件２ | C23: =D4 -> 締固め作業高さ | D23: ='Ⅰ-JIS選定シート'!F16 -> 3 | E23: =D5 -> (m) | K23: 設定スランプ
B24: 施工条件３ | C24: =F4 -> かぶりあるいは鋼材の最小あき | D24: ='Ⅰ-JIS選定シート'!F18 -> 48 | E24: =F5 -> (mm) | G24: 選択スランプ | H24: =IF(D22=0,"NG!",IF(D23=0,"NG!",IF(D24=0,"NG!",L7))) -> 9 | K24: 選択スランプ

Sheet はり
B2: はり部材における打込みの最小スランプの標準値（案）
B3: 施工条件１ | D3: 施工条件２ | F3: 施工条件３ | J3: 選定値
B4: 鋼材の最小あき | D4: 締固め作業高さ | H4: 打込みの最小スランプ | J4: 条件３ | K4: 条件２ | L4: 条件１
B5: (mm) | D5: (m) | H5: cm
B6: 以上 | C6: 未満 | D6: 以上 | E6: 未満
B7: 150 | E7: 0.5 | H7: 5 | K7: =IF($D$26<E7,H7,IF($D$26<E8,H8,H9)) -> 8 | L7: =IF(D25<C19,K19,IF(D25<C16,K16,IF(D25<C13,K13,IF(D25<C10,K10,K7)))) -> 8
D8: =E7 -> 0.5 | E8: 1.5 | H8: 6
D9: =E8 -> 1.5 | H9: 8
B10: 100 | C10: =B7 -> 150 | E10: =E7 -> 0.5 | H10: 6 | K10: =IF($D$26<E10,H10,IF($D$26<E11,H11,H12)) -> 10
D11: =D8 -> 0.5 | E11: =E8 -> 1.5 | H11: 8
D12: =D9 -> 1.5 | H12: 10
B13: 80 | C13: =B10 -> 100 | E13: =E10 -> 0.5 | H13: 8 | K13: =IF($D$26<E13,H13,IF($D$26<E14,H14,H15)) -> 12
D14: =D11 -> 0.5 | E14: =E11 -> 1.5 | H14: 10
D15: =D12 -> 1.5 | H15: 12
B16: 60 | C16: =B13 -> 80 | E16: =E13 -> 0.5 | H16: 10 | K16: =IF($D$26<E16,H16,IF($D$26<E17,H17,H18)) -> 14
D17: =D14 -> 0.5 | E17: =E14 -> 1.5 | H17: 12
D18: =D15 -> 1.5 | H18: 14
C19: =B16 -> 60 | E19: =E16 -> 0.5 | H19: 12 | K19: =IF($D$26<E19,H19,IF($D$26<E20,H20,H21)) -> 16
D20: =D17 -> 0.5 | E20: =E17 -> 1.5 | H20: 14
D21: =D18 -> 1.5 | H21: 16
K23: 照査シートへリンク
D24: 入力値 | K24: 閾値
B25: 施工条件１ | C25: =B4 -> 鋼材の最小あき | D25: ='Ⅰ-JIS選定シート'!F14 -> 650 | E25: =B5 -> (mm) | K25: 上限値
B26: 施工条件２ | C26: =D4 -> 締固め作業高さ | D26: ='Ⅰ-JIS選定シート'!F16 -> 3 | E26: =D5 -> (m) | K26: 設定スランプ
B27: 施工条件３ | C27: =F4 ->  | D27: ='Ⅰ-JIS選定シート'!F18 -> 48 | E27: =F5 ->  | G27: 選択スランプ | H27: =IF(D25=0,"NG!",L7) -> 8 | K27: 選択スランプ

Sheet 壁
B2: 壁部材における打込みの最小スランプの標準値（案）
B3: 施工条件１ | D3: 施工条件２ | F3: 施工条件３ | J3: 選定値
B4: 締固め作業高さ | D4: 鋼材量 | F4: 鋼材の最小あき | H4: 打込みの最小スランプ | J4: 条件３ | K4: 条件２ | L4: 条件１
B5: (m) | D5: (kg/m3) | F5: (mm) | H5: cm
B6: 以上 | C6: 未満 | D6: 以上 | E6: 未満 | F6: 未満 | G6: 以上
B7: 0 | C7: 3 | D7: 0 | E7: 200 | G7: 100 | H7: 8 | J7: =IF(D22<G7,H8,H7) -> 10 | K7: =IF(D21<E7,J7,IF(D21<E9,J9,H16)) -> 10 | L7: =IF(D20<C7,K7,IF(D20<C11,K11,H15)) -> 15
F8: =G7 -> 100 | G8: 0 | H8: 10
D9: =E7 -> 200 | E9: 350 | G9: =G7 -> 100 | H9: 10 | J9: =IF(D22<G9,H10,H9) -> 12
F10: =G9 -> 100 | G10: 0 | H10: 12
B11: =C7 -> 3 | C11: 5 | D11: 0 | E11: =E7 -> 200 | G11: =G9 -> 100 | H11: 10 | J11: =IF(D22<G11,H12,H11) -> 12 | K11: =IF(D21<E11,J11,IF(D21<E13,J13,H16)) -> 12
F12: =G11 -> 100 | G12: 0 | H12: 12
D13: =E11 -> 200 | E13: =E9 -> 350 | G13: =G11 -> 100 | H13: 12 | J13: =IF(D22<G13,H14,H13) -> 12
F14: =G13 -> 100 | G14: 0 | H14: 12
B15: =C11 -> 5 | G15: =G13 -> 100 | H15: 15
D16: =E13 -> 350 | F16: =G15 -> 100 | G16: 0 | H16: 15
K18: 照査シートへリンク
D19: 入力値 | K19: 閾値
B20: 施工条件１ | C20: =B4 -> 締固め作業高さ | D20: ='Ⅰ-JIS選定シート'!F14 -> 650 | E20: =B5 -> (m) | K20: 上限値
B21: 施工条件２ | C21: =D4 -> 鋼材量 | D21: ='Ⅰ-JIS選定シート'!F16 -> 3 | E21: =D5 -> (kg/m3) | K21: 設定スランプ
B22: 施工条件３ | C22: =F4 -> 鋼材の最小あき | D22: ='Ⅰ-JIS選定シート'!F18 -> 48 | E22: =F5 -> (mm) | G22: 選択スランプ | H22: =IF(D20=0,"NG!",IF(D21=0,"NG!",IF(D22=0,"NG!",L7))) -> 15 | K22: 選択スランプ

Sheet PC部材
B2: PC部材における打込みの最小スランプの標準値（案）
B3: 施工条件１ | D3: 施工条件２ | F3: 施工条件３ | J3: 選定値
B4: 呼び強度 | D4: 平均鉄筋量 | F4: RC換算鉄筋量 | H4: 打込みの最小スランプ | J4: 条件３ | K4: 条件２ | L4: 条件１
B5: N | D5: (kg/m3) | F5: (kg/m3) | H5: cm
D6: 以上 | E6: 未満 | F6: 以上 | G6: 未満
B7: 36 | C7: 40 | E7: 120 | G7: 250 | H7: 7 | J7: =IF(D17<G7,H7,IF(D17<G8,H8,IF(D17<G9,H9,IF(D17<G10,H10,G13)))) -> 7 | K7: =IF(D16<E7,H7,IF(D16<E8,H8,IF(D16<E9,H9,IF(D16<E10,H10,E13)))) -> *** | L7: =IF(E10<D16+0.1,E13,IF(G10<D17+0.1,G13,IF(D18<C7+0.1,MAX(J7:K7),MAX(J11:K11)))) -> ***
D8: =E7 -> 120 | E8: 140 | F8: =G7 -> 250 | G8: 300 | H8: 9
D9: =E8 -> 140 | E9: 170 | F9: =G8 -> 300 | G9: 350 | H9: 12
D10: =E9 -> 170 | E10: 200 | F10: =G9 -> 350 | G10: 400 | H10: 15
B11: =C7 -> 40 | C11: 50 | E11: 170 | G11: 350 | H11: 12 | J11: =IF(D17<G11,H11,IF(D17<G12,H12,G13)) -> 12 | K11: =IF(D16<E11,H11,IF(D16<E12,H12,E13)) -> ***
D12: =E11 -> 170 | E12: =E10 -> 200 | F12: =G11 -> 350 | G12: =G10 -> 400 | H12: 15
E13: *** | G13: ***
K14: 照査シートへリンク
D15: 入力値 | K15: 閾値
B16: 施工条件１ | C16: =D4 -> 平均鉄筋量 | D16: ='Ⅰ-JIS選定シート'!F14 -> 650 | E16: =D5 -> (kg/m3) | K16: 上限値
B17: 施工条件２ | C17: =F4 -> RC換算鉄筋量 | D17: ='Ⅰ-JIS選定シート'!F16 -> 3 | E17: =F5 -> (kg/m3) | K17: 設定スランプ
B18: 施工条件３ | C18: =B4 -> 呼び強度 | D18: =IF(ROUND('Ⅰ-JIS選定シート'!F18,0)<B7,0,ROUND('Ⅰ-JIS選定シート'!F18,0)) -> 48 | E18: =B5 -> N | G18: 選択スランプ | H18: =IF(D18<B7,"NG!",IF(D16=0,"NG!",IF(D17=0,"NG!",L7))) -> *** | K18: 選択スランプ

Sheet 補正値
B2: 柱部材における打込みの最小スランプの標準値（案）
B3: 施工条件１ | D3: 施工条件２ | F3: 施工条件３ | K3: 選定値
B4: 最小スランプ | D4: ポンプ圧送距離 | H4: 補正値 | I4: 圧送条件 | K4: 条件３ | L4: 条件２ | M4: 条件１
B5: (cm) | D5: (m) | H5: cm | I5: 選択
B6: 以上 | C6: 未満 | D6: 以上 | E6: 未満
B7: 0 | C7: 12 | D7: 0 | E7: 50 | H7: 0 | I7: =IF(D39="無し",H7,H24) -> 0 | L7: =IF(D40<E7,I7,IF(D40<E8,I8,IF(D40<E9,I9,IF(D40<E10,I10,I11)))) -> 0 | M7: =IF(E9<D40+1,E17,IF(D38<C7,L7,L12)) -> 0
D8: =E7 -> 50 | E8: 150 | H8: 0 | I8: =IF(D39="無し",H8,H25) -> 0
D9: =E8 -> 150 | E9: 300 | H9: 1.5 | I9: =IF(D39="無し",H9,H26) -> 1.5
B12: =C7 -> 12 | D12: 0 | E12: =E7 -> 50 | H12: 0 | I12: =IF(D39="無し",H12,H29) -> 0 | L12: =IF(D40<E12,I12,IF(D40<E13,I13,IF(D40<E14,I14,IF(D40<E15,I15,I16)))) -> 0
D13: =E12 -> 50 | E13: =E8 -> 150 | H13: 0 | I13: =IF(D39="無し",H13,H30) -> 0
D14: =E13 -> 150 | E14: =E9 -> 300 | H14: 1 | I14: =IF(D39="無し",H14,H31) -> 1
E17: ***
B20: 施工条件１ | D20: 施工条件２ | F20: 施工条件３
B21: 最小スランプ | D21: テーパー管100A以下を使用 | H21: 補正値
B22: (cm) | D22: (m) | H22: cm
B23: 以上 | C23: 未満 | D23: 以上 | E23: 未満
B24: 0 | C24: 12 | D24: 0 | E24: 50 | H24: 0
D25: =E24 -> 50 | E25: 150 | H25: 1
D26: =E25 -> 150 | E26: 300 | H26: 2
B29: =C24 -> 12 | D29: 0 | E29: =E24 -> 50 | H29: 0
D30: =E29 -> 50 | E30: =E25 -> 150 | H30: 0.5
D31: =E30 -> 150 | E31: =E26 -> 300 | H31: 1.5
E34: ***
D37: 入力値 | K37: 照査シートへリンク
B38: 施工条件１ | C38: =B4 -> 最小スランプ | D38: ='Ⅰ-JIS選定シート'!I20 -> 9 | E38: =B5 -> (cm) | K38: 閾値
C39: 圧送条件 | D39: ='Ⅰ-JIS選定シート'!F25 -> 無し | K39: 上限値
B40: 施工条件２ | C40: =D4 -> ポンプ圧送距離 | D40: ='Ⅰ-JIS選定シート'!F27 -> 135 | E40: =D5 -> (m) | G40: 圧送補正値 | H40: =IF(D38=0,"NG!",IF(D40=0,"NG!",M7)) -> 0 | K40: 設定スランプ
C41: 日平均気温 | D41: ='Ⅰ-JIS選定シート'!F29 -> 25 | E41: ℃ | G41: 温度補正値 | H41: =IF(E9<D40+1,E17,IF(D41>D42,1,0)) -> 0 | K41: 選択スランプ
C42: 温度閾値 | D42: 25 | G42: 条件補正値 | H42: =IF(E9<D40+1,E17,IF(D43="無し",0,1)) -> 0
C43: 特殊条件 | D43: ='Ⅰ-JIS選定シート'!F32 -> 無し

Sheet スラブ(グラフ)
C1: スラブ | E1: 締固め作業高さ，投入箇所の間隔 | R1: グラフデータ
D4: 1 | G4: 2 | J4: 3 | M4: 4
C5: 締固め作業高さ | D5: 0.5m未満 | G5: 0.5～1.5以下 | J5: 3.0m未満 | M5: 4.0m未満 | P5: 上限 | R5: ←各部材共通
C6: 投入箇所の間隔 | D6: 任意 | G6: 任意 | J6: 2～3ｍ | M6: 3～4ｍ
D7: 5 | E7: 600 | G7: 7 | H7: 600 | J7: 10 | K7: 600 | M7: 12 | N7: 600 | P7: 3 | Q7: 200
D8: 5 | E8: 250 | G8: 7 | H8: 250 | J8: 10 | K8: 253 | M8: 12 | N8: 260 | P8: 6 | Q8: 350
D9: 8 | E9: 250 | G9: 8 | H9: 250 | J9: 12 | K9: 260 | M9: 15 | N9: 270 | P9: 8 | Q9: 400
D10: 18 | E10: 280 | G10: 18 | H10: 280 | J10: 18 | K10: 280 | M10: 18 | N10: 280 | P10: 15 | Q10: 440
D11: 25 | E11: 600 | G11: 25 | H11: 600 | J11: 25 | K11: 600 | M11: 25 | N11: 600 | P11: 20 | Q11: 480
D12: 25 | E12: 600 | G12: 25 | H12: 600 | J12: 25 | K12: 600 | M12: 25 | N12: 600 | P12: 27 | Q12: 600
D15: 1 | P15: 2
N17: 5 | O17: 600
N18: 5 | O18: 200
N20: 10 | O20: 600
N21: 10 | O21: 200
N23: 15 | O23: 600
N24: 15 | O24: 200
N26: 20 | O26: 600
N27: 20 | O27: 200
D36: 3 | P36: 4

Sheet 柱(グラフ)
C1: 柱 | E1: 有効換算鋼材量，鋼材の空き，締固め作業高さ | U1: グラフデータ
D4: 有効換算鋼材量：700kg/m3未満 | O4: 有効換算鋼材量：700kg/m3以上
D5: 鋼材の空き：50mm以上 | O5: 鋼材の空き：50mm以上
D6: 1 | G6: 2 | J6: 3 | P6: 7 | S6: 8 | V6: 9
C7: 締固め作業高さ | D7: 3m未満 | G7: 3～5m未満 | J7: 5m以上 | P7: 3m未満 | S7: 3～5m未満 | V7: 5m以上 | Z7: 上限
D8: 5 | E8: 580 | G8: 7 | H8: 580 | J8: 12 | K8: 580 | P8: 7 | Q8: 600 | S8: 9 | T8: 600 | V8: 15 | W8: 600 | Y8: 3 | Z8: 200
D9: 5 | E9: 287 | G9: 7 | H9: 275 | J9: 12 | K9: 260 | P9: 7 | Q9: 307 | S9: 9 | T9: 293 | V9: 15 | W9: 280 | Y9: 6 | Z9: 350
D10: 10 | E10: 260 | G10: 10 | H10: 260 | J10: 14 | K10: 260 | P10: 11 | Q10: 280 | S10: 11 | T10: 280 | V10: 15 | W10: 280 | Y10: 8 | Z10: 400
D11: 14 | E11: 260 | G11: 14 | H11: 260 | J11: 14 | K11: 260 | P11: 15 | Q11: 280 | S11: 15 | T11: 280 | V11: 15 | W11: 280 | Y11: 15 | Z11: 440
D12: 19 | E12: 300 | G12: 19 | H12: 300 | J12: 19 | K12: 300 | P12: 20 | Q12: 320 | S12: 20 | T12: 320 | V12: 20 | W12: 320 | Y12: 20 | Z12: 480
D13: 24 | E13: 580 | G13: 24 | H13: 580 | J13: 24 | K13: 580 | P13: 25 | Q13: 600 | S13: 25 | T13: 600 | V13: 25 | W13: 600 | Y13: 27 | Z13: 600
D16: 有効換算鋼材量：700kg/m3未満 | O16: 有効換算鋼材量：700kg/m3以上
D17: 鋼材の空き：50mm未満 | O17: 鋼材の空き：50mm未満
D18: 4 | G18: 5 | J18: 6 | P18: 10 | S18: 11 | V18: 12
C19: 締固め作業高さ | D19: 3m未満 | G19: 3～5m未満 | J19: 5m以上 | P19: 3m未満 | S19: 3～5m未満 | V19: 5m以上
D20: 7 | E20: 580 | G20: 9 | H20: 580 | J20: 15 | K20: 580 | P20: 9 | Q20: 600 | S20: 12 | T20: 600 | V20: 15 | W20: 600
D21: 7 | E21: 310 | G21: 9 | H21: 300 | J21: 15 | K21: 290 | P21: 9 | Q21: 327 | S21: 12 | T21: 307 | V21: 15 | W21: 320
D22: 12 | E22: 280 | G22: 12 | H22: 280 | J22: 18 | K22: 320 | P22: 13 | Q22: 300 | S22: 13 | T22: 300 | V22: 15 | W22: 300
D23: 14 | E23: 280 | G23: 14 | H23: 280 | J23: 18 | K23: 320 | P23: 15 | Q23: 300 | S23: 15 | T23: 300 | V23: 15 | W23: 300
D24: 18 | E24: 320 | G24: 18 | H24: 320 | J24: 18 | K24: 320 | P24: 19 | Q24: 340 | S24: 19 | T24: 340 | V24: 19 | W24: 340
D25: 24 | E25: 580 | G25: 24 | H25: 580 | J25: 24 | K25: 580 | P25: 25 | Q25: 600 | S25: 25 | T25: 600 | V25: 25 | W25: 600
B28: 有効換算鋼材量：700kg/m3未満
B29: 鋼材の空き：50mm以上
D30: 1 | P30: 2 | AB30: 3
B49: 有効換算鋼材量：700kg/m3未満
B50: 鋼材の空き：50mm未満
D51: 4 | P51: 5 | AB51: 6
B70: 有効換算鋼材量：700kg/m3以上
B71: 鋼材の空き：50mm以上
D72: 7 | P72: 8 | AB72: 9
B91: 有効換算鋼材量：700kg/m3以上
B92: 鋼材の空き：50mm未満
D93: 10 | P93: 11 | AB93: 12

Sheet はり(グラフ)
C1: はり部材 | E1: 鋼材の空き，締固め作業高さ | O1: グラフデータ
D4: 鋼材の最小あき150mm以上 | P4: 鋼材の最小あき60mm以上～150mm未満 | AB4: 鋼材の最小あき60mm未満
D5: 1 | G5: 2 | J5: 3 | P5: 4 | S5: 5 | V5: 6 | AB5: 7 | AE5: 8 | AH5: 9
C6: 締固め作業高さ | D6: 0.5m未満 | G6: 0.5～1.5m未満 | J6: 1.5m以上 | P6: 0.5m未満 | S6: 0.5～1.5m未満 | V6: 1.5m以上 | AB6: 0.5m未満 | AE6: 0.5～1.5m未満 | AH6: 1.5m以上 | AM6: 上限
D7: 5 | E7: 600 | G7: 6 | H7: 600 | J7: 8 | K7: 600 | P7: 8 | Q7: 600 | S7: 10 | T7: 600 | V7: 12 | W7: 600 | AB7: 12 | AC7: 600 | AE7: 14 | AF7: 600 | AH7: 16 | AI7: 600 | AL7: 3 | AM7: 200
D8: 5 | E8: 300 | G8: 6 | H8: 290 | J8: 8 | K8: 270 | P8: 8 | Q8: 300 | S8: 10 | T8: 280 | V8: 12 | W8: 300 | AB8: 12 | AC8: 310 | AE8: 14 | AF8: 310 | AH8: 16 | AI8: 300 | AL8: 6 | AM8: 350
D9: 8 | E9: 270 | G9: 8 | H9: 270 | J9: 8 | K9: 270 | P9: 10 | Q9: 280 | S9: 10 | T9: 280 | V9: 12 | W9: 280 | AB9: 12 | AC9: 290 | AE9: 14 | AF9: 290 | AH9: 16 | AI9: 300 | AL9: 8 | AM9: 400
D10: 15 | E10: 270 | G10: 15 | H10: 270 | J10: 15 | K10: 270 | P10: 15 | Q10: 280 | S10: 15 | T10: 280 | V10: 15 | W10: 280 | AB10: 15 | AC10: 290 | AE10: 15 | AF10: 290 | AH10: 16 | AI10: 300 | AL10: 15 | AM10: 440
D11: 18 | E11: 280 | G11: 18 | H11: 280 | J11: 18 | K11: 280 | P11: 18 | Q11: 300 | S11: 18 | T11: 300 | V11: 18 | W11: 300 | AB11: 18 | AC11: 320 | AE11: 18 | AF11: 320 | AH11: 18 | AI11: 320 | AL11: 20 | AM11: 480
D12: 25 | E12: 600 | G12: 25 | H12: 600 | J12: 25 | K12: 600 | P12: 25 | Q12: 600 | S12: 25 | T12: 600 | V12: 25 | W12: 600 | AB12: 25 | AC12: 600 | AE12: 25 | AF12: 600 | AH12: 25 | AI12: 600 | AL12: 27 | AM12: 600
B15: 鋼材の最小あき150mm以上
D16: 1 | P16: 2 | AB16: 3
B36: 鋼材の最小あき60mm以上～150mm未満
D37: 4 | P37: 5 | AB37: 6
B57: 鋼材の最小あき60mm未満
D58: 7 | P58: 8 | AB58: 9

Sheet 壁(グラフ)
C1: 壁部材 | E1: 鋼材量，鋼材の空き，締固め作業高さ | O1: グラフデータ
D4: 鋼材量200kg未満 | K4: 鋼材量200kg未満 | R4: 鋼材量200kg以上，350kg未満 | Y4: 鋼材量200kg以上，350kg未満 | AF4: 鋼材量350kg未満 | AJ4: 鋼材量350kg以上
D5: 鋼材の最小あき100mm以上 | K5: 鋼材の最小あき100mm未満 | R5: 鋼材の最小あき100mm以上 | Y5: 鋼材の最小あき100mm未満 | AF5: 鋼材間隔を問わず | AJ5: 鋼材間隔を問わず
D6: 1 | G6: 2 | K6: 3 | N6: 4 | R6: 5 | U6: 6 | Y6: 7 | AB6: 8 | AF6: 9 | AJ6: 10
C7: 締固め作業高さ | D7: 3m未満 | G7: 3～5m未満 | K7: 3m未満 | N7: 3～5m未満 | R7: 3m未満 | U7: 3～5m未満 | Y7: 3m未満 | AB7: 3～5m未満 | AF7: 5m以上 | AJ7: 高さ問わず | AP7: 上限
D8: 8 | E8: 600 | G8: 10 | H8: 600 | K8: 10 | L8: 600 | N8: 12 | O8: 600 | R8: 10 | S8: 620 | U8: 12 | V8: 620 | Y8: 12 | Z8: 620 | AB8: 12 | AC8: 620 | AF8: 15 | AG8: 600 | AJ8: 15 | AK8: 620 | AO8: 3 | AP8: 200
D9: 8 | E9: 273 | G9: 10 | H9: 260 | K9: 10 | L9: 295 | N9: 12 | O9: 300 | R9: 10 | S9: 285 | U9: 12 | V9: 300 | Y9: 12 | Z9: 305 | AB9: 12 | AC9: 305 | AF9: 15 | AG9: 300 | AJ9: 15 | AK9: 320 | AO9: 6 | AP9: 350
D10: 10 | E10: 260 | G10: 10 | H10: 260 | K10: 12 | L10: 280 | N10: 12 | O10: 280 | R10: 11 | S10: 280 | U10: 12 | V10: 280 | Y10: 13 | Z10: 300 | AB10: 13 | AC10: 300 | AF10: 15 | AG10: 280 | AJ10: 15 | AK10: 300 | AO10: 8 | AP10: 400
D11: 15 | E11: 260 | G11: 15 | H11: 260 | K11: 15 | L11: 280 | N11: 15 | O11: 280 | R11: 16 | S11: 280 | U11: 16 | V11: 280 | Y11: 16 | Z11: 300 | AB11: 16 | AC11: 300 | AF11: 15 | AG11: 280 | AJ11: 16 | AK11: 300 | AO11: 15 | AP11: 440
D12: 19 | E12: 280 | G12: 19 | H12: 280 | K12: 18 | L12: 300 | N12: 18 | O12: 300 | R12: 20 | S12: 300 | U12: 20 | V12: 300 | Y12: 19 | Z12: 320 | AB12: 19 | AC12: 320 | AF12: 18 | AG12: 300 | AJ12: 19 | AK12: 320 | AO12: 20 | AP12: 480
D13: 25 | E13: 600 | G13: 25 | H13: 600 | K13: 25 | L13: 600 | N13: 25 | O13: 600 | R13: 26 | S13: 620 | U13: 26 | V13: 620 | Y13: 26 | Z13: 620 | AB13: 26 | AC13: 620 | AF13: 25 | AG13: 600 | AJ13: 26 | AK13: 620 | AO13: 27 | AP13: 600
B15: 鋼材量200kg未満 | AA15: 鋼材量200kg未満
B16: 鋼材の最小あき100mm以上 | AA16: 鋼材の最小あき100mm未満
D17: 1 | P17: 2 | AC17: 3 | AO17: 4
B36: 鋼材量200kg以上，350kg未満 | AA36: 鋼材量200kg以上，350kg未満
B37: 鋼材の最小あき100mm以上 | AA37: 鋼材の最小あき100mm未満
D38: 5 | P38: 6 | AC38: 7 | AO38: 8
B57: 鋼材量350kg未満 | N57: 鋼材量350kg以上
B58: 鋼材間隔を問わず | N58: 鋼材間隔を問わず
D59: 9 | P59: 10

Sheet PC部材(グラフ)
C1: PC定着部 | I1: グラフデータ
D4: PC定着部
D5: 条件によらず | I5: 上限
D6: 8 | E6: 640 | H6: 3 | I6: 370
D7: 8 | E7: 350 | H7: 3 | I7: 370
D8: 18 | E8: 350 | H8: 8 | I8: 420
D9: 20 | E9: 400 | H9: 15 | I9: 455
D10: 23 | E10: 480 | H10: 20 | I10: 480
D11: 27 | E11: 640 | H11: 27 | I11: 600

Sheet ポンプ150m未満(グラフ)
E1: グラフデータ
E4: 40mm天然砂 | H4: 40mm砕砂 | L4: 上限 | Q4: 20（25）mm天然砂 | T4: 20（25）mm砕砂
D5: 8 | E5: 500 | G5: 8 | H5: 500 | K5: 4 | L5: 375 | P5: 6 | Q5: 500 | S5: 7 | T5: 500 | AM5: 0.36 | AN5: 0.4 | AO5: 0.42 | AP5: 0.44
D6: 8 | E6: 260 | G6: 8 | H6: 285 | K6: 5 | L6: 380 | P6: 6 | Q6: 295 | S6: 7 | T6: 300 | AL6: 155 | AM6: =ROUND(AL6/$AM$5,0) -> 431 | AN6: =ROUND(AL6/$AN$5,0) -> 388 | AO6: =ROUND(AL6/$AO$5,0) -> 369 | AP6: =ROUND(AL6/$AP$5,0) -> 352
D7: 12 | E7: 255 | G7: 12 | H7: 280 | K7: 6 | L7: 385 | P7: 8 | Q7: 275 | S7: 8 | T7: 292 | AL7: 156 | AM7: =ROUND(AL7/$AM$5,0) -> 433 | AN7: =ROUND(AL7/$AN$5,0) -> 390 | AO7: =ROUND(AL7/$AO$5,0) -> 371 | AP7: =ROUND(AL7/$AP$5,0) -> 355
D8: 16 | E8: 250 | G8: 16 | H8: 275 | K8: 8 | L8: 400 | P8: 12 | Q8: 270 | S8: 12 | T8: 285
D9: 18 | E9: 250 | G9: 18 | H9: 275 | K9: 12 | L9: 430 | P9: 16 | Q9: 265 | S9: 16 | T9: 282 | AL9: 157 | AM9: =ROUND(AL9/$AM$5,0) -> 436 | AN9: =ROUND(AL9/$AN$5,0) -> 393 | AO9: =ROUND(AL9/$AO$5,0) -> 374 | AP9: =ROUND(AL9/$AP$5,0) -> 357
D10: 20 | E10: 250 | G10: 20 | H10: 275 | K10: 15 | L10: 430 | P10: 18 | Q10: 265 | S10: 18 | T10: 282 | AL10: 158 | AM10: =ROUND(AL10/$AM$5,0) -> 439 | AN10: =ROUND(AL10/$AN$5,0) -> 395 | AO10: =ROUND(AL10/$AO$5,0) -> 376 | AP10: =ROUND(AL10/$AP$5,0) -> 359
D11: 20 | E11: 250 | G11: 20 | H11: 275 | K11: 15 | L11: 430 | P11: 18 | Q11: 265 | S11: 18 | T11: 282 | AL11: 158 | AM11: =ROUND(AL11/$AM$5,0) -> 439 | AN11: =ROUND(AL11/$AN$5,0) -> 395 | AO11: =ROUND(AL11/$AO$5,0) -> 376 | AP11: =ROUND(AL11/$AP$5,0) -> 359
D12: 25 | E12: 250 | G12: 25 | H12: 275 | K12: 25 | L12: 430 | P12: 25 | Q12: 265 | S12: 25 | T12: 282 | AL12: 159 | AM12: =ROUND(AL12/$AM$5,0) -> 442 | AN12: =ROUND(AL12/$AN$5,0) -> 398 | AO12: =ROUND(AL12/$AO$5,0) -> 379 | AP12: =ROUND(AL12/$AP$5,0) -> 361
AL13: 160 | AM13: =ROUND(AL13/$AM$5,0) -> 444 | AN13: =ROUND(AL13/$AN$5,0) -> 400 | AO13: =ROUND(AL13/$AO$5,0) -> 381 | AP13: =ROUND(AL13/$AP$5,0) -> 364

Sheet ポンプ150～300m(グラフ)
E1: グラフデータ
L3: ←150m未満で共通設定
E4: 40mm天然砂 | H4: 40mm砕砂 | L4: 上限 | Q4: 20（25）mm天然砂 | T4: 20（25）mm砕砂
D5: 12 | E5: 500 | G5: 12 | H5: 500 | K5: ='ポンプ150m未満(グラフ)'!K5 -> 4 | L5: ='ポンプ150m未満(グラフ)'!L5 -> 375 | P5: 10 | Q5: 500 | S5: 10 | T5: 500 | AM5: 0.36 | AN5: 0.4 | AO5: 0.42 | AP5: 0.44
D6: 12 | E6: 295 | G6: 12 | H6: 325 | K6: ='ポンプ150m未満(グラフ)'!K6 -> 5 | L6: ='ポンプ150m未満(グラフ)'!L6 -> 380 | P6: 10 | Q6: 315 | S6: 10 | T6: 330 | AL6: 155 | AM6: =ROUND(AL6/$AM$5,0) -> 431 | AN6: =ROUND(AL6/$AN$5,0) -> 388 | AO6: =ROUND(AL6/$AO$5,0) -> 369 | AP6: =ROUND(AL6/$AP$5,0) -> 352
D7: 16 | E7: 285 | G7: 16 | H7: 315 | K7: ='ポンプ150m未満(グラフ)'!K7 -> 6 | L7: ='ポンプ150m未満(グラフ)'!L7 -> 385 | P7: 12 | Q7: 310 | S7: 12 | T7: 325 | AL7: 156 | AM7: =ROUND(AL7/$AM$5,0) -> 433 | AN7: =ROUND(AL7/$AN$5,0) -> 390 | AO7: =ROUND(AL7/$AO$5,0) -> 371 | AP7: =ROUND(AL7/$AP$5,0) -> 355
D8: 18 | E8: 280 | G8: 18 | H8: 310 | K8: ='ポンプ150m未満(グラフ)'!K8 -> 8 | L8: ='ポンプ150m未満(グラフ)'!L8 -> 400 | P8: 16 | Q8: 300 | S8: 16 | T8: 315
D9: 20 | E9: 280 | G9: 20 | H9: 310 | K9: ='ポンプ150m未満(グラフ)'!K9 -> 12 | L9: ='ポンプ150m未満(グラフ)'!L9 -> 430 | P9: 18 | Q9: 295 | S9: 18 | T9: 310 | AL9: 157 | AM9: =ROUND(AL9/$AM$5,0) -> 436 | AN9: =ROUND(AL9/$AN$5,0) -> 393 | AO9: =ROUND(AL9/$AO$5,0) -> 374 | AP9: =ROUND(AL9/$AP$5,0) -> 357
D10: 20 | E10: 280 | G10: 20 | H10: 310 | K10: ='ポンプ150m未満(グラフ)'!K10 -> 15 | L10: ='ポンプ150m未満(グラフ)'!L10 -> 430 | P10: 20 | Q10: 295 | S10: 20 | T10: 310 | AL10: 158 | AM10: =ROUND(AL10/$AM$5,0) -> 439 | AN10: =ROUND(AL10/$AN$5,0) -> 395 | AO10: =ROUND(AL10/$AO$5,0) -> 376 | AP10: =ROUND(AL10/$AP$5,0) -> 359
D11: 20 | E11: 280 | G11: 20 | H11: 310 | K11: ='ポンプ150m未満(グラフ)'!K11 -> 15 | L11: ='ポンプ150m未満(グラフ)'!L11 -> 430 | P11: 20 | Q11: 295 | S11: 20 | T11: 310 | AL11: 158 | AM11: =ROUND(AL11/$AM$5,0) -> 439 | AN11: =ROUND(AL11/$AN$5,0) -> 395 | AO11: =ROUND(AL11/$AO$5,0) -> 376 | AP11: =ROUND(AL11/$AP$5,0) -> 359
D12: 25 | E12: 280 | G12: 25 | H12: 310 | K12: ='ポンプ150m未満(グラフ)'!K12 -> 25 | L12: ='ポンプ150m未満(グラフ)'!L12 -> 430 | P12: 25 | Q12: 295 | S12: 25 | T12: 310 | AL12: 159 | AM12: =ROUND(AL12/$AM$5,0) -> 442 | AN12: =ROUND(AL12/$AN$5,0) -> 398 | AO12: =ROUND(AL12/$AO$5,0) -> 379 | AP12: =ROUND(AL12/$AP$5,0) -> 361
AL13: 160 | AM13: =ROUND(AL13/$AM$5,0) -> 444 | AN13: =ROUND(AL13/$AN$5,0) -> 400 | AO13: =ROUND(AL13/$AO$5,0) -> 381 | AP13: =ROUND(AL13/$AP$5,0) -> 364

Sheet ポンプ300～500m(グラフ)
E1: グラフデータ
E4: 20（25）mm天然砂 | H4: 20（25）mm砕砂 | L4: 上限
D5: 15 | E5: 500 | G5: 15 | H5: 500 | K5: ='ポンプ150m未満(グラフ)'!K5 -> 4 | L5: ='ポンプ150m未満(グラフ)'!L5 -> 375 | M5: ←150m未満で共通設定 | AM5: 0.36 | AN5: 0.4 | AO5: 0.42 | AP5: 0.44
D6: 15 | E6: 330 | G6: 15 | H6: 345 | K6: ='ポンプ150m未満(グラフ)'!K6 -> 5 | L6: ='ポンプ150m未満(グラフ)'!L6 -> 380 | AL6: 155 | AM6: =ROUND(AL6/$AM$5,0) -> 431 | AN6: =ROUND(AL6/$AN$5,0) -> 388 | AO6: =ROUND(AL6/$AO$5,0) -> 369 | AP6: =ROUND(AL6/$AP$5,0) -> 352
D7: 18 | E7: 323 | G7: 18 | H7: 338 | K7: ='ポンプ150m未満(グラフ)'!K7 -> 6 | L7: ='ポンプ150m未満(グラフ)'!L7 -> 385 | AL7: 156 | AM7: =ROUND(AL7/$AM$5,0) -> 433 | AN7: =ROUND(AL7/$AN$5,0) -> 390 | AO7: =ROUND(AL7/$AO$5,0) -> 371 | AP7: =ROUND(AL7/$AP$5,0) -> 355
D8: 20 | E8: 317 | G8: 20 | H8: 332 | K8: ='ポンプ150m未満(グラフ)'!K8 -> 8 | L8: ='ポンプ150m未満(グラフ)'!L8 -> 400
D9: 22 | E9: 317 | G9: 22 | H9: 332 | K9: ='ポンプ150m未満(グラフ)'!K9 -> 12 | L9: ='ポンプ150m未満(グラフ)'!L9 -> 430 | AL9: 157 | AM9: =ROUND(AL9/$AM$5,0) -> 436 | AN9: =ROUND(AL9/$AN$5,0) -> 393 | AO9: =ROUND(AL9/$AO$5,0) -> 374 | AP9: =ROUND(AL9/$AP$5,0) -> 357
D10: 25 | E10: 317 | G10: 25 | H10: 332 | K10: ='ポンプ150m未満(グラフ)'!K10 -> 15 | L10: ='ポンプ150m未満(グラフ)'!L10 -> 430 | AL10: 158 | AM10: =ROUND(AL10/$AM$5,0) -> 439 | AN10: =ROUND(AL10/$AN$5,0) -> 395 | AO10: =ROUND(AL10/$AO$5,0) -> 376 | AP10: =ROUND(AL10/$AP$5,0) -> 359
D11: 25 | E11: 317 | G11: 25 | H11: 332 | K11: ='ポンプ150m未満(グラフ)'!K11 -> 15 | L11: ='ポンプ150m未満(グラフ)'!L11 -> 430 | AL11: 159 | AM11: =ROUND(AL11/$AM$5,0) -> 442 | AN11: =ROUND(AL11/$AN$5,0) -> 398 | AO11: =ROUND(AL11/$AO$5,0) -> 379 | AP11: =ROUND(AL11/$AP$5,0) -> 361
D12: 25 | E12: 317 | G12: 25 | H12: 332 | K12: ='ポンプ150m未満(グラフ)'!K12 -> 25 | L12: ='ポンプ150m未満(グラフ)'!L12 -> 430 | AL12: 160 | AM12: =ROUND(AL12/$AM$5,0) -> 444 | AN12: =ROUND(AL12/$AN$5,0) -> 400 | AO12: =ROUND(AL12/$AO$5,0) -> 381 | AP12: =ROUND(AL12/$AP$5,0) -> 364
AL13: 161 | AM13: =ROUND(AL13/$AM$5,0) -> 447 | AN13: =ROUND(AL13/$AN$5,0) -> 403 | AO13: =ROUND(AL13/$AO$5,0) -> 383 | AP13: =ROUND(AL13/$AP$5,0) -> 366

Sheet 骨材（グラフ）_変更
B2: Ⅰ-リンク
C3: 骨材経により選択されたデータ | J3: Ⅰ-リンク
C4: 40 | D4: 45 | E4: 50 | F4: 55 | G4: 60 | H4: 65 | J4: W/C | K4: ='Ⅱ-配合確認(Ⅰリンク）'!I83 -> 50 | L4: =K4-5 -> 45
B5: 設定スランプ | C5: W/C=40% | D5: W/C=45% | E5: W/C=50% | F5: W/C=55% | G5: W/C=60% | H5: W/C=65% | J5: W/C範囲 | K5: =IF(L4<40,40,IF(L4<45,45,IF(L4<50,50,IF(L4<55,55,IF(L4<60,60,65))))) -> 50 | L5: =IF(K4<40,40,IF(K4<45,45,IF(K4<50,50,IF(K4<55,55,IF(K4<60,60,65))))) -> 55 | N5: 補正線
B6: =IF('Ⅱ-配合確認(Ⅰリンク）'!$H$85='Ⅱ-配合確認(Ⅰリンク）'!$O$84,'骨材（グラフ）_変更'!J34,'骨材（グラフ）_変更'!B34) -> 8 | C6: =IF('Ⅱ-配合確認(Ⅰリンク）'!$H$85='Ⅱ-配合確認(Ⅰリンク）'!$O$84,'骨材（グラフ）_変更'!P34,'骨材（グラフ）_変更'!H34) -> 38.5 | D6: =IF('Ⅱ-配合確認(Ⅰリンク）'!$H$85='Ⅱ-配合確認(Ⅰリンク）'!$O$84,'骨材（グラフ）_変更'!O34,'骨材（グラフ）_変更'!G34) -> 40.5 | E6: =IF('Ⅱ-配合確認(Ⅰリンク）'!$H$85='Ⅱ-配合確認(Ⅰリンク）'!$O$84,'骨材（グラフ）_変更'!N34,'骨材（グラフ）_変更'!F34) -> 41.5 | F6: =IF('Ⅱ-配合確認(Ⅰリンク）'!$H$85='Ⅱ-配合確認(Ⅰリンク）'!$O$84,'骨材（グラフ）_変更'!M34,'骨材（グラフ）_変更'!E34) -> 42.5 | G6: =IF('Ⅱ-配合確認(Ⅰリンク）'!$H$85='Ⅱ-配合確認(Ⅰリンク）'!$O$84,'骨材（グラフ）_変更'!L34,'骨材（グラフ）_変更'!D34) -> 43.5 | H6: =IF('Ⅱ-配合確認(Ⅰリンク）'!$H$85='Ⅱ-配合確認(Ⅰリンク）'!$O$84,'骨材（グラフ）_変更'!K34,'骨材（グラフ）_変更'!C34) -> 45 | J6: 3 | K6: =HLOOKUP($K$5,$C$4:$H$11,J6) -> 41.5 | L6: =HLOOKUP($L$5,$C$4:$H$11,J6) -> 42.5 | N6: =($K$4-$K$5)/($L$5-$K$5)*(L6-K6)+K6 -> 41.5
B7: =IF('Ⅱ-配合確認(Ⅰリンク）'!$H$85='Ⅱ-配合確認(Ⅰリンク）'!$O$84,'骨材（グラフ）_変更'!J35,'骨材（グラフ）_変更'!B35) -> 10 | C7: =IF('Ⅱ-配合確認(Ⅰリンク）'!$H$85='Ⅱ-配合確認(Ⅰリンク）'!$O$84,'骨材（グラフ）_変更'!P35,'骨材（グラフ）_変更'!H35) -> 38.5 | D7: =IF('Ⅱ-配合確認(Ⅰリンク）'!$H$85='Ⅱ-配合確認(Ⅰリンク）'!$O$84,'骨材（グラフ）_変更'!O35,'骨材（グラフ）_変更'!G35) -> 40.5 | E7: =IF('Ⅱ-配合確認(Ⅰリンク）'!$H$85='Ⅱ-配合確認(Ⅰリンク）'!$O$84,'骨材（グラフ）_変更'!N35,'骨材（グラフ）_変更'!F35) -> 41.5 | F7: =IF('Ⅱ-配合確認(Ⅰリンク）'!$H$85='Ⅱ-配合確認(Ⅰリンク）'!$O$84,'骨材（グラフ）_変更'!M35,'骨材（グラフ）_変更'!E35) -> 42.5 | G7: =IF('Ⅱ-配合確認(Ⅰリンク）'!$H$85='Ⅱ-配合確認(Ⅰリンク）'!$O$84,'骨材（グラフ）_変更'!L35,'骨材（グラフ）_変更'!D35) -> 43.5 | H7: =IF('Ⅱ-配合確認(Ⅰリンク）'!$H$85='Ⅱ-配合確認(Ⅰリンク）'!$O$84,'骨材（グラフ）_変更'!K35,'骨材（グラフ）_変更'!C35) -> 45 | J7: 4 | K7: 41.5 | L7: 42.5 | N7: 41.5
B8: =IF('Ⅱ-配合確認(Ⅰリンク）'!$H$85='Ⅱ-配合確認(Ⅰリンク）'!$O$84,'骨材（グラフ）_変更'!J36,'骨材（グラフ）_変更'!B36) -> 12 | C8: =IF('Ⅱ-配合確認(Ⅰリンク）'!$H$85='Ⅱ-配合確認(Ⅰリンク）'!$O$84,'骨材（グラフ）_変更'!P36,'骨材（グラフ）_変更'!H36) -> 38 | D8: =IF('Ⅱ-配合確認(Ⅰリンク）'!$H$85='Ⅱ-配合確認(Ⅰリンク）'!$O$84,'骨材（グラフ）_変更'!O36,'骨材（グラフ）_変更'!G36) -> 40 | E8: =IF('Ⅱ-配合確認(Ⅰリンク）'!$H$85='Ⅱ-配合確認(Ⅰリンク）'!$O$84,'骨材（グラフ）_変更'!N36,'骨材（グラフ）_変更'!F36) -> 41 | F8: =IF('Ⅱ-配合確認(Ⅰリンク）'!$H$85='Ⅱ-配合確認(Ⅰリンク）'!$O$84,'骨材（グラフ）_変更'!M36,'骨材（グラフ）_変更'!E36) -> 42.5 | G8: =IF('Ⅱ-配合確認(Ⅰリンク）'!$H$85='Ⅱ-配合確認(Ⅰリンク）'!$O$84,'骨材（グラフ）_変更'!L36,'骨材（グラフ）_変更'!D36) -> 43.5 | H8: =IF('Ⅱ-配合確認(Ⅰリンク）'!$H$85='Ⅱ-配合確認(Ⅰリンク）'!$O$84,'骨材（グラフ）_変更'!K36,'骨材（グラフ）_変更'!C36) -> 45 | J8: 5 | K8: 41 | L8: 42.5 | N8: 41
B9: =IF('Ⅱ-配合確認(Ⅰリンク）'!$H$85='Ⅱ-配合確認(Ⅰリンク）'!$O$84,'骨材（グラフ）_変更'!J37,'骨材（グラフ）_変更'!B37) -> 15 | C9: =IF('Ⅱ-配合確認(Ⅰリンク）'!$H$85='Ⅱ-配合確認(Ⅰリンク）'!$O$84,'骨材（グラフ）_変更'!P37,'骨材（グラフ）_変更'!H37) -> 37 | D9: =IF('Ⅱ-配合確認(Ⅰリンク）'!$H$85='Ⅱ-配合確認(Ⅰリンク）'!$O$84,'骨材（グラフ）_変更'!O37,'骨材（グラフ）_変更'!G37) -> 39.5 | E9: =IF('Ⅱ-配合確認(Ⅰリンク）'!$H$85='Ⅱ-配合確認(Ⅰリンク）'!$O$84,'骨材（グラフ）_変更'!N37,'骨材（グラフ）_変更'!F37) -> 41 | F9: =IF('Ⅱ-配合確認(Ⅰリンク）'!$H$85='Ⅱ-配合確認(Ⅰリンク）'!$O$84,'骨材（グラフ）_変更'!M37,'骨材（グラフ）_変更'!E37) -> 42.5 | G9: =IF('Ⅱ-配合確認(Ⅰリンク）'!$H$85='Ⅱ-配合確認(Ⅰリンク）'!$O$84,'骨材（グラフ）_変更'!L37,'骨材（グラフ）_変更'!D37) -> 43.5 | H9: =IF('Ⅱ-配合確認(Ⅰリンク）'!$H$85='Ⅱ-配合確認(Ⅰリンク）'!$O$84,'骨材（グラフ）_変更'!K37,'骨材（グラフ）_変更'!C37) -> 45 | J9: 6 | K9: 41 | L9: 42.5 | N9: 41
B10: =IF('Ⅱ-配合確認(Ⅰリンク）'!$H$85='Ⅱ-配合確認(Ⅰリンク）'!$O$84,'骨材（グラフ）_変更'!J38,'骨材（グラフ）_変更'!B38) -> 18 | C10: =IF('Ⅱ-配合確認(Ⅰリンク）'!$H$85='Ⅱ-配合確認(Ⅰリンク）'!$O$84,'骨材（グラフ）_変更'!P38,'骨材（グラフ）_変更'!H38) -> 39 | D10: =IF('Ⅱ-配合確認(Ⅰリンク）'!$H$85='Ⅱ-配合確認(Ⅰリンク）'!$O$84,'骨材（グラフ）_変更'!O38,'骨材（グラフ）_変更'!G38) -> 41.5 | E10: =IF('Ⅱ-配合確認(Ⅰリンク）'!$H$85='Ⅱ-配合確認(Ⅰリンク）'!$O$84,'骨材（グラフ）_変更'!N38,'骨材（グラフ）_変更'!F38) -> 43.5 | F10: =IF('Ⅱ-配合確認(Ⅰリンク）'!$H$85='Ⅱ-配合確認(Ⅰリンク）'!$O$84,'骨材（グラフ）_変更'!M38,'骨材（グラフ）_変更'!E38) -> 44.5 | G10: =IF('Ⅱ-配合確認(Ⅰリンク）'!$H$85='Ⅱ-配合確認(Ⅰリンク）'!$O$84,'骨材（グラフ）_変更'!L38,'骨材（グラフ）_変更'!D38) -> 46 | H10: =IF('Ⅱ-配合確認(Ⅰリンク）'!$H$85='Ⅱ-配合確認(Ⅰリンク）'!$O$84,'骨材（グラフ）_変更'!K38,'骨材（グラフ）_変更'!C38) -> 47.5 | J10: 7 | K10: 43.5 | L10: 44.5 | N10: 43.5
B11: =IF('Ⅱ-配合確認(Ⅰリンク）'!$H$85='Ⅱ-配合確認(Ⅰリンク）'!$O$84,'骨材（グラフ）_変更'!J39,'骨材（グラフ）_変更'!B39) -> 21 | C11: =IF('Ⅱ-配合確認(Ⅰリンク）'!$H$85='Ⅱ-配合確認(Ⅰリンク）'!$O$84,'骨材（グラフ）_変更'!P39,'骨材（グラフ）_変更'!H39) -> 41 | D11: =IF('Ⅱ-配合確認(Ⅰリンク）'!$H$85='Ⅱ-配合確認(Ⅰリンク）'!$O$84,'骨材（グラフ）_変更'!O39,'骨材（グラフ）_変更'!G39) -> 43.5 | E11: =IF('Ⅱ-配合確認(Ⅰリンク）'!$H$85='Ⅱ-配合確認(Ⅰリンク）'!$O$84,'骨材（グラフ）_変更'!N39,'骨材（グラフ）_変更'!F39) -> 45 | F11: =IF('Ⅱ-配合確認(Ⅰリンク）'!$H$85='Ⅱ-配合確認(Ⅰリンク）'!$O$84,'骨材（グラフ）_変更'!M39,'骨材（グラフ）_変更'!E39) -> 46.5 | G11: =IF('Ⅱ-配合確認(Ⅰリンク）'!$H$85='Ⅱ-配合確認(Ⅰリンク）'!$O$84,'骨材（グラフ）_変更'!L39,'骨材（グラフ）_変更'!D39) -> 48.5 | H11: =IF('Ⅱ-配合確認(Ⅰリンク）'!$H$85='Ⅱ-配合確認(Ⅰリンク）'!$O$84,'骨材（グラフ）_変更'!K39,'骨材（グラフ）_変更'!C39) -> 50 | J11: 8 | K11: 45 | L11: 46.5 | N11: 45
J12: W/C= | K12: =K5 -> 50 | L12: ％
J13: W/C= | K13: =L5 -> 55 | L13: ％
J14: W/C= | K14: =K4 -> 50 | L14: ％（補正値）
B17: Ⅱ-単独
C18: 骨材経により選択されたデータ | J18: Ⅱ-単独
C19: 40 | D19: 45 | E19: 50 | F19: 55 | G19: 60 | H19: 65 | J19: W/C | K19: ='Ⅱ-配合確認(単独)_'!I83 -> 51.43769968 | L19: =K19-5 -> 46.43769968
B20: 設定スランプ | C20: W/C=40% | D20: W/C=45% | E20: W/C=50% | F20: W/C=55% | G20: W/C=60% | H20: W/C=65% | J20: W/C範囲 | K20: =IF(L19<40,40,IF(L19<45,45,IF(L19<50,50,IF(L19<55,55,IF(L19<60,60,65))))) -> 50 | L20: =IF(K19<40,40,IF(K19<45,45,IF(K19<50,50,IF(K19<55,55,IF(K19<60,60,65))))) -> 55 | N20: 補正線
B21: =IF('Ⅱ-配合確認(単独)_'!$H$85='Ⅱ-配合確認(単独)_'!$O$84,'骨材（グラフ）_変更'!J34,'骨材（グラフ）_変更'!B34) -> 8 | C21: =IF('Ⅱ-配合確認(単独)_'!$H$85='Ⅱ-配合確認(単独)_'!$O$84,'骨材（グラフ）_変更'!P34,'骨材（グラフ）_変更'!H34) -> 38.5 | D21: =IF('Ⅱ-配合確認(単独)_'!$H$85='Ⅱ-配合確認(単独)_'!$O$84,'骨材（グラフ）_変更'!O34,'骨材（グラフ）_変更'!G34) -> 40.5 | E21: =IF('Ⅱ-配合確認(単独)_'!$H$85='Ⅱ-配合確認(単独)_'!$O$84,'骨材（グラフ）_変更'!N34,'骨材（グラフ）_変更'!F34) -> 41.5 | F21: =IF('Ⅱ-配合確認(単独)_'!$H$85='Ⅱ-配合確認(単独)_'!$O$84,'骨材（グラフ）_変更'!M34,'骨材（グラフ）_変更'!E34) -> 42.5 | G21: =IF('Ⅱ-配合確認(単独)_'!$H$85='Ⅱ-配合確認(単独)_'!$O$84,'骨材（グラフ）_変更'!L34,'骨材（グラフ）_変更'!D34) -> 43.5 | H21: =IF('Ⅱ-配合確認(単独)_'!$H$85='Ⅱ-配合確認(単独)_'!$O$84,'骨材（グラフ）_変更'!K34,'骨材（グラフ）_変更'!C34) -> 45 | J21: 3 | K21: =HLOOKUP($K$20,$C$19:$H$26,J21) -> 41.5 | L21: =HLOOKUP($L$20,$C$19:$H$26,J21) -> 42.5 | N21: =($K$19-$K$20)/($L$20-$K$20)*(L21-K21)+K21 -> 41.78753994
B22: =IF('Ⅱ-配合確認(単独)_'!$H$85='Ⅱ-配合確認(単独)_'!$O$84,'骨材（グラフ）_変更'!J35,'骨材（グラフ）_変更'!B35) -> 10 | C22: =IF('Ⅱ-配合確認(単独)_'!$H$85='Ⅱ-配合確認(単独)_'!$O$84,'骨材（グラフ）_変更'!P35,'骨材（グラフ）_変更'!H35) -> 38.5 | D22: =IF('Ⅱ-配合確認(単独)_'!$H$85='Ⅱ-配合確認(単独)_'!$O$84,'骨材（グラフ）_変更'!O35,'骨材（グラフ）_変更'!G35) -> 40.5 | E22: =IF('Ⅱ-配合確認(単独)_'!$H$85='Ⅱ-配合確認(単独)_'!$O$84,'骨材（グラフ）_変更'!N35,'骨材（グラフ）_変更'!F35) -> 41.5 | F22: =IF('Ⅱ-配合確認(単独)_'!$H$85='Ⅱ-配合確認(単独)_'!$O$84,'骨材（グラフ）_変更'!M35,'骨材（グラフ）_変更'!E35) -> 42.5 | G22: =IF('Ⅱ-配合確認(単独)_'!$H$85='Ⅱ-配合確認(単独)_'!$O$84,'骨材（グラフ）_変更'!L35,'骨材（グラフ）_変更'!D35) -> 43.5 | H22: =IF('Ⅱ-配合確認(単独)_'!$H$85='Ⅱ-配合確認(単独)_'!$O$84,'骨材（グラフ）_変更'!K35,'骨材（グラフ）_変更'!C35) -> 45 | J22: 4 | K22: 41.5 | L22: 42.5 | N22: 41.78753994
B23: =IF('Ⅱ-配合確認(単独)_'!$H$85='Ⅱ-配合確認(単独)_'!$O$84,'骨材（グラフ）_変更'!J36,'骨材（グラフ）_変更'!B36) -> 12 | C23: =IF('Ⅱ-配合確認(単独)_'!$H$85='Ⅱ-配合確認(単独)_'!$O$84,'骨材（グラフ）_変更'!P36,'骨材（グラフ）_変更'!H36) -> 38 | D23: =IF('Ⅱ-配合確認(単独)_'!$H$85='Ⅱ-配合確認(単独)_'!$O$84,'骨材（グラフ）_変更'!O36,'骨材（グラフ）_変更'!G36) -> 40 | E23: =IF('Ⅱ-配合確認(単独)_'!$H$85='Ⅱ-配合確認(単独)_'!$O$84,'骨材（グラフ）_変更'!N36,'骨材（グラフ）_変更'!F36) -> 41 | F23: =IF('Ⅱ-配合確認(単独)_'!$H$85='Ⅱ-配合確認(単独)_'!$O$84,'骨材（グラフ）_変更'!M36,'骨材（グラフ）_変更'!E36) -> 42.5 | G23: =IF('Ⅱ-配合確認(単独)_'!$H$85='Ⅱ-配合確認(単独)_'!$O$84,'骨材（グラフ）_変更'!L36,'骨材（グラフ）_変更'!D36) -> 43.5 | H23: =IF('Ⅱ-配合確認(単独)_'!$H$85='Ⅱ-配合確認(単独)_'!$O$84,'骨材（グラフ）_変更'!K36,'骨材（グラフ）_変更'!C36) -> 45 | J23: 5 | K23: 41 | L23: 42.5 | N23: 41.4313099
B24: =IF('Ⅱ-配合確認(単独)_'!$H$85='Ⅱ-配合確認(単独)_'!$O$84,'骨材（グラフ）_変更'!J37,'骨材（グラフ）_変更'!B37) -> 15 | C24: =IF('Ⅱ-配合確認(単独)_'!$H$85='Ⅱ-配合確認(単独)_'!$O$84,'骨材（グラフ）_変更'!P37,'骨材（グラフ）_変更'!H37) -> 37 | D24: =IF('Ⅱ-配合確認(単独)_'!$H$85='Ⅱ-配合確認(単独)_'!$O$84,'骨材（グラフ）_変更'!O37,'骨材（グラフ）_変更'!G37) -> 39.5 | E24: =IF('Ⅱ-配合確認(単独)_'!$H$85='Ⅱ-配合確認(単独)_'!$O$84,'骨材（グラフ）_変更'!N37,'骨材（グラフ）_変更'!F37) -> 41 | F24: =IF('Ⅱ-配合確認(単独)_'!$H$85='Ⅱ-配合確認(単独)_'!$O$84,'骨材（グラフ）_変更'!M37,'骨材（グラフ）_変更'!E37) -> 42.5 | G24: =IF('Ⅱ-配合確認(単独)_'!$H$85='Ⅱ-配合確認(単独)_'!$O$84,'骨材（グラフ）_変更'!L37,'骨材（グラフ）_変更'!D37) -> 43.5 | H24: =IF('Ⅱ-配合確認(単独)_'!$H$85='Ⅱ-配合確認(単独)_'!$O$84,'骨材（グラフ）_変更'!K37,'骨材（グラフ）_変更'!C37) -> 45 | J24: 6 | K24: 41 | L24: 42.5 | N24: 41.4313099
B25: =IF('Ⅱ-配合確認(単独)_'!$H$85='Ⅱ-配合確認(単独)_'!$O$84,'骨材（グラフ）_変更'!J38,'骨材（グラフ）_変更'!B38) -> 18 | C25: =IF('Ⅱ-配合確認(単独)_'!$H$85='Ⅱ-配合確認(単独)_'!$O$84,'骨材（グラフ）_変更'!P38,'骨材（グラフ）_変更'!H38) -> 39 | D25: =IF('Ⅱ-配合確認(単独)_'!$H$85='Ⅱ-配合確認(単独)_'!$O$84,'骨材（グラフ）_変更'!O38,'骨材（グラフ）_変更'!G38) -> 41.5 | E25: =IF('Ⅱ-配合確認(単独)_'!$H$85='Ⅱ-配合確認(単独)_'!$O$84,'骨材（グラフ）_変更'!N38,'骨材（グラフ）_変更'!F38) -> 43.5 | F25: =IF('Ⅱ-配合確認(単独)_'!$H$85='Ⅱ-配合確認(単独)_'!$O$84,'骨材（グラフ）_変更'!M38,'骨材（グラフ）_変更'!E38) -> 44.5 | G25: =IF('Ⅱ-配合確認(単独)_'!$H$85='Ⅱ-配合確認(単独)_'!$O$84,'骨材（グラフ）_変更'!L38,'骨材（グラフ）_変更'!D38) -> 46 | H25: =IF('Ⅱ-配合確認(単独)_'!$H$85='Ⅱ-配合確認(単独)_'!$O$84,'骨材（グラフ）_変更'!K38,'骨材（グラフ）_変更'!C38) -> 47.5 | J25: 7 | K25: 43.5 | L25: 44.5 | N25: 43.78753994
B26: =IF('Ⅱ-配合確認(単独)_'!$H$85='Ⅱ-配合確認(単独)_'!$O$84,'骨材（グラフ）_変更'!J39,'骨材（グラフ）_変更'!B39) -> 21 | C26: =IF('Ⅱ-配合確認(単独)_'!$H$85='Ⅱ-配合確認(単独)_'!$O$84,'骨材（グラフ）_変更'!P39,'骨材（グラフ）_変更'!H39) -> 41 | D26: =IF('Ⅱ-配合確認(単独)_'!$H$85='Ⅱ-配合確認(単独)_'!$O$84,'骨材（グラフ）_変更'!O39,'骨材（グラフ）_変更'!G39) -> 43.5 | E26: =IF('Ⅱ-配合確認(単独)_'!$H$85='Ⅱ-配合確認(単独)_'!$O$84,'骨材（グラフ）_変更'!N39,'骨材（グラフ）_変更'!F39) -> 45 | F26: =IF('Ⅱ-配合確認(単独)_'!$H$85='Ⅱ-配合確認(単独)_'!$O$84,'骨材（グラフ）_変更'!M39,'骨材（グラフ）_変更'!E39) -> 46.5 | G26: =IF('Ⅱ-配合確認(単独)_'!$H$85='Ⅱ-配合確認(単独)_'!$O$84,'骨材（グラフ）_変更'!L39,'骨材（グラフ）_変更'!D39) -> 48.5 | H26: =IF('Ⅱ-配合確認(単独)_'!$H$85='Ⅱ-配合確認(単独)_'!$O$84,'骨材（グラフ）_変更'!K39,'骨材（グラフ）_変更'!C39) -> 50 | J26: 8 | K26: 45 | L26: 46.5 | N26: 45.4313099
J27: W/C= | K27: =K20 -> 50 | L27: ％
J28: W/C= | K28: =L20 -> 55 | L28: ％
J29: W/C= | K29: =K19 -> 51.43769968 | L29: ％（補正値）
C32: 粗骨材の最大寸法20mm(25mm) | K32: 粗骨材の最大寸法40mm | R32: かさ容積
B33: 設定スランプ | C33: W/C=65% | D33: W/C=60% | E33: W/C=55% | F33: W/C=50% | G33: W/C=45% | H33: W/C=40% | J33: 設定スランプ | K33: W/C=65% | L33: W/C=60% | M33: W/C=55% | N33: W/C=50% | R33: 設定スランプ | S33: Gmax＝20mm | T33: Gmax＝25mm | U33: Gmax＝40mm
B34: 8 | C34: 45 | D34: 43.5 | E34: 42.5 | F34: 41.5 | G34: 40.5 | H34: 38.5 | J34: 8 | K34: 39 | L34: 37 | M34: 36 | N34: 35 | R34: 8 | S34: 0.7 | T34: 0.71 | U34: 0.79
B35: 10 | C35: 45 | D35: 43.5 | E35: 42.5 | F35: 41.5 | G35: 40.5 | H35: 38.5 | J35: 10 | K35: 39 | L35: 37 | M35: 36 | N35: 35 | R35: 12 | S35: 0.69 | T35: 0.7 | U35: 0.78
B36: 12 | C36: 45 | D36: 43.5 | E36: 42.5 | F36: 41 | G36: 40 | H36: 38 | J36: 12 | K36: 39 | L36: 37 | M36: 36 | N36: 35 | R36: 15 | S36: 0.68 | T36: 0.69 | U36: 0.78
B37: 15 | C37: 45 | D37: 43.5 | E37: 42.5 | F37: 41 | G37: 39.5 | H37: 37 | J37: 15 | K37: 39 | L37: 37 | M37: 36 | N37: 35 | R37: 18 | S37: 0.64 | T37: 0.65 | U37: 0.77
B38: 18 | C38: 47.5 | D38: 46 | E38: 44.5 | F38: 43.5 | G38: 41.5 | H38: 39 | J38: 18 | K38: 40 | L38: 38 | M38: 37 | N38: 36 | R38: 21 | S38: 0.6 | T38: 0.61
B39: 21 | C39: 50 | D39: 48.5 | E39: 46.5 | F39: 45 | G39: 43.5 | H39: 41 | J39: =J38 -> 18 | K39: =K38 -> 40 | L39: =L38 -> 38 | M39: =M38 -> 37 | N39: =N38 -> 36

Sheet Sheet1
